OrganisationNameLabel,OrganisationURI,EffectiveDate,Directorate/ServiceWhereExpenditureIncurred,ServiceCategoryLabel,ServiceCategoryURI,Supplier,SupplierRegisteredCompany Number,PaymentDate,TransactionNumber,NetAmount,IrrecoverableVAT,PurposeOfSpend,ProcurementClassification:ProclassLabel,ProcrementClassification:ProClassCode
South Lakeland District Council,http://opendatacommunities.org/id/district-council/south-lakeland,30/06/2017,ICT Group,Central Services,http://opendatacommunities.org/def/concept/finance/sercop/objective/102,ITPS Professional Services Ltd (DD),,30/06/2017,68961,16.5,0,1229588665,271700,ICT Telecommunications Fixed
South Lakeland District Council,http://opendatacommunities.org/id/district-council/south-lakeland,30/06/2017,Democratic and Member Services,Cultural Environmental Regulatory & Planning Services,http://opendatacommunities.org/def/concept/finance/sercop/objective/104,GRANTS- MISCELLANEOUS,,19/06/2017,68788,500,0,500 DONATION FOR NEW MARKINGS ON,201700,Financial Services Grants
South Lakeland District Council,http://opendatacommunities.org/id/district-council/south-lakeland,30/06/2017,Democratic and Member Services,Cultural Environmental Regulatory & Planning Services,http://opendatacommunities.org/def/concept/finance/sercop/objective/104,GRANTS- MISCELLANEOUS,,28/06/2017,69102,500,0,500 DONATION TO PROVIDE TOILET,201700,Financial Services Grants
South Lakeland District Council,http://opendatacommunities.org/id/district-council/south-lakeland,30/06/2017,Democratic and Member Services,Cultural Environmental Regulatory & Planning Services,http://opendatacommunities.org/def/concept/finance/sercop/objective/104,GRANTS- MISCELLANEOUS,,28/06/2017,69144,600,0,600 donation from Cllr Hogg to Castle,201700,Financial Services Grants
South Lakeland District Council,http://opendatacommunities.org/id/district-council/south-lakeland,30/06/2017,Business Support Community Services,Housing Services,http://opendatacommunities.org/def/concept/finance/sercop/objective/108,BUNZL CLEANING & HYGIENE SUPPLIES,2902454,12/06/2017,68495,485.18,0,030000 Cleanline Washing Up Liquid (5L),131011,Cleaning & Janitorial Cleaning Materials
South Lakeland District Council,http://opendatacommunities.org/id/district-council/south-lakeland,30/06/2017,Social Enterprise Admin,Cultural Environmental Regulatory & Planning Services,http://opendatacommunities.org/def/concept/finance/sercop/objective/104,ARCO LIMITED,133804,28/06/2017,68456,83.13,0,10BD614 Berghaus W Calisto Alpha 3 in 1,141100,Clothing Protective
South Lakeland District Council,http://opendatacommunities.org/id/district-council/south-lakeland,30/06/2017,Financial Services,Central Services,http://opendatacommunities.org/def/concept/finance/sercop/objective/102,TIAA Ltd,4546319,12/06/2017,68361,8208.25,0,16/17 Internal Audit,201100,Financial Services Audit
South Lakeland District Council,http://opendatacommunities.org/id/district-council/south-lakeland,30/06/2017,ICT Group,Central Services,http://opendatacommunities.org/def/concept/finance/sercop/objective/102,CCS MEDIA LTD,1693516,19/06/2017,68706,6.88,0,2 x 3 metre hdmi cables,271400,ICT Office & Reprographics Equipment
South Lakeland District Council,http://opendatacommunities.org/id/district-council/south-lakeland,30/06/2017,Kendal Town Hall,Cultural Environmental Regulatory & Planning Services,http://opendatacommunities.org/def/concept/finance/sercop/objective/104,BUNZL CLEANING & HYGIENE SUPPLIES,2902454,05/06/2017,68496,33.02,0,2 x 5 litre carefree mop and shine for,131011,Cleaning & Janitorial Cleaning Materials
South Lakeland District Council,http://opendatacommunities.org/id/district-council/south-lakeland,30/06/2017,Lake Wardens,Cultural Environmental Regulatory & Planning Services,http://opendatacommunities.org/def/concept/finance/sercop/objective/104,SHORROCK TRICHEM,4179799,07/06/2017,68636,59.58,0,2 x Buckets of Urinal Blocks,131312,Cleaning & Janitorial Washroom Sanitat
South Lakeland District Council,http://opendatacommunities.org/id/district-council/south-lakeland,30/06/2017,Lake Wardens,Cultural Environmental Regulatory & Planning Services,http://opendatacommunities.org/def/concept/finance/sercop/objective/104,THOMAS GRAHAM & SONS LTD,656879,05/06/2017,68509,43.5,0,2 x Packs of JP32 Corelss Toilet Rolls,101400,Building General Materials
South Lakeland District Council,http://opendatacommunities.org/id/district-council/south-lakeland,30/06/2017,Lake Wardens,Cultural Environmental Regulatory & Planning Services,http://opendatacommunities.org/def/concept/finance/sercop/objective/104,SHORROCK TRICHEM,4179799,05/06/2017,68479,45.44,0,2 x Washroom Foam cleaner,131312,Cleaning & Janitorial Washroom Sanitat
South Lakeland District Council,http://opendatacommunities.org/id/district-council/south-lakeland,30/06/2017,Revenues and Benefits,Central Services,http://opendatacommunities.org/def/concept/finance/sercop/objective/102,ALLPAY.NET LTD (NCR),6871069,30/06/2017,68607,13,0,2017 - 18 Internet Payment,209999,Financial Services Not Elsewhere Classif
South Lakeland District Council,http://opendatacommunities.org/id/district-council/south-lakeland,30/06/2017,Revenues and Benefits,Central Services,http://opendatacommunities.org/def/concept/finance/sercop/objective/102,ALLPAY.NET LTD (NCR),6871069,30/06/2017,68608,17.31,0,2017 - 18 Internet Payment,209999,Financial Services Not Elsewhere Classif
South Lakeland District Council,http://opendatacommunities.org/id/district-council/south-lakeland,30/06/2017,Revenues and Benefits,Central Services,http://opendatacommunities.org/def/concept/finance/sercop/objective/102,ALLPAY.NET LTD (NCR),6871069,30/06/2017,68609,371.15,0,2017 - 18 Internet Payment,209999,Financial Services Not Elsewhere Classif
South Lakeland District Council,http://opendatacommunities.org/id/district-council/south-lakeland,30/06/2017,Revenues and Benefits,Central Services,http://opendatacommunities.org/def/concept/finance/sercop/objective/102,ALLPAY.NET LTD (NCR),6871069,30/06/2017,68610,38.7,0,2017 - 18 Internet Payment,209999,Financial Services Not Elsewhere Classif
South Lakeland District Council,http://opendatacommunities.org/id/district-council/south-lakeland,30/06/2017,Revenues and Benefits,Central Services,http://opendatacommunities.org/def/concept/finance/sercop/objective/102,ALLPAY.NET LTD (NCR),6871069,30/06/2017,68611,920.66,0,2017 - 18 Internet Payment,209999,Financial Services Not Elsewhere Classif
South Lakeland District Council,http://opendatacommunities.org/id/district-council/south-lakeland,30/06/2017,Revenues and Benefits,Central Services,http://opendatacommunities.org/def/concept/finance/sercop/objective/102,ALLPAY.NET LTD (NCR),6871069,30/06/2017,68612,20.46,0,2017 - 18 Internet Payment,209999,Financial Services Not Elsewhere Classif
South Lakeland District Council,http://opendatacommunities.org/id/district-council/south-lakeland,30/06/2017,Revenues and Benefits,Central Services,http://opendatacommunities.org/def/concept/finance/sercop/objective/102,ALLPAY.NET LTD (NCR),6871069,30/06/2017,68613,20.69,0,2017 - 18 Internet Payment,209999,Financial Services Not Elsewhere Classif
South Lakeland District Council,http://opendatacommunities.org/id/district-council/south-lakeland,30/06/2017,Revenues and Benefits,Central Services,http://opendatacommunities.org/def/concept/finance/sercop/objective/102,ALLPAY.NET LTD (NCR),6871069,30/06/2017,68614,25.42,0,2017 - 18 Internet Payment,209999,Financial Services Not Elsewhere Classif
South Lakeland District Council,http://opendatacommunities.org/id/district-council/south-lakeland,30/06/2017,Revenues and Benefits,Central Services,http://opendatacommunities.org/def/concept/finance/sercop/objective/102,HER MAJESTY'S COURTS & TRIBUNAL SERVICE,,05/06/2017,68583,5361,0,2017/18  C Tax  Liability Orders,908001,Public Bodies Other Public Bodies
South Lakeland District Council,http://opendatacommunities.org/id/district-council/south-lakeland,30/06/2017,Revenues and Benefits,Central Services,http://opendatacommunities.org/def/concept/finance/sercop/objective/102,PITNEY BOWES LTD,182037,12/06/2017,68637,1049,0,2017/18  Stationery & office supplies,301200,Mail Services� Postage
South Lakeland District Council,http://opendatacommunities.org/id/district-council/south-lakeland,30/06/2017,Revenues and Benefits,Central Services,http://opendatacommunities.org/def/concept/finance/sercop/objective/102,JACOBS,,07/06/2017,68622,75,0,2017/18 Vat only,152200,Consultancy Technical & Feasibility
South Lakeland District Council,http://opendatacommunities.org/id/district-council/south-lakeland,30/06/2017,Revenues and Benefits,Central Services,http://opendatacommunities.org/def/concept/finance/sercop/objective/102,CAPITA BUSINESS SERVICES LTD (NCR),,30/06/2017,69300,3498.69,0,2017-18 Internet Payment,261500,HR Training & Conferences
South Lakeland District Council,http://opendatacommunities.org/id/district-council/south-lakeland,30/06/2017,Business Support Community Services,Cultural Environmental Regulatory & Planning Services,http://opendatacommunities.org/def/concept/finance/sercop/objective/104,KIRKBY LONSDALE TOWN COUNCIL,,28/06/2017,69211,5500,0,"24 Main Street, Kirkby Lonsdale - grant",908000,Public Bodies Council support services
South Lakeland District Council,http://opendatacommunities.org/id/district-council/south-lakeland,30/06/2017,Printing Section,Central Services,http://opendatacommunities.org/def/concept/finance/sercop/objective/102,TAALUS TECHNICAL SOLUTIONS LTD,7931407,14/06/2017,68818,95,0,24 p Xerox Labels (100 per box),279999,ICT Not Elsewhere Classified
South Lakeland District Council,http://opendatacommunities.org/id/district-council/south-lakeland,30/06/2017,Business Support Community Services,Cultural Environmental Regulatory & Planning Services,http://opendatacommunities.org/def/concept/finance/sercop/objective/104,BRUEL & KJAER UK LTD,4066051,05/06/2017,68547,203,0,2GB SD Memory Cards for 2250,390000,Construction
South Lakeland District Council,http://opendatacommunities.org/id/district-council/south-lakeland,30/06/2017,Environment and Housing,Housing,http://opendatacommunities.org/def/concept/finance/sercop/objective/108,CSG Joinery,,28/06/2017,69253,7500,0,2nd payment Ford Terrace,100000,Building Construction materials
South Lakeland District Council,http://opendatacommunities.org/id/district-council/south-lakeland,30/06/2017,Environment and Housing,Housing,http://opendatacommunities.org/def/concept/finance/sercop/objective/108,Landlord,,28/06/2017,69252,7500,0,2nd payment Ford Terrace,100000,Building Construction materials
South Lakeland District Council,http://opendatacommunities.org/id/district-council/south-lakeland,30/06/2017,Electoral Services,Central Services,http://opendatacommunities.org/def/concept/finance/sercop/objective/102,NORTHGATE VEHICLE HIRE LTD,1434157,26/06/2017,68859,22.9,0,3 Vans for 8th June Parliamentary,381600,Vehicle Mgt Leasing
South Lakeland District Council,http://opendatacommunities.org/id/district-council/south-lakeland,30/06/2017,Lake Wardens,Cultural Environmental Regulatory & Planning Services,http://opendatacommunities.org/def/concept/finance/sercop/objective/104,THOMAS GRAHAM & SONS LTD,656879,05/06/2017,68512,60.72,0,3 x Boxes of 4.5mm x 2.25inch S/S,101400,Building General Materials
South Lakeland District Council,http://opendatacommunities.org/id/district-council/south-lakeland,30/06/2017,Printing Section,Central Services,http://opendatacommunities.org/def/concept/finance/sercop/objective/102,ROSEFOX PAPER LIMITED,1655083,12/06/2017,68520,1600,0,4 pallets of Paper One A4 80 to be held,341000,Stationery Paper
South Lakeland District Council,http://opendatacommunities.org/id/district-council/south-lakeland,30/06/2017,Lake Wardens,Cultural Environmental Regulatory & Planning Services,http://opendatacommunities.org/def/concept/finance/sercop/objective/104,VODAFONE LTD (PAGING),,28/06/2017,67464,146.61,0,4 x Annual Rental of Lake Wardens,271800,ICT Telecommunications Mobile
South Lakeland District Council,http://opendatacommunities.org/id/district-council/south-lakeland,30/06/2017,ICT Group,Central Services,http://opendatacommunities.org/def/concept/finance/sercop/objective/102,Insight Direct (Uk) Ltd,2579852,05/06/2017,68351,14.36,0,4x 8gb pen drives ,271200,ICT Hardware
South Lakeland District Council,http://opendatacommunities.org/id/district-council/south-lakeland,30/06/2017,ICT Group,Central Services,http://opendatacommunities.org/def/concept/finance/sercop/objective/102,Insight Direct (Uk) Ltd,2579852,05/06/2017,68236,284,0,4x benq monitors for revs and bens,271200,ICT Hardware
South Lakeland District Council,http://opendatacommunities.org/id/district-council/south-lakeland,30/06/2017,Kendal Town Hall,Cultural Environmental Regulatory & Planning Services,http://opendatacommunities.org/def/concept/finance/sercop/objective/104,THOMAS GRAHAM & SONS LTD,656879,05/06/2017,68516,9.48,0,5 boxes of mini jumbo toilet rolls fro,101400,Building General Materials
South Lakeland District Council,http://opendatacommunities.org/id/district-council/south-lakeland,30/06/2017,Kendal Town Hall,Cultural Environmental Regulatory & Planning Services,http://opendatacommunities.org/def/concept/finance/sercop/objective/104,THOMAS GRAHAM & SONS LTD,656879,19/06/2017,68518,77.24,0,5 caution cleaning signs for KTH,101400,Building General Materials
South Lakeland District Council,http://opendatacommunities.org/id/district-council/south-lakeland,30/06/2017,Kendal Town Hall,External Trading Accounts,,THOMAS GRAHAM & SONS LTD,656879,05/06/2017,68517,150.14,0,6 boxes of bulk pack toilet tissue for,101400,Building General Materials
South Lakeland District Council,http://opendatacommunities.org/id/district-council/south-lakeland,30/06/2017,Environment and Housing,Housing,http://opendatacommunities.org/def/concept/finance/sercop/objective/108,CSG Joinery,,21/06/2017,68988,7500,0,Works to private property,100000,Building Construction materials
South Lakeland District Council,http://opendatacommunities.org/id/district-council/south-lakeland,30/06/2017,Environment and Housing,Housing,http://opendatacommunities.org/def/concept/finance/sercop/objective/108,Mike Garnett (Building Services),,21/06/2017,68989,7500,0,Works to private property,100000,Building Construction materials
South Lakeland District Council,http://opendatacommunities.org/id/district-council/south-lakeland,30/06/2017,Printing Section,Central Services,http://opendatacommunities.org/def/concept/finance/sercop/objective/102,STANDING STONE DRAWING OFFICE SUPPLIES,5128817,07/06/2017,62241,-32.68,0,90 gsm A0 Rolls of paper for Plotter,341100,Stationery Sundries
South Lakeland District Council,http://opendatacommunities.org/id/district-council/south-lakeland,30/06/2017,Business Support Community Services,Internal Trading Accounts,,GREENCHEM SOLUTIONS LTD,5175801,28/06/2017,69167,500.25,0,AdBlue,189999,Environmental Services Not Elsewhere Cla
South Lakeland District Council,http://opendatacommunities.org/id/district-council/south-lakeland,30/06/2017,Financial Services,Central Services,http://opendatacommunities.org/def/concept/finance/sercop/objective/102,TIAA Ltd,4546319,28/06/2017,68863,11491.55,0,Add 16/17 Audit wk,201100,Financial Services Audit
South Lakeland District Council,http://opendatacommunities.org/id/district-council/south-lakeland,30/06/2017,Financial Services,Central Services,http://opendatacommunities.org/def/concept/finance/sercop/objective/102,TIAA Ltd,4546319,28/06/2017,69183,3283.3,0,Add 16/17 Audit wk,201100,Financial Services Audit
South Lakeland District Council,http://opendatacommunities.org/id/district-council/south-lakeland,30/06/2017,Legal Services,Central Services,http://opendatacommunities.org/def/concept/finance/sercop/objective/102,NEWSQUEST MEDIA GROUP LTD,3102566,26/06/2017,68879,161.28,0,Advert to appear Thurs. 8th June 2017,191000,Facilities Advertising
South Lakeland District Council,http://opendatacommunities.org/id/district-council/south-lakeland,30/06/2017,Human Resources,Central Services,http://opendatacommunities.org/def/concept/finance/sercop/objective/102,PHASE 3 CONSULTING,5034692,12/06/2017,68534,2482.09,0,Advice and Guidance,151000,Consultancy Business
South Lakeland District Council,http://opendatacommunities.org/id/district-council/south-lakeland,30/06/2017,Kendal Town Hall,Highways & Transport Services,http://opendatacommunities.org/def/concept/finance/sercop/objective/107,ADECCO UK LIMITED,593232,05/06/2017,68448,443.52,0,Agency cover for WMMSCP,261400,HR Temporary & Agency Staff
South Lakeland District Council,http://opendatacommunities.org/id/district-council/south-lakeland,30/06/2017,Kendal Town Hall,Highways & Transport Services,http://opendatacommunities.org/def/concept/finance/sercop/objective/107,ADECCO UK LIMITED,593232,05/06/2017,68449,505.12,0,Agency cover for WMMSCP,261400,HR Temporary & Agency Staff
South Lakeland District Council,http://opendatacommunities.org/id/district-council/south-lakeland,30/06/2017,Kendal Town Hall,Highways & Transport Services,http://opendatacommunities.org/def/concept/finance/sercop/objective/107,ADECCO UK LIMITED,593232,12/06/2017,68599,320.32,0,Agency cover for WMMSCP,261400,HR Temporary & Agency Staff
South Lakeland District Council,http://opendatacommunities.org/id/district-council/south-lakeland,30/06/2017,Business Support Community Services,Internal Trading Accounts,,ADECCO UK LIMITED,593232,14/06/2017,68450,45.99,0,Agency staff 2017/18,261400,HR Temporary & Agency Staff
South Lakeland District Council,http://opendatacommunities.org/id/district-council/south-lakeland,30/06/2017,Business Support Community Services,Internal Trading Accounts,,ADECCO UK LIMITED,593232,14/06/2017,68451,45.99,0,Agency staff 2017/18,261400,HR Temporary & Agency Staff
South Lakeland District Council,http://opendatacommunities.org/id/district-council/south-lakeland,30/06/2017,Business Support Community Services,Internal Trading Accounts,,ADECCO UK LIMITED,593232,14/06/2017,68600,410.63,0,Agency staff 2017/18,261400,HR Temporary & Agency Staff
South Lakeland District Council,http://opendatacommunities.org/id/district-council/south-lakeland,30/06/2017,Business Support Community Services,Internal Trading Accounts,,ADECCO UK LIMITED,593232,14/06/2017,68752,407.34,0,Agency staff 2017/18,261400,HR Temporary & Agency Staff
South Lakeland District Council,http://opendatacommunities.org/id/district-council/south-lakeland,30/06/2017,Business Support Community Services,Central Services,http://opendatacommunities.org/def/concept/finance/sercop/objective/102,ADECCO UK LIMITED,593232,19/06/2017,68850,393.71,0,Agency staff 2017/18,261400,HR Temporary & Agency Staff
South Lakeland District Council,http://opendatacommunities.org/id/district-council/south-lakeland,30/06/2017,Business Support Community Services,Internal Trading Accounts,,ADECCO UK LIMITED,593232,28/06/2017,68954,594.59,0,Agency staff 2017/18,261400,HR Temporary & Agency Staff
South Lakeland District Council,http://opendatacommunities.org/id/district-council/south-lakeland,30/06/2017,Business Support Community Services,Central Services,http://opendatacommunities.org/def/concept/finance/sercop/objective/102,ADECCO UK LIMITED,593232,21/06/2017,68958,410.53,0,Agency staff 2017/18,261400,HR Temporary & Agency Staff
South Lakeland District Council,http://opendatacommunities.org/id/district-council/south-lakeland,30/06/2017,Business Support Community Services,Internal Trading Accounts,,ADECCO UK LIMITED,593232,28/06/2017,69226,509.18,0,Agency staff 2017/18,261400,HR Temporary & Agency Staff
South Lakeland District Council,http://opendatacommunities.org/id/district-council/south-lakeland,30/06/2017,Business Support Community Services,Central Services,http://opendatacommunities.org/def/concept/finance/sercop/objective/102,Masterstaff Limited,2777593,07/06/2017,68602,452.14,0,Agency staff 2017/18,261300,HR Recruitment & Assessment
South Lakeland District Council,http://opendatacommunities.org/id/district-council/south-lakeland,30/06/2017,Business Support Community Services,Internal Trading Accounts,,Masterstaff Limited,2777593,07/06/2017,68602,2958.32,0,Agency staff 2017/18,261300,HR Recruitment & Assessment
South Lakeland District Council,http://opendatacommunities.org/id/district-council/south-lakeland,30/06/2017,Business Support Community Services,Internal Trading Accounts,,Masterstaff Limited,2777593,07/06/2017,68603,3276.04,0,Agency staff 2017/18,261300,HR Recruitment & Assessment
South Lakeland District Council,http://opendatacommunities.org/id/district-council/south-lakeland,30/06/2017,Business Support Community Services,Internal Trading Accounts,,Masterstaff Limited,2777593,14/06/2017,68739,3833.12,0,Agency staff 2017/18,261300,HR Recruitment & Assessment
South Lakeland District Council,http://opendatacommunities.org/id/district-council/south-lakeland,30/06/2017,Business Support Community Services,Internal Trading Accounts,,Masterstaff Limited,2777593,26/06/2017,69005,3056.13,0,Agency staff 2017/18,261300,HR Recruitment & Assessment
South Lakeland District Council,http://opendatacommunities.org/id/district-council/south-lakeland,30/06/2017,Business Support Community Services,Internal Trading Accounts,,Masterstaff Limited,2777593,28/06/2017,69227,3219.08,0,Agency staff 2017/18,261300,HR Recruitment & Assessment
South Lakeland District Council,http://opendatacommunities.org/id/district-council/south-lakeland,30/06/2017,Kendal Town Hall,Highways & Transport Services,http://opendatacommunities.org/def/concept/finance/sercop/objective/107,ADECCO UK LIMITED,593232,14/06/2017,66972,522.28,0,Agency staff for WMMSCP ( w/e,261400,HR Temporary & Agency Staff
South Lakeland District Council,http://opendatacommunities.org/id/district-council/south-lakeland,30/06/2017,Business Support Community Services,Housing Services,http://opendatacommunities.org/def/concept/finance/sercop/objective/108,Ashberry Recruitment,7202591,19/06/2017,68445,189,0,"Agency temp, supprort worker at TVF",261300,HR Recruitment & Assessment
South Lakeland District Council,http://opendatacommunities.org/id/district-council/south-lakeland,30/06/2017,Environment and Housing,Housing Services,http://opendatacommunities.org/def/concept/finance/sercop/objective/108,ADECCO UK LIMITED,593232,19/06/2017,68601,161.52,0,Agency worker - ,261400,HR Temporary & Agency Staff
South Lakeland District Council,http://opendatacommunities.org/id/district-council/south-lakeland,30/06/2017,Environment and Housing,Housing Services,http://opendatacommunities.org/def/concept/finance/sercop/objective/108,ADECCO UK LIMITED,593232,21/06/2017,68726,484.56,0,Agency worker - ,261400,HR Temporary & Agency Staff
South Lakeland District Council,http://opendatacommunities.org/id/district-council/south-lakeland,30/06/2017,Environment and Housing,Housing Services,http://opendatacommunities.org/def/concept/finance/sercop/objective/108,ADECCO UK LIMITED,593232,28/06/2017,68955,450.91,0,Agency worker - ,261400,HR Temporary & Agency Staff
South Lakeland District Council,http://opendatacommunities.org/id/district-council/south-lakeland,30/06/2017,Environment and Housing,Housing Services,http://opendatacommunities.org/def/concept/finance/sercop/objective/108,ADECCO UK LIMITED,593232,28/06/2017,69193,514.85,0,Agency worker - ,261400,HR Temporary & Agency Staff
South Lakeland District Council,http://opendatacommunities.org/id/district-council/south-lakeland,30/06/2017,Business Support Community Services,Internal Trading Accounts,,EK MOTOR FACTORS LTD,838524,12/06/2017,68664,56.83,0,Air filter,381400,Vehicle Mgt Maintenance
South Lakeland District Council,http://opendatacommunities.org/id/district-council/south-lakeland,30/06/2017,Business Support Community Services,Internal Trading Accounts,,EK MOTOR FACTORS LTD,838524,19/06/2017,68666,-5.84,0,Air filter,381400,Vehicle Mgt Maintenance
South Lakeland District Council,http://opendatacommunities.org/id/district-council/south-lakeland,30/06/2017,Business Support Community Services,Internal Trading Accounts,,EK MOTOR FACTORS LTD,838524,12/06/2017,68670,29.77,0,Air filter,381400,Vehicle Mgt Maintenance
South Lakeland District Council,http://opendatacommunities.org/id/district-council/south-lakeland,30/06/2017,Business Support Community Services,Internal Trading Accounts,,EK MOTOR FACTORS LTD,838524,12/06/2017,68671,9.13,0,Air filter,381400,Vehicle Mgt Maintenance
South Lakeland District Council,http://opendatacommunities.org/id/district-council/south-lakeland,30/06/2017,Business Support Community Services,Internal Trading Accounts,,EK MOTOR FACTORS LTD,838524,26/06/2017,68738,178.9,0,Air filter,381400,Vehicle Mgt Maintenance
South Lakeland District Council,http://opendatacommunities.org/id/district-council/south-lakeland,30/06/2017,Legal Services,Central Services,http://opendatacommunities.org/def/concept/finance/sercop/objective/102,Solicitors Association of Higher Court,,28/06/2017,69224,50,0,Ann. Sub for Membership from 01.05.17,281300,Legal Services Legal Opinion
South Lakeland District Council,http://opendatacommunities.org/id/district-council/south-lakeland,30/06/2017,Business Support Community Services,Internal Trading Accounts,,Fleetmatics (UK) Ltd,5265904,19/06/2017,68854,13440,0,Annual fee for 70 vehicles from 01/07/16,361000,Public Transport Fleet Management
South Lakeland District Council,http://opendatacommunities.org/id/district-council/south-lakeland,30/06/2017,Development Management,Cultural Environmental Regulatory & Planning Services,http://opendatacommunities.org/def/concept/finance/sercop/objective/104,LABC NORTHERN,,21/06/2017,68877,125,0,Annual subscription to LABC Northern,109999,Building Not Elsewhere Classified
South Lakeland District Council,http://opendatacommunities.org/id/district-council/south-lakeland,30/06/2017,Development Management,Cultural Environmental Regulatory & Planning Services,http://opendatacommunities.org/def/concept/finance/sercop/objective/104,LABC NORTHERN,,21/06/2017,68877,75,0,Annual subscription to LABC Northern,109999,Building Not Elsewhere Classified
South Lakeland District Council,http://opendatacommunities.org/id/district-council/south-lakeland,30/06/2017,Social Enterprise Admin,Cultural Environmental Regulatory & Planning Services,http://opendatacommunities.org/def/concept/finance/sercop/objective/104,Haymarket Media Group Ltd,267189,19/06/2017,68663,1300,0,"APPEAL DECISION,HEARINGS,INQUIRIES AND",171114,Education Literature
South Lakeland District Council,http://opendatacommunities.org/id/district-council/south-lakeland,30/06/2017,Social Enterprise Admin,Cultural Environmental Regulatory & Planning Services,http://opendatacommunities.org/def/concept/finance/sercop/objective/104,LAMBERT SMITH HAMPTON GROUP,2521225,05/06/2017,68469,550,0,APPRAISALS FOR PLANNING DEPARTMENT,999999,Unclassifiable
South Lakeland District Council,http://opendatacommunities.org/id/district-council/south-lakeland,30/06/2017,Business Support Community Services,Internal Trading Accounts,,HYDRAIR TRUCK & TRAILER PARTS LTD,,26/06/2017,68971,168.43,0,Arm,381500,Vehicle Mgt Parts
South Lakeland District Council,http://opendatacommunities.org/id/district-council/south-lakeland,30/06/2017,Business Support Community Services,Internal Trading Accounts,,HYDRAIR TRUCK & TRAILER PARTS LTD,,26/06/2017,68980,26.34,0,Arm,381500,Vehicle Mgt Parts
South Lakeland District Council,http://opendatacommunities.org/id/district-council/south-lakeland,30/06/2017,Business Support Community Services,Internal Trading Accounts,,HYDRAIR TRUCK & TRAILER PARTS LTD,,26/06/2017,68981,8.78,0,Arm,381500,Vehicle Mgt Parts
South Lakeland District Council,http://opendatacommunities.org/id/district-council/south-lakeland,30/06/2017,Financial Services,Central Services,http://opendatacommunities.org/def/concept/finance/sercop/objective/102,Municipal Mutual Insurance Ltd,76678,26/06/2017,69121,168,0,Balderstone : Compensation recovery,201800,Financial Services Insurance
South Lakeland District Council,http://opendatacommunities.org/id/district-council/south-lakeland,30/06/2017,Electoral Services,Central Services,http://opendatacommunities.org/def/concept/finance/sercop/objective/102,SHAW & SONS LTD,176653,05/06/2017,68349,1183.2,0,Ballot Box Seal Cutters,191600,Facilities Printing
South Lakeland District Council,http://opendatacommunities.org/id/district-council/south-lakeland,30/06/2017,Business Support Community Services,Internal Trading Accounts,,DENNIS EAGLE LTD,3794455,05/06/2017,68567,233.81,0,Bearings,381300,Vehicle Mgt Industrial
South Lakeland District Council,http://opendatacommunities.org/id/district-council/south-lakeland,30/06/2017,Business Support Community Services,Internal Trading Accounts,,DENNIS EAGLE LTD,3794455,26/06/2017,68972,467.6,0,Bearings,381300,Vehicle Mgt Industrial
South Lakeland District Council,http://opendatacommunities.org/id/district-council/south-lakeland,30/06/2017,Business Support Community Services,Internal Trading Accounts,,DENNIS EAGLE LTD,3794455,26/06/2017,68973,190.36,0,Bearings,381300,Vehicle Mgt Industrial
South Lakeland District Council,http://opendatacommunities.org/id/district-council/south-lakeland,30/06/2017,Business Support Community Services,Internal Trading Accounts,,DENNIS EAGLE LTD,3794455,26/06/2017,68976,123.12,0,Bearings,381300,Vehicle Mgt Industrial
South Lakeland District Council,http://opendatacommunities.org/id/district-council/south-lakeland,30/06/2017,Business Support Community Services,Internal Trading Accounts,,DENNIS EAGLE LTD,3794455,26/06/2017,68977,102.24,0,Bearings,381300,Vehicle Mgt Industrial
South Lakeland District Council,http://opendatacommunities.org/id/district-council/south-lakeland,30/06/2017,Business Support Community Services,Internal Trading Accounts,,DENNIS EAGLE LTD,3794455,26/06/2017,68978,91.42,0,Bearings,381300,Vehicle Mgt Industrial
South Lakeland District Council,http://opendatacommunities.org/id/district-council/south-lakeland,30/06/2017,Business Support Community Services,Internal Trading Accounts,,SOLWAY DAF,1393710,21/06/2017,68893,526.65,0,Belt,381000,Vehicle Mgt Commercial
South Lakeland District Council,http://opendatacommunities.org/id/district-council/south-lakeland,30/06/2017,Leisure and Wellbeing,Cultural Environmental Regulatory & Planning Services,http://opendatacommunities.org/def/concept/finance/sercop/objective/104,SOUTH LAKES TREE SURGEONS & LANDSCAPES,5342745,14/06/2017,68415,270,0,"Beresford Road, Windermere",241210,Horticultural Tree Trimming
South Lakeland District Council,http://opendatacommunities.org/id/district-council/south-lakeland,30/06/2017,Leisure and Wellbeing,Cultural Environmental Regulatory & Planning Services,http://opendatacommunities.org/def/concept/finance/sercop/objective/104,SOUTH LAKES TREE SURGEONS & LANDSCAPES,5342745,05/06/2017,68481,385,0,"Beresford Road, Windermere",241210,Horticultural Tree Trimming
South Lakeland District Council,http://opendatacommunities.org/id/district-council/south-lakeland,30/06/2017,Leisure and Wellbeing,Cultural Environmental Regulatory & Planning Services,http://opendatacommunities.org/def/concept/finance/sercop/objective/104,SOUTH LAKES TREE SURGEONS & LANDSCAPES,5342745,14/06/2017,68584,210,0,"Beresford Road, Windermere",241210,Horticultural Tree Trimming
South Lakeland District Council,http://opendatacommunities.org/id/district-council/south-lakeland,30/06/2017,Social Enterprise Admin,Highways & Transport Services,http://opendatacommunities.org/def/concept/finance/sercop/objective/107,ARCO LIMITED,133804,26/06/2017,68992,66.91,0,Berghaus RG Alpha Jacket Black Material,141100,Clothing Protective
South Lakeland District Council,http://opendatacommunities.org/id/district-council/south-lakeland,30/06/2017,Leisure and Wellbeing,Cultural Environmental Regulatory & Planning Services,http://opendatacommunities.org/def/concept/finance/sercop/objective/104,SOUTH LAKES TREE SURGEONS & LANDSCAPES,5342745,21/06/2017,68881,1540,0,Biskey House Year 1 multi-stemmed,241210,Horticultural Tree Trimming
South Lakeland District Council,http://opendatacommunities.org/id/district-council/south-lakeland,30/06/2017,Printing Section,Central Services,http://opendatacommunities.org/def/concept/finance/sercop/objective/102,STANDING STONE DRAWING OFFICE SUPPLIES,5128817,07/06/2017,68537,169.66,0,Black and Grey Ink for plotter,341100,Stationery Sundries
South Lakeland District Council,http://opendatacommunities.org/id/district-council/south-lakeland,30/06/2017,Business Support Community Services,Internal Trading Accounts,,EK MOTOR FACTORS LTD,838524,05/06/2017,68523,11.07,0,Blade,381400,Vehicle Mgt Maintenance
South Lakeland District Council,http://opendatacommunities.org/id/district-council/south-lakeland,30/06/2017,Business Support Community Services,Internal Trading Accounts,,EK MOTOR FACTORS LTD,838524,05/06/2017,68523,33.15,0,Blade,381400,Vehicle Mgt Maintenance
South Lakeland District Council,http://opendatacommunities.org/id/district-council/south-lakeland,30/06/2017,Business Support Community Services,Internal Trading Accounts,,EK MOTOR FACTORS LTD,838524,05/06/2017,68525,24.48,0,Blade,381400,Vehicle Mgt Maintenance
South Lakeland District Council,http://opendatacommunities.org/id/district-council/south-lakeland,30/06/2017,Business Support Community Services,Internal Trading Accounts,,EK MOTOR FACTORS LTD,838524,05/06/2017,68526,580,0,Blade,381400,Vehicle Mgt Maintenance
South Lakeland District Council,http://opendatacommunities.org/id/district-council/south-lakeland,30/06/2017,Business Support Community Services,Internal Trading Accounts,,EK MOTOR FACTORS LTD,838524,05/06/2017,68528,41.48,0,Blade,381400,Vehicle Mgt Maintenance
South Lakeland District Council,http://opendatacommunities.org/id/district-council/south-lakeland,30/06/2017,Business Support Community Services,Internal Trading Accounts,,EK MOTOR FACTORS LTD,838524,05/06/2017,68529,71.64,0,Blade,381400,Vehicle Mgt Maintenance
South Lakeland District Council,http://opendatacommunities.org/id/district-council/south-lakeland,30/06/2017,Business Support Community Services,Internal Trading Accounts,,EK MOTOR FACTORS LTD,838524,05/06/2017,68533,57.74,0,Blade,381400,Vehicle Mgt Maintenance
South Lakeland District Council,http://opendatacommunities.org/id/district-council/south-lakeland,30/06/2017,Business Support Community Services,Internal Trading Accounts,,DENNIS EAGLE LTD,3794455,05/06/2017,68548,1100,0,Blades,381300,Vehicle Mgt Industrial
South Lakeland District Council,http://opendatacommunities.org/id/district-council/south-lakeland,30/06/2017,Business Support Community Services,Internal Trading Accounts,,EK MOTOR FACTORS LTD,838524,26/06/2017,68995,32,0,Blades,381400,Vehicle Mgt Maintenance
South Lakeland District Council,http://opendatacommunities.org/id/district-council/south-lakeland,30/06/2017,Business Support Community Services,Internal Trading Accounts,,EK MOTOR FACTORS LTD,838524,26/06/2017,68996,5.49,0,Blades,381400,Vehicle Mgt Maintenance
South Lakeland District Council,http://opendatacommunities.org/id/district-council/south-lakeland,30/06/2017,Business Support Community Services,Internal Trading Accounts,,EK MOTOR FACTORS LTD,838524,26/06/2017,68997,185.36,0,Blades,381400,Vehicle Mgt Maintenance
South Lakeland District Council,http://opendatacommunities.org/id/district-council/south-lakeland,30/06/2017,Business Support Community Services,Internal Trading Accounts,,EK MOTOR FACTORS LTD,838524,26/06/2017,68998,18.84,0,Blades,381400,Vehicle Mgt Maintenance
South Lakeland District Council,http://opendatacommunities.org/id/district-council/south-lakeland,30/06/2017,Business Support Community Services,Internal Trading Accounts,,EK MOTOR FACTORS LTD,838524,26/06/2017,68999,68.94,0,Blades,381400,Vehicle Mgt Maintenance
South Lakeland District Council,http://opendatacommunities.org/id/district-council/south-lakeland,30/06/2017,Business Support Community Services,Internal Trading Accounts,,EK MOTOR FACTORS LTD,838524,26/06/2017,69000,68.94,0,Blades,381400,Vehicle Mgt Maintenance
South Lakeland District Council,http://opendatacommunities.org/id/district-council/south-lakeland,30/06/2017,Business Support Community Services,Internal Trading Accounts,,EK MOTOR FACTORS LTD,838524,26/06/2017,69001,32.79,0,Blades,381400,Vehicle Mgt Maintenance
South Lakeland District Council,http://opendatacommunities.org/id/district-council/south-lakeland,30/06/2017,Business Support Community Services,Internal Trading Accounts,,EK MOTOR FACTORS LTD,838524,26/06/2017,69002,240.75,0,Blades,381400,Vehicle Mgt Maintenance
South Lakeland District Council,http://opendatacommunities.org/id/district-council/south-lakeland,30/06/2017,Business Support Community Services,Internal Trading Accounts,,EK MOTOR FACTORS LTD,838524,26/06/2017,69004,235.87,0,Blades,381400,Vehicle Mgt Maintenance
South Lakeland District Council,http://opendatacommunities.org/id/district-council/south-lakeland,30/06/2017,Business Support Community Services,Internal Trading Accounts,,EK MOTOR FACTORS LTD,838524,26/06/2017,69006,82.52,0,Blades,381400,Vehicle Mgt Maintenance
South Lakeland District Council,http://opendatacommunities.org/id/district-council/south-lakeland,30/06/2017,Financial Services,Central Services,http://opendatacommunities.org/def/concept/finance/sercop/objective/102,BOTTOMLINE TECHNOLOGIES EUROPE LTD,3693514,07/06/2017,68428,1667.82,0,Bottomline C-Series BACS software annual,271600,ICT Software Customised & Bespoke
South Lakeland District Council,http://opendatacommunities.org/id/district-council/south-lakeland,30/06/2017,Business Support Community Services,Internal Trading Accounts,,HYDRAIR TRUCK & TRAILER PARTS LTD,,26/06/2017,68969,259.24,0,Brake discs,381500,Vehicle Mgt Parts
South Lakeland District Council,http://opendatacommunities.org/id/district-council/south-lakeland,30/06/2017,Business Support Community Services,Internal Trading Accounts,,EK MOTOR FACTORS LTD,838524,05/06/2017,68532,24.65,0,Brake fluid,381400,Vehicle Mgt Maintenance
South Lakeland District Council,http://opendatacommunities.org/id/district-council/south-lakeland,30/06/2017,Business Support Community Services,Internal Trading Accounts,,HYDRAIR TRUCK & TRAILER PARTS LTD,,05/06/2017,68522,150.68,0,Brake shoes,381500,Vehicle Mgt Parts
South Lakeland District Council,http://opendatacommunities.org/id/district-council/south-lakeland,30/06/2017,Environment and Housing,Housing,http://opendatacommunities.org/def/concept/finance/sercop/objective/108,Helsington Community Land Trust Ltd,IP031277,28/06/2017,69186,5855.1,0,Brigsteer Affordable Housing Grant June,181300,Environment Land Protection
South Lakeland District Council,http://opendatacommunities.org/id/district-council/south-lakeland,30/06/2017,Business Support Community Services,Transport Planning Policy,http://opendatacommunities.org/def/concept/finance/sercop/objective/107,CASTLE ALARMS 1981 LTD,9231500,21/06/2017,68894,2960,0,BT Redcare annual monitoring,192212,Facilities Security Equipment
South Lakeland District Council,http://opendatacommunities.org/id/district-council/south-lakeland,30/06/2017,Business Support Community Services,Internal Trading Accounts,,QPS PLASTIC LTD,,21/06/2017,68944,145,0,Bumper,109999,Building Not Elsewhere Classified
South Lakeland District Council,http://opendatacommunities.org/id/district-council/south-lakeland,30/06/2017,Business Support Community Services,Internal Trading Accounts,,QPS PLASTIC LTD,,21/06/2017,68944,9.75,0,Bumper,109999,Building Not Elsewhere Classified
South Lakeland District Council,http://opendatacommunities.org/id/district-council/south-lakeland,30/06/2017,Business Support Community Services,Internal Trading Accounts,,TAYLOR ENGINEERING & FABRICATIONS LTD,4989359,12/06/2017,68530,175.51,0,Bushes,391200,Construction Engineering
South Lakeland District Council,http://opendatacommunities.org/id/district-council/south-lakeland,30/06/2017,Business Support Community Services,Internal Trading Accounts,,TAYLOR ENGINEERING & FABRICATIONS LTD,4989359,12/06/2017,68676,63.87,0,Bushes,391200,Construction Engineering
South Lakeland District Council,http://opendatacommunities.org/id/district-council/south-lakeland,30/06/2017,Financial Services,Central Services,http://opendatacommunities.org/def/concept/finance/sercop/objective/102,BUSY BEES BENEFITS LTD,6758298,07/06/2017,68668,39.87,0,Busy Bees child care voucher service,202100,Financial Services Subscriptions
South Lakeland District Council,http://opendatacommunities.org/id/district-council/south-lakeland,30/06/2017,Financial Services,Non-Service Payments,,BUSY BEES BENEFITS LTD,6758298,07/06/2017,68669,1139,0,Busy Bees child care vouchers. based on,202100,Financial Services Subscriptions
South Lakeland District Council,http://opendatacommunities.org/id/district-council/south-lakeland,30/06/2017,Democratic and Member Services,Central Services,http://opendatacommunities.org/def/concept/finance/sercop/objective/102,RIVERBANK HOSPITALITY CATERING,,28/06/2017,69108,34.8,0,cake and juice order for Armed Forces,111000,Catering Banquet & Catering
South Lakeland District Council,http://opendatacommunities.org/id/district-council/south-lakeland,30/06/2017,Business Support Community Services,Internal Trading Accounts,,INNOVATIVE SAFETY SYSTEMS LTD,6875015,21/06/2017,68890,1146,0,Camera wash systems,192200,Facilities Security
South Lakeland District Council,http://opendatacommunities.org/id/district-council/south-lakeland,30/06/2017,Business Support Community Services,Internal Trading Accounts,,INNOVATIVE SAFETY SYSTEMS LTD,6875015,19/06/2017,68732,521,0,Cameras,192200,Facilities Security
South Lakeland District Council,http://opendatacommunities.org/id/district-council/south-lakeland,30/06/2017,Business Support Community Services,Internal Trading Accounts,,SOLWAY DAF,1393710,28/06/2017,69103,195.91,0,Cap,381000,Vehicle Mgt Commercial
South Lakeland District Council,http://opendatacommunities.org/id/district-council/south-lakeland,30/06/2017,Electoral Services,Central Services,http://opendatacommunities.org/def/concept/finance/sercop/objective/102,NORTHGATE VEHICLE HIRE LTD,1434157,07/06/2017,68488,30.28,0,Car Hire Parliamentary Election,381600,Vehicle Mgt Leasing
South Lakeland District Council,http://opendatacommunities.org/id/district-council/south-lakeland,30/06/2017,Development Implementation,Transport,http://opendatacommunities.org/def/concept/finance/sercop/objective/107,LAMBERT SMITH HAMPTON GROUP,2521225,21/06/2017,68951,1000,0,Car Parks - Resurfacing Works,999999,Unclassifiable
South Lakeland District Council,http://opendatacommunities.org/id/district-council/south-lakeland,30/06/2017,Environmental Protection,Cultural Environmental Regulatory & Planning Services,http://opendatacommunities.org/def/concept/finance/sercop/objective/104,CUMBRIA WASTE RECYCLING LTD,3162439,07/06/2017,67025,95.6,0,Cemetery bin waster collection,182012,Environment Waste Management Recycling
South Lakeland District Council,http://opendatacommunities.org/id/district-council/south-lakeland,30/06/2017,Environmental Protection,Cultural Environmental Regulatory & Planning Services,http://opendatacommunities.org/def/concept/finance/sercop/objective/104,CUMBRIA WASTE RECYCLING LTD,3162439,28/06/2017,68626,103,0,Cemetery bin waster collection,182012,Environment Waste Management Recycling
South Lakeland District Council,http://opendatacommunities.org/id/district-council/south-lakeland,30/06/2017,Cemeteries Office,Cultural Environmental Regulatory & Planning Services,http://opendatacommunities.org/def/concept/finance/sercop/objective/104,CUMBRIA WASTE RECYCLING LTD,3162439,14/06/2017,67030,34.5,0,Cemetery Waste Bin Emptying 2017-18,182012,Environment Waste Management Recycling
South Lakeland District Council,http://opendatacommunities.org/id/district-council/south-lakeland,30/06/2017,Cemeteries Office,Cultural Environmental Regulatory & Planning Services,http://opendatacommunities.org/def/concept/finance/sercop/objective/104,CUMBRIA WASTE RECYCLING LTD,3162439,14/06/2017,67031,79.5,0,Cemetery Waste Bin Emptying 2017-18,182012,Environment Waste Management Recycling
South Lakeland District Council,http://opendatacommunities.org/id/district-council/south-lakeland,30/06/2017,Cemeteries Office,Cultural Environmental Regulatory & Planning Services,http://opendatacommunities.org/def/concept/finance/sercop/objective/104,CUMBRIA WASTE RECYCLING LTD,3162439,14/06/2017,67033,61.25,0,Cemetery Waste Bin Emptying 2017-18,182012,Environment Waste Management Recycling
South Lakeland District Council,http://opendatacommunities.org/id/district-council/south-lakeland,30/06/2017,Cemeteries Office,Cultural Environmental Regulatory & Planning Services,http://opendatacommunities.org/def/concept/finance/sercop/objective/104,CUMBRIA WASTE RECYCLING LTD,3162439,14/06/2017,67034,51.65,0,Cemetery Waste Bin Emptying 2017-18,182012,Environment Waste Management Recycling
South Lakeland District Council,http://opendatacommunities.org/id/district-council/south-lakeland,30/06/2017,Cemeteries Office,Cultural Environmental Regulatory & Planning Services,http://opendatacommunities.org/def/concept/finance/sercop/objective/104,CUMBRIA WASTE RECYCLING LTD,3162439,19/06/2017,68796,33.4,0,Cemetery Waste Bin Emptying 2017-18,182012,Environment Waste Management Recycling
South Lakeland District Council,http://opendatacommunities.org/id/district-council/south-lakeland,30/06/2017,Cemeteries Office,Cultural Environmental Regulatory & Planning Services,http://opendatacommunities.org/def/concept/finance/sercop/objective/104,CUMBRIA WASTE RECYCLING LTD,3162439,19/06/2017,68797,29,0,Cemetery Waste Bin Emptying 2017-18,182012,Environment Waste Management Recycling
South Lakeland District Council,http://opendatacommunities.org/id/district-council/south-lakeland,30/06/2017,Cemeteries Office,Cultural Environmental Regulatory & Planning Services,http://opendatacommunities.org/def/concept/finance/sercop/objective/104,CUMBRIA WASTE RECYCLING LTD,3162439,19/06/2017,68798,108.55,0,Cemetery Waste Bin Emptying 2017-18,182012,Environment Waste Management Recycling
South Lakeland District Council,http://opendatacommunities.org/id/district-council/south-lakeland,30/06/2017,Cemeteries Office,Cultural Environmental Regulatory & Planning Services,http://opendatacommunities.org/def/concept/finance/sercop/objective/104,CUMBRIA WASTE RECYCLING LTD,3162439,19/06/2017,68799,75.52,0,Cemetery Waste Bin Emptying 2017-18,182012,Environment Waste Management Recycling
South Lakeland District Council,http://opendatacommunities.org/id/district-council/south-lakeland,30/06/2017,Cemeteries Office,Cultural Environmental Regulatory & Planning Services,http://opendatacommunities.org/def/concept/finance/sercop/objective/104,CUMBRIA WASTE RECYCLING LTD,3162439,19/06/2017,68800,66.8,0,Cemetery Waste Bin Emptying 2017-18,182012,Environment Waste Management Recycling
South Lakeland District Council,http://opendatacommunities.org/id/district-council/south-lakeland,30/06/2017,Cemeteries Office,Cultural Environmental Regulatory & Planning Services,http://opendatacommunities.org/def/concept/finance/sercop/objective/104,CUMBRIA WASTE RECYCLING LTD,3162439,19/06/2017,68801,63.27,0,Cemetery Waste Bin Emptying 2017-18,182012,Environment Waste Management Recycling
South Lakeland District Council,http://opendatacommunities.org/id/district-council/south-lakeland,30/06/2017,Cemeteries Office,Cultural Environmental Regulatory & Planning Services,http://opendatacommunities.org/def/concept/finance/sercop/objective/104,CUMBRIA WASTE RECYCLING LTD,3162439,19/06/2017,68802,111.2,0,Cemetery Waste Bin Emptying 2017-18,182012,Environment Waste Management Recycling
South Lakeland District Council,http://opendatacommunities.org/id/district-council/south-lakeland,30/06/2017,Social Enterprise Admin,Highways & Transport Services,http://opendatacommunities.org/def/concept/finance/sercop/objective/107,We Love Logos,,28/06/2017,69145,132.47,0,CEO Navy Blue UC101 Polo Shirts Size XL,141100,Clothing Protective
South Lakeland District Council,http://opendatacommunities.org/id/district-council/south-lakeland,30/06/2017,Development Implementation,Central Services,http://opendatacommunities.org/def/concept/finance/sercop/objective/102,THOMAS GRAHAM & SONS LTD,656879,12/06/2017,68515,333.15,0,C-Fold Paper Hand Towels Blue 1 Ply - 3,101400,Building General Materials
South Lakeland District Council,http://opendatacommunities.org/id/district-council/south-lakeland,30/06/2017,Business Support Community Services,Internal Trading Accounts,,HYDRAIR TRUCK & TRAILER PARTS LTD,,05/06/2017,68556,38.83,0,Chamber,381500,Vehicle Mgt Parts
South Lakeland District Council,http://opendatacommunities.org/id/district-council/south-lakeland,30/06/2017,Business Support Community Services,Internal Trading Accounts,,HYDRAIR TRUCK & TRAILER PARTS LTD,,05/06/2017,68560,36.18,0,Chamber,381500,Vehicle Mgt Parts
South Lakeland District Council,http://opendatacommunities.org/id/district-council/south-lakeland,30/06/2017,Business Support Community Services,Internal Trading Accounts,,HYDRAIR TRUCK & TRAILER PARTS LTD,,05/06/2017,68561,-17,0,Chamber,381500,Vehicle Mgt Parts
South Lakeland District Council,http://opendatacommunities.org/id/district-council/south-lakeland,30/06/2017,Business Support Community Services,Internal Trading Accounts,,HYDRAIR TRUCK & TRAILER PARTS LTD,,05/06/2017,68562,171,0,Chamber,381500,Vehicle Mgt Parts
South Lakeland District Council,http://opendatacommunities.org/id/district-council/south-lakeland,30/06/2017,Business Support Community Services,Internal Trading Accounts,,AINSWORTH'S GARAGE,,21/06/2017,68946,29.25,0,Change wheels,381400,Vehicle Mgt Maintenance
South Lakeland District Council,http://opendatacommunities.org/id/district-council/south-lakeland,30/06/2017,Development Management,Cultural Environmental Regulatory & Planning Services,http://opendatacommunities.org/def/concept/finance/sercop/objective/104,CHRIS BOWKER LTD,1642561,26/06/2017,68929,30,0,Checking of electrical work in,101100,Building Electrical
South Lakeland District Council,http://opendatacommunities.org/id/district-council/south-lakeland,30/06/2017,Development Management,Cultural Environmental Regulatory & Planning Services,http://opendatacommunities.org/def/concept/finance/sercop/objective/104,SALFORD CITY COUNCIL,,12/06/2017,68237,210.9,0,Checking of Structural Information in,908000,Public Bodies Council support services
South Lakeland District Council,http://opendatacommunities.org/id/district-council/south-lakeland,30/06/2017,Social Enterprise Admin,Highways & Transport Services,http://opendatacommunities.org/def/concept/finance/sercop/objective/107,METRIC GROUP LIMITED,2560839,12/06/2017,68639,990,0,Chip and Pin costs for 66 machines 1,359999,Street & Traffic Not Elsewhere Classifie
South Lakeland District Council,http://opendatacommunities.org/id/district-council/south-lakeland,30/06/2017,Development Implementation,Central Services,http://opendatacommunities.org/def/concept/finance/sercop/objective/102,ADECCO UK LIMITED,593232,07/06/2017,68598,183.9,0,Cleaner for SLDC - ( April,261400,HR Temporary & Agency Staff
South Lakeland District Council,http://opendatacommunities.org/id/district-council/south-lakeland,30/06/2017,Development Implementation,Central Services,http://opendatacommunities.org/def/concept/finance/sercop/objective/102,ADECCO UK LIMITED,593232,19/06/2017,68728,147.12,0,Cleaner for SLDC - ( April,261400,HR Temporary & Agency Staff
South Lakeland District Council,http://opendatacommunities.org/id/district-council/south-lakeland,30/06/2017,Development Implementation,Central Services,http://opendatacommunities.org/def/concept/finance/sercop/objective/102,ADECCO UK LIMITED,593232,28/06/2017,68957,183.9,0,Cleaner for SLDC - ( April,261400,HR Temporary & Agency Staff
South Lakeland District Council,http://opendatacommunities.org/id/district-council/south-lakeland,30/06/2017,Development Implementation,Central Services,http://opendatacommunities.org/def/concept/finance/sercop/objective/102,ADECCO UK LIMITED,593232,07/06/2017,68597,73.92,0,Cleaner for SLDC - (6 hours per,261400,HR Temporary & Agency Staff
South Lakeland District Council,http://opendatacommunities.org/id/district-council/south-lakeland,30/06/2017,Development Implementation,Central Services,http://opendatacommunities.org/def/concept/finance/sercop/objective/102,ADECCO UK LIMITED,593232,19/06/2017,68727,73.92,0,Cleaner for SLDC - (6 hours per,261400,HR Temporary & Agency Staff
South Lakeland District Council,http://opendatacommunities.org/id/district-council/south-lakeland,30/06/2017,Development Implementation,Central Services,http://opendatacommunities.org/def/concept/finance/sercop/objective/102,ADECCO UK LIMITED,593232,28/06/2017,68956,73.92,0,Cleaner for SLDC - (6 hours per,261400,HR Temporary & Agency Staff
South Lakeland District Council,http://opendatacommunities.org/id/district-council/south-lakeland,30/06/2017,Business Support Community Services,Internal Trading Accounts,,ARCO LIMITED,133804,05/06/2017,68500,136.36,0,Cleaning materials,141100,Clothing Protective
South Lakeland District Council,http://opendatacommunities.org/id/district-council/south-lakeland,30/06/2017,Business Support Community Services,Transport Planning Policy,http://opendatacommunities.org/def/concept/finance/sercop/objective/107,ARCO LIMITED,133804,05/06/2017,68501,64.04,0,Cleaning materials,141100,Clothing Protective
South Lakeland District Council,http://opendatacommunities.org/id/district-council/south-lakeland,30/06/2017,Business Support Community Services,Internal Trading Accounts,,ARCO LIMITED,133804,05/06/2017,68508,9.99,0,Cleaning materials,141100,Clothing Protective
South Lakeland District Council,http://opendatacommunities.org/id/district-council/south-lakeland,30/06/2017,Business Support Community Services,Internal Trading Accounts,,ARCO LIMITED,133804,07/06/2017,68604,53.29,0,Cleaning materials,141100,Clothing Protective
South Lakeland District Council,http://opendatacommunities.org/id/district-council/south-lakeland,30/06/2017,Business Support Community Services,Transport Planning Policy,http://opendatacommunities.org/def/concept/finance/sercop/objective/107,ARCO LIMITED,133804,19/06/2017,68736,18.28,0,Cleaning materials,141100,Clothing Protective
South Lakeland District Council,http://opendatacommunities.org/id/district-council/south-lakeland,30/06/2017,Business Support Community Services,Internal Trading Accounts,,ARCO LIMITED,133804,19/06/2017,68737,16.04,0,Cleaning materials,141100,Clothing Protective
South Lakeland District Council,http://opendatacommunities.org/id/district-council/south-lakeland,30/06/2017,Business Support Community Services,Internal Trading Accounts,,ARCO LIMITED,133804,19/06/2017,68853,25.48,0,Cleaning materials,141100,Clothing Protective
South Lakeland District Council,http://opendatacommunities.org/id/district-council/south-lakeland,30/06/2017,Business Support Community Services,Internal Trading Accounts,,ARCO LIMITED,133804,21/06/2017,68912,300.56,0,Cleaning materials,141100,Clothing Protective
South Lakeland District Council,http://opendatacommunities.org/id/district-council/south-lakeland,30/06/2017,Business Support Community Services,Transport Planning Policy,http://opendatacommunities.org/def/concept/finance/sercop/objective/107,ARCO LIMITED,133804,21/06/2017,68913,12.51,0,Cleaning materials,141100,Clothing Protective
South Lakeland District Council,http://opendatacommunities.org/id/district-council/south-lakeland,30/06/2017,Business Support Community Services,Internal Trading Accounts,,ARCO LIMITED,133804,21/06/2017,68913,31.36,0,Cleaning materials,141100,Clothing Protective
South Lakeland District Council,http://opendatacommunities.org/id/district-council/south-lakeland,30/06/2017,Business Support Community Services,Internal Trading Accounts,,ARCO LIMITED,133804,21/06/2017,68913,992.48,0,Cleaning materials,141100,Clothing Protective
South Lakeland District Council,http://opendatacommunities.org/id/district-council/south-lakeland,30/06/2017,Business Support Community Services,Internal Trading Accounts,,ARCO LIMITED,133804,21/06/2017,68926,10.49,0,Cleaning materials,141100,Clothing Protective
South Lakeland District Council,http://opendatacommunities.org/id/district-council/south-lakeland,30/06/2017,Business Support Community Services,Internal Trading Accounts,,ARCO LIMITED,133804,21/06/2017,68936,63.7,0,Cleaning materials,141100,Clothing Protective
South Lakeland District Council,http://opendatacommunities.org/id/district-council/south-lakeland,30/06/2017,Business Support Community Services,Internal Trading Accounts,,ARCO LIMITED,133804,21/06/2017,68938,6.37,0,Cleaning materials,141100,Clothing Protective
South Lakeland District Council,http://opendatacommunities.org/id/district-council/south-lakeland,30/06/2017,Business Support Community Services,Internal Trading Accounts,,ARCO LIMITED,133804,26/06/2017,69021,145.06,0,Cleaning materials,141100,Clothing Protective
South Lakeland District Council,http://opendatacommunities.org/id/district-council/south-lakeland,30/06/2017,Business Support Community Services,Internal Trading Accounts,,ARCO LIMITED,133804,26/06/2017,69022,57.33,0,Cleaning materials,141100,Clothing Protective
South Lakeland District Council,http://opendatacommunities.org/id/district-council/south-lakeland,30/06/2017,Business Support Community Services,Internal Trading Accounts,,ARCO LIMITED,133804,26/06/2017,69023,6.37,0,Cleaning materials,141100,Clothing Protective
South Lakeland District Council,http://opendatacommunities.org/id/district-council/south-lakeland,30/06/2017,Business Support Community Services,Internal Trading Accounts,,ARCO LIMITED,133804,26/06/2017,69024,31.85,0,Cleaning materials,141100,Clothing Protective
South Lakeland District Council,http://opendatacommunities.org/id/district-council/south-lakeland,30/06/2017,Business Support Community Services,Internal Trading Accounts,,ARCO LIMITED,133804,26/06/2017,69025,6.37,0,Cleaning materials,141100,Clothing Protective
South Lakeland District Council,http://opendatacommunities.org/id/district-council/south-lakeland,30/06/2017,Business Support Community Services,Internal Trading Accounts,,ARCO LIMITED,133804,26/06/2017,69026,6.37,0,Cleaning materials,141100,Clothing Protective
South Lakeland District Council,http://opendatacommunities.org/id/district-council/south-lakeland,30/06/2017,Business Support Community Services,Internal Trading Accounts,,ARCO LIMITED,133804,26/06/2017,69027,54.32,0,Cleaning materials,141100,Clothing Protective
South Lakeland District Council,http://opendatacommunities.org/id/district-council/south-lakeland,30/06/2017,Business Support Community Services,Transport Planning Policy,http://opendatacommunities.org/def/concept/finance/sercop/objective/107,ARCO LIMITED,133804,26/06/2017,69028,9.93,0,Cleaning materials,141100,Clothing Protective
South Lakeland District Council,http://opendatacommunities.org/id/district-council/south-lakeland,30/06/2017,Business Support Community Services,Internal Trading Accounts,,ARCO LIMITED,133804,26/06/2017,69029,38.22,0,Cleaning materials,141100,Clothing Protective
South Lakeland District Council,http://opendatacommunities.org/id/district-council/south-lakeland,30/06/2017,Business Support Community Services,Internal Trading Accounts,,ARCO LIMITED,133804,26/06/2017,69030,29.94,0,Cleaning materials,141100,Clothing Protective
South Lakeland District Council,http://opendatacommunities.org/id/district-council/south-lakeland,30/06/2017,Business Support Community Services,Internal Trading Accounts,,ARCO LIMITED,133804,28/06/2017,69161,302.74,0,Cleaning materials,141100,Clothing Protective
South Lakeland District Council,http://opendatacommunities.org/id/district-council/south-lakeland,30/06/2017,Business Support Community Services,Internal Trading Accounts,,ARCO LIMITED,133804,28/06/2017,69163,7.76,0,Cleaning materials,141100,Clothing Protective
South Lakeland District Council,http://opendatacommunities.org/id/district-council/south-lakeland,30/06/2017,Business Support Community Services,Transport Planning Policy,http://opendatacommunities.org/def/concept/finance/sercop/objective/107,ARCO LIMITED,133804,28/06/2017,69164,52.52,0,Cleaning materials,141100,Clothing Protective
South Lakeland District Council,http://opendatacommunities.org/id/district-council/south-lakeland,30/06/2017,Business Support Community Services,Internal Trading Accounts,,ARCO LIMITED,133804,28/06/2017,69164,27.09,0,Cleaning materials,141100,Clothing Protective
South Lakeland District Council,http://opendatacommunities.org/id/district-council/south-lakeland,30/06/2017,Business Support Community Services,Transport Planning Policy,http://opendatacommunities.org/def/concept/finance/sercop/objective/107,ARCO LIMITED,133804,28/06/2017,69165,22.82,0,Cleaning materials,141100,Clothing Protective
South Lakeland District Council,http://opendatacommunities.org/id/district-council/south-lakeland,30/06/2017,Business Support Community Services,Internal Trading Accounts,,ARCO LIMITED,133804,28/06/2017,69165,5.49,0,Cleaning materials,141100,Clothing Protective
South Lakeland District Council,http://opendatacommunities.org/id/district-council/south-lakeland,30/06/2017,Business Support Community Services,Internal Trading Accounts,,ARCO LIMITED,133804,28/06/2017,69165,167.46,0,Cleaning materials,141100,Clothing Protective
South Lakeland District Council,http://opendatacommunities.org/id/district-council/south-lakeland,30/06/2017,Business Support Community Services,Internal Trading Accounts,,ARCO LIMITED,133804,28/06/2017,69165,617.66,0,Cleaning materials,141100,Clothing Protective
South Lakeland District Council,http://opendatacommunities.org/id/district-council/south-lakeland,30/06/2017,Business Support Community Services,Housing Services,http://opendatacommunities.org/def/concept/finance/sercop/objective/108,My Dream Cleaners Ltd,9839482,07/06/2017,68621,255,0,Cleaning services,131320,Cleaning & Janitorial Cleaning Service
South Lakeland District Council,http://opendatacommunities.org/id/district-council/south-lakeland,30/06/2017,Development Implementation,Central Services,http://opendatacommunities.org/def/concept/finance/sercop/objective/102,J S Cleaning Services,,05/06/2017,68471,196,0,Cleaning Services for SLDC Ulverston,131010,Cleaning & Janitorial Cleaning Materials
South Lakeland District Council,http://opendatacommunities.org/id/district-council/south-lakeland,30/06/2017,Development Implementation,Central Services,http://opendatacommunities.org/def/concept/finance/sercop/objective/102,J S Cleaning Services,,05/06/2017,68472,180,0,Cleaning Services for SLDC Ulverston,131010,Cleaning & Janitorial Cleaning Materials
South Lakeland District Council,http://opendatacommunities.org/id/district-council/south-lakeland,30/06/2017,Development Implementation,Central Services,http://opendatacommunities.org/def/concept/finance/sercop/objective/102,J S Cleaning Services,,05/06/2017,68473,170,0,Cleaning Services for SLDC Ulverston,131010,Cleaning & Janitorial Cleaning Materials
South Lakeland District Council,http://opendatacommunities.org/id/district-council/south-lakeland,30/06/2017,Development Implementation,Central Services,http://opendatacommunities.org/def/concept/finance/sercop/objective/102,J S Cleaning Services,,05/06/2017,68474,60,0,Cleaning Services for SLDC Ulverston,131010,Cleaning & Janitorial Cleaning Materials
South Lakeland District Council,http://opendatacommunities.org/id/district-council/south-lakeland,30/06/2017,Development Implementation,Central Services,http://opendatacommunities.org/def/concept/finance/sercop/objective/102,J S Cleaning Services,,05/06/2017,68475,70,0,Cleaning Services for SLDC Ulverston,131010,Cleaning & Janitorial Cleaning Materials
South Lakeland District Council,http://opendatacommunities.org/id/district-council/south-lakeland,30/06/2017,Business Support Community Services,Cultural Environmental Regulatory & Planning Services,http://opendatacommunities.org/def/concept/finance/sercop/objective/104,OCS GROUP LTD T/A CANNON HYGIENE LTD,1298292,05/06/2017,68568,2347.94,0,Clinical waste collections - 2017/18,131011,Cleaning & Janitorial Cleaning Materials
South Lakeland District Council,http://opendatacommunities.org/id/district-council/south-lakeland,30/06/2017,Business Support Community Services,Internal Trading Accounts,,AINSWORTH'S GARAGE,,28/06/2017,69104,29.25,0,COC,381400,Vehicle Mgt Maintenance
South Lakeland District Council,http://opendatacommunities.org/id/district-council/south-lakeland,30/06/2017,Revenues and Benefits,Non-Service Payments,,Kendal BID Ltd,8986243,19/06/2017,68821,29678.02,0,Collection figures for May 2017,201700,Financial Services Grants
South Lakeland District Council,http://opendatacommunities.org/id/district-council/south-lakeland,30/06/2017,Revenues and Benefits,Non-Service Payments,,Ulverston BID Company Ltd,9761005,14/06/2017,68708,4399.21,0,Collection figures for May 2017,201700,Financial Services Grants
South Lakeland District Council,http://opendatacommunities.org/id/district-council/south-lakeland,30/06/2017,Business Support Community Services,Cultural Environmental Regulatory & Planning Services,http://opendatacommunities.org/def/concept/finance/sercop/objective/104,FOOD SAFETY DIRECT LIMITED,5294095,05/06/2017,68580,229.05,0,Comark C22 EHO Kit,221000,Health & Safety� Products
South Lakeland District Council,http://opendatacommunities.org/id/district-council/south-lakeland,30/06/2017,Financial Services,Non-Service Payments,,COMPUTERSHARE VOUCHER SERVICES LTD,4968447,07/06/2017,68667,1430.93,0,Computershare child care vouchers. New,202100,Financial Services Subscriptions
South Lakeland District Council,http://opendatacommunities.org/id/district-council/south-lakeland,30/06/2017,Human Resources,Central Services,http://opendatacommunities.org/def/concept/finance/sercop/objective/102,Choose Occupational Health,7365943,28/06/2017,69225,360,0,Confidential counselling sessions CC,191800,Facilities Public Relations & Image
South Lakeland District Council,http://opendatacommunities.org/id/district-council/south-lakeland,30/06/2017,Business Support Community Services,Internal Trading Accounts,,COMPASS COMPONENTS,,05/06/2017,68470,150.35,0,Consumables 01/04/17 - 31/03/18,101400,Building General Materials
South Lakeland District Council,http://opendatacommunities.org/id/district-council/south-lakeland,30/06/2017,Social Enterprise Admin,Highways & Transport Services,http://opendatacommunities.org/def/concept/finance/sercop/objective/107,CREDIT CALL LTD (NCR),,30/06/2017,68685,1259.78,0,Credit call commission 2017/18,209999,Financial Services Not Elsewhere Classif
South Lakeland District Council,http://opendatacommunities.org/id/district-council/south-lakeland,30/06/2017,Business Support Community Services,SLDC as Agent,,Cumbria Neighbourhood Watch Association,5854713,19/06/2017,68774,500,0,CSP funding for Farmwatch Property,908001,Public Bodies Other Public Bodies
South Lakeland District Council,http://opendatacommunities.org/id/district-council/south-lakeland,30/06/2017,Policy & Partnerships,Central Services,http://opendatacommunities.org/def/concept/finance/sercop/objective/102,CASTLERIGG CONSULTING,6747285,14/06/2017,68575,735,0,Customer Connect - support system and,159999,Consultancy Not Elsewhere Classified
South Lakeland District Council,http://opendatacommunities.org/id/district-council/south-lakeland,30/06/2017,ICT Group,Central Services,http://opendatacommunities.org/def/concept/finance/sercop/objective/102,DAISY COMMUNICATIONS LTD,4145329,19/06/2017,68839,341.37,0,"Daisy Line Rental, various numbers,",271700,ICT Telecommunications Fixed
South Lakeland District Council,http://opendatacommunities.org/id/district-council/south-lakeland,30/06/2017,ICT Group,Central Services,http://opendatacommunities.org/def/concept/finance/sercop/objective/102,DAISY COMMUNICATIONS LTD,4145329,19/06/2017,68839,113.15,0,"Daisy Line Rental, various numbers,",271700,ICT Telecommunications Fixed
South Lakeland District Council,http://opendatacommunities.org/id/district-council/south-lakeland,30/06/2017,Business Support Community Services,SLDC as Agent,,CUMBRIA COUNTY COUNCIL,,26/06/2017,67982,162,0,DBS Checks for Taxi Drivers,908000,Public Bodies Council support services
South Lakeland District Council,http://opendatacommunities.org/id/district-council/south-lakeland,30/06/2017,Business Support Community Services,SLDC as Agent,,CUMBRIA COUNTY COUNCIL,,26/06/2017,68833,54,0,DBS Checks for Taxi Drivers,908000,Public Bodies Council support services
South Lakeland District Council,http://opendatacommunities.org/id/district-council/south-lakeland,30/06/2017,Business Support Community Services,Internal Trading Accounts,,TRUCK TRANSMISSIONS LTD,2460094,21/06/2017,68945,2950,0,Differential,381500,Vehicle Mgt Parts
South Lakeland District Council,http://opendatacommunities.org/id/district-council/south-lakeland,30/06/2017,Business Support Community Services,Internal Trading Accounts,,Harry Park Tyres Ltd,8131208,14/06/2017,68696,30,0,Disposal,381500,Vehicle Mgt Parts
South Lakeland District Council,http://opendatacommunities.org/id/district-council/south-lakeland,30/06/2017,Business Support Community Services,Internal Trading Accounts,,Harry Park Tyres Ltd,8131208,14/06/2017,68697,1250,0,Disposal,381500,Vehicle Mgt Parts
South Lakeland District Council,http://opendatacommunities.org/id/district-council/south-lakeland,30/06/2017,Business Support Community Services,Internal Trading Accounts,,Harry Park Tyres Ltd,8131208,19/06/2017,68701,71.5,0,Disposal,381500,Vehicle Mgt Parts
South Lakeland District Council,http://opendatacommunities.org/id/district-council/south-lakeland,30/06/2017,Business Support Community Services,Internal Trading Accounts,,Harry Park Tyres Ltd,8131208,19/06/2017,68703,195,0,Disposal,381500,Vehicle Mgt Parts
South Lakeland District Council,http://opendatacommunities.org/id/district-council/south-lakeland,30/06/2017,Business Support Community Services,Internal Trading Accounts,,Harry Park Tyres Ltd,8131208,21/06/2017,68920,450,0,Disposal,381500,Vehicle Mgt Parts
South Lakeland District Council,http://opendatacommunities.org/id/district-council/south-lakeland,30/06/2017,Printing Section,Central Services,http://opendatacommunities.org/def/concept/finance/sercop/objective/102,ROSEFOX PAPER LIMITED,1655083,28/06/2017,69212,222.96,0,DL Window envelopes self seal,341000,Stationery Paper
South Lakeland District Council,http://opendatacommunities.org/id/district-council/south-lakeland,30/06/2017,Social Enterprise Admin,Highways & Transport Services,http://opendatacommunities.org/def/concept/finance/sercop/objective/107,MOUCHEL LTD,1686040,14/06/2017,66986,32.47,0,DVLA checks from 1 April 2016 to 31,351400,Street & Traffic Traffic Control
South Lakeland District Council,http://opendatacommunities.org/id/district-council/south-lakeland,30/06/2017,ICT Group,Central Services,http://opendatacommunities.org/def/concept/finance/sercop/objective/102,ITPS Professional Services Ltd (DD),,30/06/2017,67602,298,0,Ecclerigg CCTV - Installation of PSTN,271700,ICT Telecommunications Fixed
South Lakeland District Council,http://opendatacommunities.org/id/district-council/south-lakeland,30/06/2017,ICT Group,Central Services,http://opendatacommunities.org/def/concept/finance/sercop/objective/102,ITPS Professional Services Ltd (DD),,30/06/2017,67602,11.71,0,Ecclerigg CCTV - Installation of PSTN,271700,ICT Telecommunications Fixed
South Lakeland District Council,http://opendatacommunities.org/id/district-council/south-lakeland,30/06/2017,ICT Group,Central Services,http://opendatacommunities.org/def/concept/finance/sercop/objective/102,ITPS Professional Services Ltd (DD),,30/06/2017,67602,1.22,0,Ecclerigg CCTV - Installation of PSTN,271700,ICT Telecommunications Fixed
South Lakeland District Council,http://opendatacommunities.org/id/district-council/south-lakeland,30/06/2017,ICT Group,Central Services,http://opendatacommunities.org/def/concept/finance/sercop/objective/102,ITPS Professional Services Ltd (DD),,30/06/2017,67968,151,0,Ecclerigg CCTV - Installation of PSTN,271700,ICT Telecommunications Fixed
South Lakeland District Council,http://opendatacommunities.org/id/district-council/south-lakeland,30/06/2017,ICT Group,Central Services,http://opendatacommunities.org/def/concept/finance/sercop/objective/102,ITPS Professional Services Ltd (DD),,30/06/2017,67968,151.63,0,Ecclerigg CCTV - Installation of PSTN,271700,ICT Telecommunications Fixed
South Lakeland District Council,http://opendatacommunities.org/id/district-council/south-lakeland,30/06/2017,ICT Group,Central Services,http://opendatacommunities.org/def/concept/finance/sercop/objective/102,ITPS Professional Services Ltd (DD),,30/06/2017,67968,0.17,0,Ecclerigg CCTV - Installation of PSTN,271700,ICT Telecommunications Fixed
South Lakeland District Council,http://opendatacommunities.org/id/district-council/south-lakeland,30/06/2017,ICT Group,Central Services,http://opendatacommunities.org/def/concept/finance/sercop/objective/102,ITPS Professional Services Ltd (DD),,30/06/2017,68952,151,0,Ecclerigg CCTV - Installation of PSTN,271700,ICT Telecommunications Fixed
South Lakeland District Council,http://opendatacommunities.org/id/district-council/south-lakeland,30/06/2017,ICT Group,Central Services,http://opendatacommunities.org/def/concept/finance/sercop/objective/102,ITPS Professional Services Ltd (DD),,30/06/2017,68952,42,0,Ecclerigg CCTV - Installation of PSTN,271700,ICT Telecommunications Fixed
South Lakeland District Council,http://opendatacommunities.org/id/district-council/south-lakeland,30/06/2017,ICT Group,Central Services,http://opendatacommunities.org/def/concept/finance/sercop/objective/102,ITPS Professional Services Ltd (DD),,30/06/2017,68952,2.11,0,Ecclerigg CCTV - Installation of PSTN,271700,ICT Telecommunications Fixed
South Lakeland District Council,http://opendatacommunities.org/id/district-council/south-lakeland,30/06/2017,Development Strategy,Cultural Environmental Regulatory & Planning Services,http://opendatacommunities.org/def/concept/finance/sercop/objective/104,CUMBRIA WILDLIFE TRUST,,12/06/2017,67113,1304,0,Ecologist advice Draft Development Brief,159999,Consultancy Not Elsewhere Classified
South Lakeland District Council,http://opendatacommunities.org/id/district-council/south-lakeland,30/06/2017,ICT Group,Central Services,http://opendatacommunities.org/def/concept/finance/sercop/objective/102,EE UK LTD (NCR),,30/06/2017,69334,167.26,0,EE WiFi dongle ,351000,Street & Traffic Parking Car Parks
South Lakeland District Council,http://opendatacommunities.org/id/district-council/south-lakeland,30/06/2017,Business Support Community Services,Housing Services,http://opendatacommunities.org/def/concept/finance/sercop/objective/108,The County Hotel,1815672,05/06/2017,68586,175,0,Emergency accommodation,250000,Housing
South Lakeland District Council,http://opendatacommunities.org/id/district-council/south-lakeland,30/06/2017,Business Support Community Services,Cultural Environmental Regulatory & Planning Services,http://opendatacommunities.org/def/concept/finance/sercop/objective/104,CUMBRIA WASTE RECYCLING LTD,3162439,21/06/2017,68927,15017.3,0,Empty recycling banks in April to,182012,Environment Waste Management Recycling
South Lakeland District Council,http://opendatacommunities.org/id/district-council/south-lakeland,30/06/2017,Human Resources,Central Services,http://opendatacommunities.org/def/concept/finance/sercop/objective/102,CUMBRIA COUNTY COUNCIL,,26/06/2017,68834,162,0,Enhanced,908000,Public Bodies Council support services
South Lakeland District Council,http://opendatacommunities.org/id/district-council/south-lakeland,30/06/2017,Financial Services,Central Services,http://opendatacommunities.org/def/concept/finance/sercop/objective/102,Fred Harvey Associates,,07/06/2017,68630,300,0,EU Procurement Support 2016/2017,150000,Consultancy
South Lakeland District Council,http://opendatacommunities.org/id/district-council/south-lakeland,30/06/2017,Financial Services,Central Services,http://opendatacommunities.org/def/concept/finance/sercop/objective/102,GRANT THORNTON UK LLP,OC307742,21/06/2017,68924,13962.75,0,Exgternal Audit Service April to March,201000,Financial Services Accountancy
South Lakeland District Council,http://opendatacommunities.org/id/district-council/south-lakeland,30/06/2017,Electoral Services,Central Services,http://opendatacommunities.org/def/concept/finance/sercop/objective/102,SCI PRINT LTD,,21/06/2017,68909,220,0,Extra Parliamentary Ballot Papers,191600,Facilities Printing
South Lakeland District Council,http://opendatacommunities.org/id/district-council/south-lakeland,30/06/2017,Legal Services,Central Services,http://opendatacommunities.org/def/concept/finance/sercop/objective/102,VENN GROUP RECRUITMENT SOLUTIONS,,14/06/2017,68590,562.2,0,Fees  as a continuation of,261400,HR Temporary & Agency Staff
South Lakeland District Council,http://opendatacommunities.org/id/district-council/south-lakeland,30/06/2017,Legal Services,Central Services,http://opendatacommunities.org/def/concept/finance/sercop/objective/102,VENN GROUP RECRUITMENT SOLUTIONS,,14/06/2017,68216,1400.19,0,Fees for N. Ofili from w/k end. 09/04/17,261400,HR Temporary & Agency Staff
South Lakeland District Council,http://opendatacommunities.org/id/district-council/south-lakeland,30/06/2017,Legal Services,Cultural Environmental Regulatory & Planning Services,http://opendatacommunities.org/def/concept/finance/sercop/objective/104,Mr Jonathan Powell,,14/06/2017,68538,6000,0,Fees in respect of ,281200,Legal Services General Support
South Lakeland District Council,http://opendatacommunities.org/id/district-council/south-lakeland,30/06/2017,Legal Services,Cultural Environmental Regulatory & Planning Services,http://opendatacommunities.org/def/concept/finance/sercop/objective/104,Timothy Leader,,19/06/2017,68875,440,0,Fees in respect of Mr T Leader Monton,281200,Legal Services General Support
South Lakeland District Council,http://opendatacommunities.org/id/district-council/south-lakeland,30/06/2017,Legal Services,Central Services,http://opendatacommunities.org/def/concept/finance/sercop/objective/102,Eventus Legal Recruitment,,21/06/2017,68873,300,0,Fees re:  from w/k/ end,261300,HR Recruitment & Assessment
South Lakeland District Council,http://opendatacommunities.org/id/district-council/south-lakeland,30/06/2017,Legal Services,Central Services,http://opendatacommunities.org/def/concept/finance/sercop/objective/102,Eventus Legal Recruitment,,28/06/2017,69187,300,0,Fees re:  from w/k/ end,261300,HR Recruitment & Assessment
South Lakeland District Council,http://opendatacommunities.org/id/district-council/south-lakeland,30/06/2017,Legal Services,Cultural Environmental Regulatory & Planning Services,http://opendatacommunities.org/def/concept/finance/sercop/objective/104,ANTHONY COLLINS SOLICITORS,OC313432,07/06/2017,68606,2000,0,Fees re:  Grounds Maintenance Contract,281300,Legal Services Legal Opinion
South Lakeland District Council,http://opendatacommunities.org/id/district-council/south-lakeland,30/06/2017,Business Support Community Services,Internal Trading Accounts,,ETS UK LIMITED,2588203,28/06/2017,69156,515,0,Filter kits,381500,Vehicle Mgt Parts
South Lakeland District Council,http://opendatacommunities.org/id/district-council/south-lakeland,30/06/2017,Business Support Community Services,Internal Trading Accounts,,GARWOOD EUROPE LTD,4333504,26/06/2017,68979,211,0,Filters,182011,Environment Waste Management Consumables
South Lakeland District Council,http://opendatacommunities.org/id/district-council/south-lakeland,30/06/2017,Environment and Housing,Housing,http://opendatacommunities.org/def/concept/finance/sercop/objective/108,ENVIRONMENT & HOUSING GRANTS,,12/06/2017,68757,4000,0,"First and Second Floors, 13 Lowther",201700,Financial Services Grants
South Lakeland District Council,http://opendatacommunities.org/id/district-council/south-lakeland,30/06/2017,Business Support Community Services,Internal Trading Accounts,,AINSWORTH'S GARAGE,,28/06/2017,69155,29.25,0,Fit COC,381400,Vehicle Mgt Maintenance
South Lakeland District Council,http://opendatacommunities.org/id/district-council/south-lakeland,30/06/2017,Business Support Community Services,Cultural Environmental Regulatory & Planning Services,http://opendatacommunities.org/def/concept/finance/sercop/objective/104,JEWSON LIMITED,348407,21/06/2017,68923,39.67,0,Fixtures & fittings 2017/18,101400,Building General Materials
South Lakeland District Council,http://opendatacommunities.org/id/district-council/south-lakeland,30/06/2017,Business Support Community Services,Internal Trading Accounts,,BPI RECYCLED PRODUCTS,350729,07/06/2017,68588,271,0,"FL0034. Heavy Duty Bin Liner. 27"" x 46""",182013,Environment Waste Mgt Waste Collection
South Lakeland District Council,http://opendatacommunities.org/id/district-council/south-lakeland,30/06/2017,Development Implementation,SLDC as Agent,,Cactus Creative Ltd,4198363,21/06/2017,68887,240,0,For creative concepts and design of the,191000,Facilities Advertising
South Lakeland District Council,http://opendatacommunities.org/id/district-council/south-lakeland,30/06/2017,Social Enterprise Admin,Cultural Environmental Regulatory & Planning Services,http://opendatacommunities.org/def/concept/finance/sercop/objective/104,CONTINENTAL LANDSCAPES LTD,2108452,12/06/2017,68680,2000,0,For disposal of waste to Kendal Fell,391310,Construction Open Spaces Construction
South Lakeland District Council,http://opendatacommunities.org/id/district-council/south-lakeland,30/06/2017,Social Enterprise Admin,Cultural Environmental Regulatory & Planning Services,http://opendatacommunities.org/def/concept/finance/sercop/objective/104,LDA Cleaning Services Ltd,8917986,12/06/2017,68712,180,0,For the cleaning of the disabled toilet,131310,Cleaning & Janitorial Cleaning Service
South Lakeland District Council,http://opendatacommunities.org/id/district-council/south-lakeland,30/06/2017,Social Enterprise Admin,Cultural Environmental Regulatory & Planning Services,http://opendatacommunities.org/def/concept/finance/sercop/objective/104,LDA Cleaning Services Ltd,8917986,19/06/2017,68828,140,0,For the cleaning of the disabled toilet,131310,Cleaning & Janitorial Cleaning Service
South Lakeland District Council,http://opendatacommunities.org/id/district-council/south-lakeland,30/06/2017,Social Enterprise Admin,Cultural Environmental Regulatory & Planning Services,http://opendatacommunities.org/def/concept/finance/sercop/objective/104,LDA Cleaning Services Ltd,8917986,28/06/2017,69202,140,0,For the cleaning of the disabled toilet,131310,Cleaning & Janitorial Cleaning Service
South Lakeland District Council,http://opendatacommunities.org/id/district-council/south-lakeland,30/06/2017,Social Enterprise Admin,Cultural Environmental Regulatory & Planning Services,http://opendatacommunities.org/def/concept/finance/sercop/objective/104,LDA Cleaning Services Ltd,8917986,12/06/2017,68686,175,0,For the continuation of cleaning for the,131310,Cleaning & Janitorial Cleaning Service
South Lakeland District Council,http://opendatacommunities.org/id/district-council/south-lakeland,30/06/2017,ICT Group,Central Services,http://opendatacommunities.org/def/concept/finance/sercop/objective/102,LAN2LAN Limited,,28/06/2017,68885,941,0,Fortinet FortiAnalyser VM 24x7,279999,ICT Not Elsewhere Classified
South Lakeland District Council,http://opendatacommunities.org/id/district-council/south-lakeland,30/06/2017,ICT Group,Central Services,http://opendatacommunities.org/def/concept/finance/sercop/objective/102,LAN2LAN Limited,,21/06/2017,68884,110,0,Fortinet FortiWifi 60D 8x5 Maintenance,279999,ICT Not Elsewhere Classified
South Lakeland District Council,http://opendatacommunities.org/id/district-council/south-lakeland,30/06/2017,Social Enterprise Admin,Highways & Transport Services,http://opendatacommunities.org/def/concept/finance/sercop/objective/107,ALLSTAR BUSINESS SOLUTIONS LTD (NCR),2631112,30/06/2017,68715,108.86,0,Fuel for CEO enforcement vehicles,381600,Vehicle Mgt Leasing
South Lakeland District Council,http://opendatacommunities.org/id/district-council/south-lakeland,30/06/2017,Social Enterprise Admin,Highways & Transport Services,http://opendatacommunities.org/def/concept/finance/sercop/objective/107,ALLSTAR BUSINESS SOLUTIONS LTD (NCR),2631112,30/06/2017,68715,128.21,0,Fuel for CEO enforcement vehicles,381600,Vehicle Mgt Leasing
South Lakeland District Council,http://opendatacommunities.org/id/district-council/south-lakeland,30/06/2017,Social Enterprise Admin,Cultural Environmental Regulatory & Planning Services,http://opendatacommunities.org/def/concept/finance/sercop/objective/104,ALLSTAR BUSINESS SOLUTIONS LTD (NCR),2631112,30/06/2017,68715,153.73,0,Fuel for CEO enforcement vehicles,381600,Vehicle Mgt Leasing
South Lakeland District Council,http://opendatacommunities.org/id/district-council/south-lakeland,30/06/2017,Business Support Community Services,Internal Trading Accounts,,ALLSTAR BUSINESS SOLUTIONS LTD (NCR),2631112,30/06/2017,68849,5145.68,0,Fuel to 31/05/17,381600,Vehicle Mgt Leasing
South Lakeland District Council,http://opendatacommunities.org/id/district-council/south-lakeland,30/06/2017,Business Support Community Services,Internal Trading Accounts,,ALLSTAR BUSINESS SOLUTIONS LTD (NCR),2631112,30/06/2017,68849,198.55,0,Fuel to 31/05/17,381600,Vehicle Mgt Leasing
South Lakeland District Council,http://opendatacommunities.org/id/district-council/south-lakeland,30/06/2017,Business Support Community Services,Internal Trading Accounts,,ALLSTAR BUSINESS SOLUTIONS LTD (NCR),2631112,30/06/2017,68849,13841.3,0,Fuel to 31/05/17,381600,Vehicle Mgt Leasing
South Lakeland District Council,http://opendatacommunities.org/id/district-council/south-lakeland,30/06/2017,Business Support Community Services,Internal Trading Accounts,,H WICKS (LINDAL) LTD,754590,21/06/2017,67531,300,0,"Gate fees, handling, transport & baling",182012,Environment Waste Management Recycling
South Lakeland District Council,http://opendatacommunities.org/id/district-council/south-lakeland,30/06/2017,Business Support Community Services,Internal Trading Accounts,,H WICKS (LINDAL) LTD,754590,12/06/2017,68673,600,0,"Gate fees, handling, transport & baling",182012,Environment Waste Management Recycling
South Lakeland District Council,http://opendatacommunities.org/id/district-council/south-lakeland,30/06/2017,Business Support Community Services,Internal Trading Accounts,,H WICKS (LINDAL) LTD,754590,21/06/2017,68932,300,0,"Gate fees, handling, transport & baling",182012,Environment Waste Management Recycling
South Lakeland District Council,http://opendatacommunities.org/id/district-council/south-lakeland,30/06/2017,Business Support Community Services,Internal Trading Accounts,,H WICKS (LINDAL) LTD,754590,28/06/2017,69162,1946.88,0,"Gate fees, handling, transport & baling",182012,Environment Waste Management Recycling
South Lakeland District Council,http://opendatacommunities.org/id/district-council/south-lakeland,30/06/2017,Business Support Community Services,Internal Trading Accounts,,H WICKS (LINDAL) LTD,754590,28/06/2017,69223,900,0,"Gate fees, handling, transport & baling",182012,Environment Waste Management Recycling
South Lakeland District Council,http://opendatacommunities.org/id/district-council/south-lakeland,30/06/2017,Human Resources,Central Services,http://opendatacommunities.org/def/concept/finance/sercop/objective/102,PILAT EUROPE LTD,4207292,05/06/2017,68393,1125,0,Gauge Job Evaluation System Period:,271600,ICT Software Customised & Bespoke
South Lakeland District Council,http://opendatacommunities.org/id/district-council/south-lakeland,30/06/2017,Business Support Community Services,Cultural Environmental Regulatory & Planning Services,http://opendatacommunities.org/def/concept/finance/sercop/objective/104,GLASDON UK LTD,2160576,07/06/2017,65833,3850.77,0,Glasdon Jubilee� Litter Binin Black with,109999,Building Not Elsewhere Classified
South Lakeland District Council,http://opendatacommunities.org/id/district-council/south-lakeland,30/06/2017,Social Enterprise Admin,Cultural Environmental Regulatory & Planning Services,http://opendatacommunities.org/def/concept/finance/sercop/objective/104,CONTINENTAL LANDSCAPES LTD,2108452,12/06/2017,68679,3647.15,0,Gravedigging for April and May 2017,391310,Construction Open Spaces Construction
South Lakeland District Council,http://opendatacommunities.org/id/district-council/south-lakeland,30/06/2017,Business Support Community Services,Internal Trading Accounts,,BRIAN ARMISTEAD LTD T/A SINKFALL RECYCLI,4133280,05/06/2017,68505,1070.92,0,Green waste tipping - 2017/18,391110,Construction Buildings Construction
South Lakeland District Council,http://opendatacommunities.org/id/district-council/south-lakeland,30/06/2017,Business Support Community Services,Internal Trading Accounts,,BRIAN ARMISTEAD LTD T/A SINKFALL RECYCLI,4133280,12/06/2017,68672,2325.93,0,Green waste tipping - 2017/18,391110,Construction Buildings Construction
South Lakeland District Council,http://opendatacommunities.org/id/district-council/south-lakeland,30/06/2017,Business Support Community Services,Internal Trading Accounts,,BRIAN ARMISTEAD LTD T/A SINKFALL RECYCLI,4133280,12/06/2017,68750,1655.99,0,Green waste tipping - 2017/18,391110,Construction Buildings Construction
South Lakeland District Council,http://opendatacommunities.org/id/district-council/south-lakeland,30/06/2017,Business Support Community Services,Internal Trading Accounts,,BRIAN ARMISTEAD LTD T/A SINKFALL RECYCLI,4133280,21/06/2017,68928,2482.55,0,Green waste tipping - 2017/18,391110,Construction Buildings Construction
South Lakeland District Council,http://opendatacommunities.org/id/district-council/south-lakeland,30/06/2017,Business Support Community Services,Internal Trading Accounts,,BRIAN ARMISTEAD LTD T/A SINKFALL RECYCLI,4133280,28/06/2017,69166,1414.5,0,Green waste tipping - 2017/18,391110,Construction Buildings Construction
South Lakeland District Council,http://opendatacommunities.org/id/district-council/south-lakeland,30/06/2017,Development Implementation,Cultural Environmental Regulatory & Planning Services,http://opendatacommunities.org/def/concept/finance/sercop/objective/104,EXPERIAN LTD,653331,21/06/2017,68878,3000,0,GVA Data Analysis,209999,Financial Services Not Elsewhere Classif
South Lakeland District Council,http://opendatacommunities.org/id/district-council/south-lakeland,30/06/2017,Business Support Community Services,Internal Trading Accounts,,SPECSAVERS,2604077,21/06/2017,68895,20.83,0,Hearing tests,311400,Healthcare Fees
South Lakeland District Council,http://opendatacommunities.org/id/district-council/south-lakeland,30/06/2017,Business Support Community Services,Internal Trading Accounts,,SPECSAVERS,2604077,21/06/2017,68896,20.83,0,Hearing tests,311400,Healthcare Fees
South Lakeland District Council,http://opendatacommunities.org/id/district-council/south-lakeland,30/06/2017,Business Support Community Services,Internal Trading Accounts,,SPECSAVERS,2604077,21/06/2017,68897,20.83,0,Hearing tests,311400,Healthcare Fees
South Lakeland District Council,http://opendatacommunities.org/id/district-council/south-lakeland,30/06/2017,Business Support Community Services,Internal Trading Accounts,,SPECSAVERS,2604077,21/06/2017,68898,20.83,0,Hearing tests,311400,Healthcare Fees
South Lakeland District Council,http://opendatacommunities.org/id/district-council/south-lakeland,30/06/2017,Business Support Community Services,Internal Trading Accounts,,SPECSAVERS,2604077,21/06/2017,68900,20.83,0,Hearing tests,311400,Healthcare Fees
South Lakeland District Council,http://opendatacommunities.org/id/district-council/south-lakeland,30/06/2017,Business Support Community Services,Internal Trading Accounts,,SPECSAVERS,2604077,21/06/2017,68902,20.83,0,Hearing tests,311400,Healthcare Fees
South Lakeland District Council,http://opendatacommunities.org/id/district-council/south-lakeland,30/06/2017,Business Support Community Services,Internal Trading Accounts,,SPECSAVERS,2604077,21/06/2017,68904,20.83,0,Hearing tests,311400,Healthcare Fees
South Lakeland District Council,http://opendatacommunities.org/id/district-council/south-lakeland,30/06/2017,Business Support Community Services,Internal Trading Accounts,,SPECSAVERS,2604077,21/06/2017,68911,20.83,0,Hearing tests,311400,Healthcare Fees
South Lakeland District Council,http://opendatacommunities.org/id/district-council/south-lakeland,30/06/2017,Business Support Community Services,Internal Trading Accounts,,SPECSAVERS,2604077,21/06/2017,68914,20.83,0,Hearing tests,311400,Healthcare Fees
South Lakeland District Council,http://opendatacommunities.org/id/district-council/south-lakeland,30/06/2017,Business Support Community Services,Internal Trading Accounts,,SPECSAVERS,2604077,21/06/2017,68916,20.83,0,Hearing tests,311400,Healthcare Fees
South Lakeland District Council,http://opendatacommunities.org/id/district-council/south-lakeland,30/06/2017,Business Support Community Services,Internal Trading Accounts,,SPECSAVERS,2604077,21/06/2017,68917,20.83,0,Hearing tests,311400,Healthcare Fees
South Lakeland District Council,http://opendatacommunities.org/id/district-council/south-lakeland,30/06/2017,Business Support Community Services,Internal Trading Accounts,,SPECSAVERS,2604077,21/06/2017,68918,20.83,0,Hearing tests,311400,Healthcare Fees
South Lakeland District Council,http://opendatacommunities.org/id/district-council/south-lakeland,30/06/2017,Business Support Community Services,Internal Trading Accounts,,SPECSAVERS,2604077,21/06/2017,68919,20.83,0,Hearing tests,311400,Healthcare Fees
South Lakeland District Council,http://opendatacommunities.org/id/district-council/south-lakeland,30/06/2017,Development Strategy,Cultural Environmental Regulatory & Planning Services,http://opendatacommunities.org/def/concept/finance/sercop/objective/104,BURTON MEMORIAL HALL,,19/06/2017,68829,50,0,hire of Burton Memorial Hall for,192110,Facilities Room Hire
South Lakeland District Council,http://opendatacommunities.org/id/district-council/south-lakeland,30/06/2017,Electoral Services,Central Services,http://opendatacommunities.org/def/concept/finance/sercop/objective/102,Greenwich Leisure Ltd,,21/06/2017,68874,5150.6,0,Hire of Leisure Centre 4/5  May County,291400,Arts & Leisure Services Sport & Fitness
South Lakeland District Council,http://opendatacommunities.org/id/district-council/south-lakeland,30/06/2017,Business Support Community Services,Transport Planning Policy,http://opendatacommunities.org/def/concept/finance/sercop/objective/107,C T HAYTON LTD,1212766,19/06/2017,68848,13.64,0,Hoes,391200,Construction Engineering
South Lakeland District Council,http://opendatacommunities.org/id/district-council/south-lakeland,30/06/2017,Business Support Community Services,Internal Trading Accounts,,DENNIS EAGLE LTD,3794455,28/06/2017,69176,132.43,0,Hoses,381300,Vehicle Mgt Industrial
South Lakeland District Council,http://opendatacommunities.org/id/district-council/south-lakeland,30/06/2017,Business Support Community Services,Internal Trading Accounts,,DENNIS EAGLE LTD,3794455,28/06/2017,69177,43.86,0,Hoses,381300,Vehicle Mgt Industrial
South Lakeland District Council,http://opendatacommunities.org/id/district-council/south-lakeland,30/06/2017,Business Support Community Services,Internal Trading Accounts,,DENNIS EAGLE LTD,3794455,28/06/2017,69178,57.74,0,Hoses,381300,Vehicle Mgt Industrial
South Lakeland District Council,http://opendatacommunities.org/id/district-council/south-lakeland,30/06/2017,Business Support Community Services,Internal Trading Accounts,,DENNIS EAGLE LTD,3794455,28/06/2017,69179,78.14,0,Hoses,381300,Vehicle Mgt Industrial
South Lakeland District Council,http://opendatacommunities.org/id/district-council/south-lakeland,30/06/2017,Financial Services,Housing Services,http://opendatacommunities.org/def/concept/finance/sercop/objective/108,Building and Land Guarantees Ltd,5742263,21/06/2017,68876,58752.75,0,Housing Transfer Environmental Warranty,201800,Financial Services Insurance
South Lakeland District Council,http://opendatacommunities.org/id/district-council/south-lakeland,30/06/2017,Human Resources,Central Services,http://opendatacommunities.org/def/concept/finance/sercop/objective/102,ALLERDALE BOROUGH COUNCIL,,26/06/2017,68838,147.6,0,HR Advisor Support,908000,Public Bodies Council support services
South Lakeland District Council,http://opendatacommunities.org/id/district-council/south-lakeland,30/06/2017,Business Support Community Services,Cultural Environmental Regulatory & Planning Services,http://opendatacommunities.org/def/concept/finance/sercop/objective/104,INTELLIGENT DATA SYSTEMS (UK) LTD,5148878,26/06/2017,69111,126.5,0,IDS Checks for Taxi Drivers,271510,ICT Application Service Provision
South Lakeland District Council,http://opendatacommunities.org/id/district-council/south-lakeland,30/06/2017,Human Resources,Central Services,http://opendatacommunities.org/def/concept/finance/sercop/objective/102,Specsavers Corporate Eyecare,,21/06/2017,68886,170,0,In anticipation of running out of,311400,Healthcare Fees
South Lakeland District Council,http://opendatacommunities.org/id/district-council/south-lakeland,30/06/2017,Policy & Partnerships,Central Services,http://opendatacommunities.org/def/concept/finance/sercop/objective/102,LANCASHIRE COUNTY COUNCIL,,21/06/2017,68717,5471.4,0,"Initial payment for year 1, 2015 survey",908000,Public Bodies Council support services
South Lakeland District Council,http://opendatacommunities.org/id/district-council/south-lakeland,30/06/2017,Business Support Community Services,Internal Trading Accounts,,DENNIS EAGLE LTD,3794455,26/06/2017,69031,102.24,0,Injector,381300,Vehicle Mgt Industrial
South Lakeland District Council,http://opendatacommunities.org/id/district-council/south-lakeland,30/06/2017,Business Support Community Services,Internal Trading Accounts,,DENNIS EAGLE LTD,3794455,26/06/2017,69033,119.85,0,Injector,381300,Vehicle Mgt Industrial
South Lakeland District Council,http://opendatacommunities.org/id/district-council/south-lakeland,30/06/2017,Business Support Community Services,Internal Trading Accounts,,DENNIS EAGLE LTD,3794455,28/06/2017,69159,129.39,0,Injector,381300,Vehicle Mgt Industrial
South Lakeland District Council,http://opendatacommunities.org/id/district-council/south-lakeland,30/06/2017,Human Resources,Housing Services,http://opendatacommunities.org/def/concept/finance/sercop/objective/108,OCEAN MEDIA GROUP LTD,1680420,05/06/2017,68424,695,0,Inside Housing Advert,191000,Facilities Advertising
South Lakeland District Council,http://opendatacommunities.org/id/district-council/south-lakeland,30/06/2017,Business Support Community Services,Environment Regulatory,,CUMBRIA COUNTY COUNCIL,,19/06/2017,68507,584.6,0,Install street lighting column to,908000,Public Bodies Council support services
South Lakeland District Council,http://opendatacommunities.org/id/district-council/south-lakeland,30/06/2017,ICT Group,Central Services,http://opendatacommunities.org/def/concept/finance/sercop/objective/102,Insight Direct (Uk) Ltd,2579852,12/06/2017,68304,88.32,0,Integral - DDR3 - 4 GB - SO DIMM 204-pin,271200,ICT Hardware
South Lakeland District Council,http://opendatacommunities.org/id/district-council/south-lakeland,30/06/2017,Development Implementation,SLDC as Agent,,PS BUSINESS MATTERS,8147185,26/06/2017,68794,2000,0,Kendal Futures Programme Support,151900,Consultancy Management
South Lakeland District Council,http://opendatacommunities.org/id/district-council/south-lakeland,30/06/2017,Business Support Community Services,Cultural Environmental Regulatory & Planning Services,http://opendatacommunities.org/def/concept/finance/sercop/objective/104,MILNTHORPE KENNELS & CATTERY,8932302,12/06/2017,68756,2633.93,0,Kennelling fees 2017/18,181500,Environment Animal Services
South Lakeland District Council,http://opendatacommunities.org/id/district-council/south-lakeland,30/06/2017,Social Enterprise Admin,Cultural Environmental Regulatory & Planning Services,http://opendatacommunities.org/def/concept/finance/sercop/objective/104,NETWORK RAIL COMMERCIAL PROPERTY,,19/06/2017,68826,48.4,0,Kents Bank -Privilege of Footpath,191700,Facilities Property Management
South Lakeland District Council,http://opendatacommunities.org/id/district-council/south-lakeland,30/06/2017,Business Support Community Services,Transport Planning Policy,http://opendatacommunities.org/def/concept/finance/sercop/objective/107,KENDAL SECURITY CENTRE LTD,3179893,12/06/2017,68751,10,0,Keys - Canal Head,192212,Facilities Security Equipment
South Lakeland District Council,http://opendatacommunities.org/id/district-council/south-lakeland,30/06/2017,Business Support Community Services,Internal Trading Accounts,,RIBBLESDALE AUTO ELECTRICS 1992 LTD,2732686,21/06/2017,68950,147.7,0,Lamps,381500,Vehicle Mgt Parts
South Lakeland District Council,http://opendatacommunities.org/id/district-council/south-lakeland,30/06/2017,Business Support Community Services,Internal Trading Accounts,,RIBBLESDALE AUTO ELECTRICS 1992 LTD,2732686,26/06/2017,69117,280,0,Lamps,381500,Vehicle Mgt Parts
South Lakeland District Council,http://opendatacommunities.org/id/district-council/south-lakeland,30/06/2017,Business Support Community Services,Internal Trading Accounts,,RIBBLESDALE AUTO ELECTRICS 1992 LTD,2732686,26/06/2017,69118,14.05,0,Lamps,381500,Vehicle Mgt Parts
South Lakeland District Council,http://opendatacommunities.org/id/district-council/south-lakeland,30/06/2017,Business Support Community Services,Internal Trading Accounts,,RIBBLESDALE AUTO ELECTRICS 1992 LTD,2732686,26/06/2017,69119,41.04,0,Lamps,381500,Vehicle Mgt Parts
South Lakeland District Council,http://opendatacommunities.org/id/district-council/south-lakeland,30/06/2017,Business Support Community Services,Internal Trading Accounts,,RIBBLESDALE AUTO ELECTRICS 1992 LTD,2732686,26/06/2017,69120,70.25,0,Lamps,381500,Vehicle Mgt Parts
South Lakeland District Council,http://opendatacommunities.org/id/district-council/south-lakeland,30/06/2017,Social Enterprise Admin,Central Services,http://opendatacommunities.org/def/concept/finance/sercop/objective/102,CUMBRIA COUNTY COUNCIL,,12/06/2017,68353,3626,0,LAND CHARGE SEARCH ENQUIRIES,908000,Public Bodies Council support services
South Lakeland District Council,http://opendatacommunities.org/id/district-council/south-lakeland,30/06/2017,Social Enterprise Admin,Central Services,http://opendatacommunities.org/def/concept/finance/sercop/objective/102,CUMBRIA COUNTY COUNCIL,,05/06/2017,68486,4208,0,LAND CHARGE SEARCH ENQUIRIES,908000,Public Bodies Council support services
South Lakeland District Council,http://opendatacommunities.org/id/district-council/south-lakeland,30/06/2017,Development Strategy,Cultural Environmental Regulatory & Planning Services,http://opendatacommunities.org/def/concept/finance/sercop/objective/104,Eden Environment Ltd,7481467,14/06/2017,68817,3409,0,Landscape Architect Advice Draft,181400,Environment Monitoring
South Lakeland District Council,http://opendatacommunities.org/id/district-council/south-lakeland,30/06/2017,Development Implementation,Central Services,http://opendatacommunities.org/def/concept/finance/sercop/objective/102,CUMBRIA WASTE RECYCLING LTD,3162439,19/06/2017,68776,33.4,0,Langstone House 360ltr Wheelie Bin,182012,Environment Waste Management Recycling
South Lakeland District Council,http://opendatacommunities.org/id/district-council/south-lakeland,30/06/2017,Financial Services,Central Services,http://opendatacommunities.org/def/concept/finance/sercop/objective/102,DUE NORTH LTD,4499218,28/06/2017,69219,2140,0,Licence for Procontract The Chest,271600,ICT Software Customised & Bespoke
South Lakeland District Council,http://opendatacommunities.org/id/district-council/south-lakeland,30/06/2017,Business Support Community Services,Internal Trading Accounts,,DENNIS EAGLE LTD,3794455,05/06/2017,68524,163.34,0,Lights,381300,Vehicle Mgt Industrial
South Lakeland District Council,http://opendatacommunities.org/id/district-council/south-lakeland,30/06/2017,Business Support Community Services,Internal Trading Accounts,,RIBBLESDALE AUTO ELECTRICS 1992 LTD,2732686,05/06/2017,68527,47.4,0,Lights,381500,Vehicle Mgt Parts
South Lakeland District Council,http://opendatacommunities.org/id/district-council/south-lakeland,30/06/2017,ICT Group,Central Services,http://opendatacommunities.org/def/concept/finance/sercop/objective/102,ITPS Professional Services Ltd (DD),,30/06/2017,68959,111.37,0,"Line Rental & CLIP for Canal Head Depot,",271700,ICT Telecommunications Fixed
South Lakeland District Council,http://opendatacommunities.org/id/district-council/south-lakeland,30/06/2017,Development Implementation,Central Services,http://opendatacommunities.org/def/concept/finance/sercop/objective/102,ENVIROFIRST LTD,5999123,07/06/2017,68635,198.48,0,Lowther Street Wheelie bin mixed,182012,Environment Waste Management Recycling
South Lakeland District Council,http://opendatacommunities.org/id/district-council/south-lakeland,30/06/2017,Business Support Community Services,Cultural Environmental Regulatory & Planning Services,http://opendatacommunities.org/def/concept/finance/sercop/objective/104,THE HELPING HAND COMPANY,2172956,05/06/2017,68570,1870,0,LP2133 - Streetmanster Pro Litter,321311,Social Care Supplies Equipment
South Lakeland District Council,http://opendatacommunities.org/id/district-council/south-lakeland,30/06/2017,ICT Group,Central Services,http://opendatacommunities.org/def/concept/finance/sercop/objective/102,ITPS Professional Services Ltd (DD),,30/06/2017,68949,857.14,0,"Lync rental costs, ISDN lines etc,",271700,ICT Telecommunications Fixed
South Lakeland District Council,http://opendatacommunities.org/id/district-council/south-lakeland,30/06/2017,ICT Group,Central Services,http://opendatacommunities.org/def/concept/finance/sercop/objective/102,ITPS Professional Services Ltd (DD),,30/06/2017,68949,491.24,0,"Lync rental costs, ISDN lines etc,",271700,ICT Telecommunications Fixed
South Lakeland District Council,http://opendatacommunities.org/id/district-council/south-lakeland,30/06/2017,Kendal Town Hall,Cultural Environmental Regulatory & Planning Services,http://opendatacommunities.org/def/concept/finance/sercop/objective/104,THOMAS GRAHAM & SONS LTD,656879,05/06/2017,68511,32.75,0,M12 X 70 HEX COACH SCREW A2 S/STEEL,101400,Building General Materials
South Lakeland District Council,http://opendatacommunities.org/id/district-council/south-lakeland,30/06/2017,Social Enterprise Admin,Highways & Transport Services,http://opendatacommunities.org/def/concept/finance/sercop/objective/107,METRIC GROUP LIMITED,2560839,12/06/2017,68716,71.4,0,Machine maintenance contract from 1,359999,Street & Traffic Not Elsewhere Classifie
South Lakeland District Council,http://opendatacommunities.org/id/district-council/south-lakeland,30/06/2017,Social Enterprise Admin,Highways & Transport Services,http://opendatacommunities.org/def/concept/finance/sercop/objective/107,METRIC GROUP LIMITED,2560839,12/06/2017,68716,71.4,0,Machine maintenance contract from 1,359999,Street & Traffic Not Elsewhere Classifie
South Lakeland District Council,http://opendatacommunities.org/id/district-council/south-lakeland,30/06/2017,Social Enterprise Admin,Highways & Transport Services,http://opendatacommunities.org/def/concept/finance/sercop/objective/107,METRIC GROUP LIMITED,2560839,12/06/2017,68716,71.4,0,Machine maintenance contract from 1,359999,Street & Traffic Not Elsewhere Classifie
South Lakeland District Council,http://opendatacommunities.org/id/district-council/south-lakeland,30/06/2017,Social Enterprise Admin,Highways & Transport Services,http://opendatacommunities.org/def/concept/finance/sercop/objective/107,METRIC GROUP LIMITED,2560839,12/06/2017,68716,142.8,0,Machine maintenance contract from 1,359999,Street & Traffic Not Elsewhere Classifie
South Lakeland District Council,http://opendatacommunities.org/id/district-council/south-lakeland,30/06/2017,Social Enterprise Admin,Highways & Transport Services,http://opendatacommunities.org/def/concept/finance/sercop/objective/107,METRIC GROUP LIMITED,2560839,12/06/2017,68716,142.8,0,Machine maintenance contract from 1,359999,Street & Traffic Not Elsewhere Classifie
South Lakeland District Council,http://opendatacommunities.org/id/district-council/south-lakeland,30/06/2017,Social Enterprise Admin,Highways & Transport Services,http://opendatacommunities.org/def/concept/finance/sercop/objective/107,METRIC GROUP LIMITED,2560839,12/06/2017,68716,142.8,0,Machine maintenance contract from 1,359999,Street & Traffic Not Elsewhere Classifie
South Lakeland District Council,http://opendatacommunities.org/id/district-council/south-lakeland,30/06/2017,Social Enterprise Admin,Highways & Transport Services,http://opendatacommunities.org/def/concept/finance/sercop/objective/107,METRIC GROUP LIMITED,2560839,12/06/2017,68716,71.4,0,Machine maintenance contract from 1,359999,Street & Traffic Not Elsewhere Classifie
South Lakeland District Council,http://opendatacommunities.org/id/district-council/south-lakeland,30/06/2017,Social Enterprise Admin,Highways & Transport Services,http://opendatacommunities.org/def/concept/finance/sercop/objective/107,METRIC GROUP LIMITED,2560839,12/06/2017,68716,285.6,0,Machine maintenance contract from 1,359999,Street & Traffic Not Elsewhere Classifie
South Lakeland District Council,http://opendatacommunities.org/id/district-council/south-lakeland,30/06/2017,Social Enterprise Admin,Highways & Transport Services,http://opendatacommunities.org/def/concept/finance/sercop/objective/107,METRIC GROUP LIMITED,2560839,12/06/2017,68716,142.8,0,Machine maintenance contract from 1,359999,Street & Traffic Not Elsewhere Classifie
South Lakeland District Council,http://opendatacommunities.org/id/district-council/south-lakeland,30/06/2017,Social Enterprise Admin,Highways & Transport Services,http://opendatacommunities.org/def/concept/finance/sercop/objective/107,METRIC GROUP LIMITED,2560839,12/06/2017,68716,142.8,0,Machine maintenance contract from 1,359999,Street & Traffic Not Elsewhere Classifie
South Lakeland District Council,http://opendatacommunities.org/id/district-council/south-lakeland,30/06/2017,Social Enterprise Admin,Highways & Transport Services,http://opendatacommunities.org/def/concept/finance/sercop/objective/107,METRIC GROUP LIMITED,2560839,12/06/2017,68716,71.4,0,Machine maintenance contract from 1,359999,Street & Traffic Not Elsewhere Classifie
South Lakeland District Council,http://opendatacommunities.org/id/district-council/south-lakeland,30/06/2017,Social Enterprise Admin,Highways & Transport Services,http://opendatacommunities.org/def/concept/finance/sercop/objective/107,METRIC GROUP LIMITED,2560839,12/06/2017,68716,214.2,0,Machine maintenance contract from 1,359999,Street & Traffic Not Elsewhere Classifie
South Lakeland District Council,http://opendatacommunities.org/id/district-council/south-lakeland,30/06/2017,Social Enterprise Admin,Highways & Transport Services,http://opendatacommunities.org/def/concept/finance/sercop/objective/107,METRIC GROUP LIMITED,2560839,12/06/2017,68716,71.4,0,Machine maintenance contract from 1,359999,Street & Traffic Not Elsewhere Classifie
South Lakeland District Council,http://opendatacommunities.org/id/district-council/south-lakeland,30/06/2017,Social Enterprise Admin,Highways & Transport Services,http://opendatacommunities.org/def/concept/finance/sercop/objective/107,METRIC GROUP LIMITED,2560839,12/06/2017,68716,71.4,0,Machine maintenance contract from 1,359999,Street & Traffic Not Elsewhere Classifie
South Lakeland District Council,http://opendatacommunities.org/id/district-council/south-lakeland,30/06/2017,Social Enterprise Admin,Highways & Transport Services,http://opendatacommunities.org/def/concept/finance/sercop/objective/107,METRIC GROUP LIMITED,2560839,12/06/2017,68716,71.4,0,Machine maintenance contract from 1,359999,Street & Traffic Not Elsewhere Classifie
South Lakeland District Council,http://opendatacommunities.org/id/district-council/south-lakeland,30/06/2017,Social Enterprise Admin,Highways & Transport Services,http://opendatacommunities.org/def/concept/finance/sercop/objective/107,METRIC GROUP LIMITED,2560839,12/06/2017,68716,214.2,0,Machine maintenance contract from 1,359999,Street & Traffic Not Elsewhere Classifie
South Lakeland District Council,http://opendatacommunities.org/id/district-council/south-lakeland,30/06/2017,Social Enterprise Admin,Highways & Transport Services,http://opendatacommunities.org/def/concept/finance/sercop/objective/107,METRIC GROUP LIMITED,2560839,12/06/2017,68716,71.4,0,Machine maintenance contract from 1,359999,Street & Traffic Not Elsewhere Classifie
South Lakeland District Council,http://opendatacommunities.org/id/district-council/south-lakeland,30/06/2017,Social Enterprise Admin,Highways & Transport Services,http://opendatacommunities.org/def/concept/finance/sercop/objective/107,METRIC GROUP LIMITED,2560839,12/06/2017,68716,214.2,0,Machine maintenance contract from 1,359999,Street & Traffic Not Elsewhere Classifie
South Lakeland District Council,http://opendatacommunities.org/id/district-council/south-lakeland,30/06/2017,Social Enterprise Admin,Highways & Transport Services,http://opendatacommunities.org/def/concept/finance/sercop/objective/107,METRIC GROUP LIMITED,2560839,12/06/2017,68716,71.4,0,Machine maintenance contract from 1,359999,Street & Traffic Not Elsewhere Classifie
South Lakeland District Council,http://opendatacommunities.org/id/district-council/south-lakeland,30/06/2017,Social Enterprise Admin,Highways & Transport Services,http://opendatacommunities.org/def/concept/finance/sercop/objective/107,METRIC GROUP LIMITED,2560839,12/06/2017,68716,71.4,0,Machine maintenance contract from 1,359999,Street & Traffic Not Elsewhere Classifie
South Lakeland District Council,http://opendatacommunities.org/id/district-council/south-lakeland,30/06/2017,Social Enterprise Admin,Highways & Transport Services,http://opendatacommunities.org/def/concept/finance/sercop/objective/107,METRIC GROUP LIMITED,2560839,12/06/2017,68716,142.8,0,Machine maintenance contract from 1,359999,Street & Traffic Not Elsewhere Classifie
South Lakeland District Council,http://opendatacommunities.org/id/district-council/south-lakeland,30/06/2017,Social Enterprise Admin,Highways & Transport Services,http://opendatacommunities.org/def/concept/finance/sercop/objective/107,METRIC GROUP LIMITED,2560839,12/06/2017,68716,71.4,0,Machine maintenance contract from 1,359999,Street & Traffic Not Elsewhere Classifie
South Lakeland District Council,http://opendatacommunities.org/id/district-council/south-lakeland,30/06/2017,Social Enterprise Admin,Highways & Transport Services,http://opendatacommunities.org/def/concept/finance/sercop/objective/107,METRIC GROUP LIMITED,2560839,12/06/2017,68716,71.4,0,Machine maintenance contract from 1,359999,Street & Traffic Not Elsewhere Classifie
South Lakeland District Council,http://opendatacommunities.org/id/district-council/south-lakeland,30/06/2017,Social Enterprise Admin,Highways & Transport Services,http://opendatacommunities.org/def/concept/finance/sercop/objective/107,METRIC GROUP LIMITED,2560839,12/06/2017,68716,71.4,0,Machine maintenance contract from 1,359999,Street & Traffic Not Elsewhere Classifie
South Lakeland District Council,http://opendatacommunities.org/id/district-council/south-lakeland,30/06/2017,Social Enterprise Admin,Highways & Transport Services,http://opendatacommunities.org/def/concept/finance/sercop/objective/107,METRIC GROUP LIMITED,2560839,12/06/2017,68716,142.8,0,Machine maintenance contract from 1,359999,Street & Traffic Not Elsewhere Classifie
South Lakeland District Council,http://opendatacommunities.org/id/district-council/south-lakeland,30/06/2017,Social Enterprise Admin,Highways & Transport Services,http://opendatacommunities.org/def/concept/finance/sercop/objective/107,METRIC GROUP LIMITED,2560839,12/06/2017,68716,142.8,0,Machine maintenance contract from 1,359999,Street & Traffic Not Elsewhere Classifie
South Lakeland District Council,http://opendatacommunities.org/id/district-council/south-lakeland,30/06/2017,Social Enterprise Admin,Highways & Transport Services,http://opendatacommunities.org/def/concept/finance/sercop/objective/107,METRIC GROUP LIMITED,2560839,12/06/2017,68716,71.4,0,Machine maintenance contract from 1,359999,Street & Traffic Not Elsewhere Classifie
South Lakeland District Council,http://opendatacommunities.org/id/district-council/south-lakeland,30/06/2017,Social Enterprise Admin,Highways & Transport Services,http://opendatacommunities.org/def/concept/finance/sercop/objective/107,METRIC GROUP LIMITED,2560839,12/06/2017,68716,71.4,0,Machine maintenance contract from 1,359999,Street & Traffic Not Elsewhere Classifie
South Lakeland District Council,http://opendatacommunities.org/id/district-council/south-lakeland,30/06/2017,Social Enterprise Admin,Highways & Transport Services,http://opendatacommunities.org/def/concept/finance/sercop/objective/107,METRIC GROUP LIMITED,2560839,12/06/2017,68716,71.4,0,Machine maintenance contract from 1,359999,Street & Traffic Not Elsewhere Classifie
South Lakeland District Council,http://opendatacommunities.org/id/district-council/south-lakeland,30/06/2017,Social Enterprise Admin,Highways & Transport Services,http://opendatacommunities.org/def/concept/finance/sercop/objective/107,METRIC GROUP LIMITED,2560839,12/06/2017,68716,357,0,Machine maintenance contract from 1,359999,Street & Traffic Not Elsewhere Classifie
South Lakeland District Council,http://opendatacommunities.org/id/district-council/south-lakeland,30/06/2017,Social Enterprise Admin,Highways & Transport Services,http://opendatacommunities.org/def/concept/finance/sercop/objective/107,METRIC GROUP LIMITED,2560839,12/06/2017,68716,71.4,0,Machine maintenance contract from 1,359999,Street & Traffic Not Elsewhere Classifie
South Lakeland District Council,http://opendatacommunities.org/id/district-council/south-lakeland,30/06/2017,Social Enterprise Admin,Highways & Transport Services,http://opendatacommunities.org/def/concept/finance/sercop/objective/107,METRIC GROUP LIMITED,2560839,12/06/2017,68716,71.4,0,Machine maintenance contract from 1,359999,Street & Traffic Not Elsewhere Classifie
South Lakeland District Council,http://opendatacommunities.org/id/district-council/south-lakeland,30/06/2017,Social Enterprise Admin,Highways & Transport Services,http://opendatacommunities.org/def/concept/finance/sercop/objective/107,METRIC GROUP LIMITED,2560839,12/06/2017,68716,142.8,0,Machine maintenance contract from 1,359999,Street & Traffic Not Elsewhere Classifie
South Lakeland District Council,http://opendatacommunities.org/id/district-council/south-lakeland,30/06/2017,Social Enterprise Admin,Highways & Transport Services,http://opendatacommunities.org/def/concept/finance/sercop/objective/107,METRIC GROUP LIMITED,2560839,12/06/2017,68716,142.8,0,Machine maintenance contract from 1,359999,Street & Traffic Not Elsewhere Classifie
South Lakeland District Council,http://opendatacommunities.org/id/district-council/south-lakeland,30/06/2017,Social Enterprise Admin,Highways & Transport Services,http://opendatacommunities.org/def/concept/finance/sercop/objective/107,METRIC GROUP LIMITED,2560839,12/06/2017,68716,142.8,0,Machine maintenance contract from 1,359999,Street & Traffic Not Elsewhere Classifie
South Lakeland District Council,http://opendatacommunities.org/id/district-council/south-lakeland,30/06/2017,Social Enterprise Admin,Highways & Transport Services,http://opendatacommunities.org/def/concept/finance/sercop/objective/107,METRIC GROUP LIMITED,2560839,12/06/2017,68716,357,0,Machine maintenance contract from 1,359999,Street & Traffic Not Elsewhere Classifie
South Lakeland District Council,http://opendatacommunities.org/id/district-council/south-lakeland,30/06/2017,Social Enterprise Admin,Highways & Transport Services,http://opendatacommunities.org/def/concept/finance/sercop/objective/107,METRIC GROUP LIMITED,2560839,12/06/2017,68716,71.4,0,Machine maintenance contract from 1,359999,Street & Traffic Not Elsewhere Classifie
South Lakeland District Council,http://opendatacommunities.org/id/district-council/south-lakeland,30/06/2017,Social Enterprise Admin,Highways & Transport Services,http://opendatacommunities.org/def/concept/finance/sercop/objective/107,METRIC GROUP LIMITED,2560839,12/06/2017,68716,71.4,0,Machine maintenance contract from 1,359999,Street & Traffic Not Elsewhere Classifie
South Lakeland District Council,http://opendatacommunities.org/id/district-council/south-lakeland,30/06/2017,Social Enterprise Admin,Cultural Environmental Regulatory & Planning Services,http://opendatacommunities.org/def/concept/finance/sercop/objective/104,GRANGE OVER SANDS CIVIC SOCIETY,,21/06/2017,68880,1541.86,0,Maintain Promenade beds and Orchard at,201700,Financial Services Grants
South Lakeland District Council,http://opendatacommunities.org/id/district-council/south-lakeland,30/06/2017,Business Support Community Services,Housing Services,http://opendatacommunities.org/def/concept/finance/sercop/objective/108,Landlord,,07/06/2017,68619,43,0,Maintenance payment,250000,Housing
South Lakeland District Council,http://opendatacommunities.org/id/district-council/south-lakeland,30/06/2017,Business Support Community Services,Housing Services,http://opendatacommunities.org/def/concept/finance/sercop/objective/108,CAPTAIN FRENCH SURGERY,,07/06/2017,68627,25,0,Medical report,311600,Healthcare Services
South Lakeland District Council,http://opendatacommunities.org/id/district-council/south-lakeland,30/06/2017,Business Support Community Services,Housing Services,http://opendatacommunities.org/def/concept/finance/sercop/objective/108,CAPTAIN FRENCH SURGERY,,07/06/2017,68628,25,0,Medical report,311600,Healthcare Services
South Lakeland District Council,http://opendatacommunities.org/id/district-council/south-lakeland,30/06/2017,Business Support Community Services,Housing Services,http://opendatacommunities.org/def/concept/finance/sercop/objective/108,NOWMEDICAL,4338252,19/06/2017,68692,50,0,Medical Report,311600,Healthcare Services
South Lakeland District Council,http://opendatacommunities.org/id/district-council/south-lakeland,30/06/2017,Business Support Community Services,Housing Services,http://opendatacommunities.org/def/concept/finance/sercop/objective/108,NUTWOOD SURGERY,,14/06/2017,68579,40,0,Medical report,151513,Healthcare-Public Health- GP Surgery
South Lakeland District Council,http://opendatacommunities.org/id/district-council/south-lakeland,30/06/2017,Business Support Community Services,Housing Services,http://opendatacommunities.org/def/concept/finance/sercop/objective/108,Sedbergh Medical Practice,,05/06/2017,68544,25,0,Medical report,311600,Healthcare Services
South Lakeland District Council,http://opendatacommunities.org/id/district-council/south-lakeland,30/06/2017,Human Resources,Central Services,http://opendatacommunities.org/def/concept/finance/sercop/objective/102,MIDLAND SOFTWARE LTD,1852206,05/06/2017,68498,380.78,0,Midland extra day to automate the user,271600,ICT Software Customised & Bespoke
South Lakeland District Council,http://opendatacommunities.org/id/district-council/south-lakeland,30/06/2017,Human Resources,Central Services,http://opendatacommunities.org/def/concept/finance/sercop/objective/102,MIDLAND SOFTWARE LTD,1852206,05/06/2017,68499,1019,0,Midland extra day to automate the user,271600,ICT Software Customised & Bespoke
South Lakeland District Council,http://opendatacommunities.org/id/district-council/south-lakeland,30/06/2017,Social Enterprise Admin,Central Services,http://opendatacommunities.org/def/concept/finance/sercop/objective/102,WOOF'S OF SEDBERGH,,05/06/2017,68543,175,0,MINI BUS SITE VISITS FOR MEMBERS RE,361300,Public Transport Passenger Transport
South Lakeland District Council,http://opendatacommunities.org/id/district-council/south-lakeland,30/06/2017,ICT Group,Central Services,http://opendatacommunities.org/def/concept/finance/sercop/objective/102,Insight Direct (Uk) Ltd,2579852,21/06/2017,68922,17.56,0,Mini HDMI to (M) o HDMI (F) adaptors,271200,ICT Hardware
South Lakeland District Council,http://opendatacommunities.org/id/district-council/south-lakeland,30/06/2017,Business Support Community Services,Internal Trading Accounts,,SOLWAY DAF,1393710,28/06/2017,69199,-45.7,0,Mirror,381000,Vehicle Mgt Commercial
South Lakeland District Council,http://opendatacommunities.org/id/district-council/south-lakeland,30/06/2017,ICT Group,Central Services,http://opendatacommunities.org/def/concept/finance/sercop/objective/102,VODAFONE LIMITED,1471587,07/06/2017,68368,2927.6,0,Mobile phone rentals and call costs for,271800,ICT Telecommunications Mobile
South Lakeland District Council,http://opendatacommunities.org/id/district-council/south-lakeland,30/06/2017,Development Implementation,Central Services,http://opendatacommunities.org/def/concept/finance/sercop/objective/102,LAMBERT SMITH HAMPTON GROUP,2521225,19/06/2017,68824,1395.96,0,Monthly Additional Fee - ,999999,Unclassifiable
South Lakeland District Council,http://opendatacommunities.org/id/district-council/south-lakeland,30/06/2017,Lake Wardens,Cultural Environmental Regulatory & Planning Services,http://opendatacommunities.org/def/concept/finance/sercop/objective/104,CUMBRIA WASTE RECYCLING LTD,3162439,26/06/2017,68777,265.88,0,Monthly collection of Refuse Wheelie,182012,Environment Waste Management Recycling
South Lakeland District Council,http://opendatacommunities.org/id/district-council/south-lakeland,30/06/2017,Lake Wardens,Cultural Environmental Regulatory & Planning Services,http://opendatacommunities.org/def/concept/finance/sercop/objective/104,CUMBRIA WASTE RECYCLING LTD,3162439,26/06/2017,68782,251.8,0,Monthly collection of Refuse Wheelie,182012,Environment Waste Management Recycling
South Lakeland District Council,http://opendatacommunities.org/id/district-council/south-lakeland,30/06/2017,Lake Wardens,SLDC as Agent,,LAKE DISTRICT NATIONAL PARK AUTHORITY,,26/06/2017,68831,3480.8,0,Monthly Invoices for 2017/18 for Boat,201700,Financial Services Grants
South Lakeland District Council,http://opendatacommunities.org/id/district-council/south-lakeland,30/06/2017,Business Support Community Services,Housing Services,http://opendatacommunities.org/def/concept/finance/sercop/objective/108,Landlord,,12/06/2017,68758,520,0,Monthly rent,202000,Financial Services Rents
South Lakeland District Council,http://opendatacommunities.org/id/district-council/south-lakeland,30/06/2017,Business Support Community Services,Housing Services,http://opendatacommunities.org/def/concept/finance/sercop/objective/108,Landlord,,12/06/2017,68759,520,0,Monthly rent,202000,Financial Services Rents
South Lakeland District Council,http://opendatacommunities.org/id/district-council/south-lakeland,30/06/2017,Business Support Community Services,Housing Services,http://opendatacommunities.org/def/concept/finance/sercop/objective/108,Landlord,,07/06/2017,68616,500,0,Monthly rent,202000,Financial Services Rents
South Lakeland District Council,http://opendatacommunities.org/id/district-council/south-lakeland,30/06/2017,Business Support Community Services,Housing Services,http://opendatacommunities.org/def/concept/finance/sercop/objective/108,Landlord,,07/06/2017,68617,400,0,Monthly rent,250000,Housing
South Lakeland District Council,http://opendatacommunities.org/id/district-council/south-lakeland,30/06/2017,Business Support Community Services,Housing Services,http://opendatacommunities.org/def/concept/finance/sercop/objective/108,Landlord,,07/06/2017,68618,400,0,Monthly rent,250010,Housing Letting Agents
South Lakeland District Council,http://opendatacommunities.org/id/district-council/south-lakeland,30/06/2017,Business Support Community Services,Housing Services,http://opendatacommunities.org/def/concept/finance/sercop/objective/108,Landlord,,28/06/2017,69231,415,0,Monthly rent,250010,Housing Letting Agents
South Lakeland District Council,http://opendatacommunities.org/id/district-council/south-lakeland,30/06/2017,Business Support Community Services,Housing Services,http://opendatacommunities.org/def/concept/finance/sercop/objective/108,Landlord,,28/06/2017,69233,500,0,Monthly rent,250010,Housing Letting Agents
South Lakeland District Council,http://opendatacommunities.org/id/district-council/south-lakeland,30/06/2017,Business Support Community Services,Housing Services,http://opendatacommunities.org/def/concept/finance/sercop/objective/108,Landlord,,12/06/2017,68763,600,0,Monthly rent,250000,Housing
South Lakeland District Council,http://opendatacommunities.org/id/district-council/south-lakeland,30/06/2017,Business Support Community Services,Housing Services,http://opendatacommunities.org/def/concept/finance/sercop/objective/108,Landlord,,12/06/2017,68761,520,0,Monthly rent,202000,Financial Services Rents
South Lakeland District Council,http://opendatacommunities.org/id/district-council/south-lakeland,30/06/2017,Business Support Community Services,Housing Services,http://opendatacommunities.org/def/concept/finance/sercop/objective/108,Landlord,,14/06/2017,68814,1190,0,Monthly rent,202000,Financial Services Rents
South Lakeland District Council,http://opendatacommunities.org/id/district-council/south-lakeland,30/06/2017,Business Support Community Services,Housing Services,http://opendatacommunities.org/def/concept/finance/sercop/objective/108,Landlord,7121028,12/06/2017,68760,400,0,Monthly rent,202000,Financial Services Rents
South Lakeland District Council,http://opendatacommunities.org/id/district-council/south-lakeland,30/06/2017,Business Support Community Services,Housing Services,http://opendatacommunities.org/def/concept/finance/sercop/objective/108,Landlord,7009105,28/06/2017,69232,480,0,Monthly rent ,250000,Housing
South Lakeland District Council,http://opendatacommunities.org/id/district-council/south-lakeland,30/06/2017,Business Support Community Services,Housing Services,http://opendatacommunities.org/def/concept/finance/sercop/objective/108,Landlord,,28/06/2017,69234,400,0,Monthly rent ,250000,Housing
South Lakeland District Council,http://opendatacommunities.org/id/district-council/south-lakeland,30/06/2017,Business Support Community Services,Housing Services,http://opendatacommunities.org/def/concept/finance/sercop/objective/108,Landlord,,28/06/2017,69235,520,0,Monthly rent ,250000,Housing
South Lakeland District Council,http://opendatacommunities.org/id/district-council/south-lakeland,30/06/2017,Business Support Community Services,Housing Services,http://opendatacommunities.org/def/concept/finance/sercop/objective/108,Landlord,,28/06/2017,69236,500,0,Monthly rent ,250000,Housing
South Lakeland District Council,http://opendatacommunities.org/id/district-council/south-lakeland,30/06/2017,Business Support Community Services,Housing Services,http://opendatacommunities.org/def/concept/finance/sercop/objective/108,Landlord,,28/06/2017,69237,600,0,Monthly rent ,250000,Housing
South Lakeland District Council,http://opendatacommunities.org/id/district-council/south-lakeland,30/06/2017,Business Support Community Services,Housing Services,http://opendatacommunities.org/def/concept/finance/sercop/objective/108,Landlord,,28/06/2017,69238,625,0,Monthly rent ,202000,Financial Services Rents
South Lakeland District Council,http://opendatacommunities.org/id/district-council/south-lakeland,30/06/2017,Business Support Community Services,Housing Services,http://opendatacommunities.org/def/concept/finance/sercop/objective/108,Landlord,,28/06/2017,69239,410,0,Monthly rent ,250000,Housing
South Lakeland District Council,http://opendatacommunities.org/id/district-council/south-lakeland,30/06/2017,Business Support Community Services,Housing Services,http://opendatacommunities.org/def/concept/finance/sercop/objective/108,Landlord,,28/06/2017,69241,500,0,Monthly rent ,202000,Financial Services Rents
South Lakeland District Council,http://opendatacommunities.org/id/district-council/south-lakeland,30/06/2017,Business Support Community Services,Housing Services,http://opendatacommunities.org/def/concept/finance/sercop/objective/108,Ashley Bennett,8672920,14/06/2017,68813,400,0,Monthly rent payment,202000,Financial Services Rents
South Lakeland District Council,http://opendatacommunities.org/id/district-council/south-lakeland,30/06/2017,Business Support Community Services,Housing Services,http://opendatacommunities.org/def/concept/finance/sercop/objective/108,Landlord,,14/06/2017,68812,520,0,Monthly rent payment,250010,Housing Letting Agents
South Lakeland District Council,http://opendatacommunities.org/id/district-council/south-lakeland,30/06/2017,Business Support Community Services,Housing Services,http://opendatacommunities.org/def/concept/finance/sercop/objective/108,Landlord,,14/06/2017,68815,890,0,Monthly rent payment,250000,Housing
South Lakeland District Council,http://opendatacommunities.org/id/district-council/south-lakeland,30/06/2017,Business Support Community Services,Housing Services,http://opendatacommunities.org/def/concept/finance/sercop/objective/108,Landlord,,21/06/2017,68986,625,0,Monthly rent payment,250000,Housing
South Lakeland District Council,http://opendatacommunities.org/id/district-council/south-lakeland,30/06/2017,Business Support Community Services,Housing Services,http://opendatacommunities.org/def/concept/finance/sercop/objective/108,Landlord,7803122,21/06/2017,68987,500,0,Monthly rent payment,250000,Housing
South Lakeland District Council,http://opendatacommunities.org/id/district-council/south-lakeland,30/06/2017,Business Support Community Services,Housing Services,http://opendatacommunities.org/def/concept/finance/sercop/objective/108,Landlord,,28/06/2017,69240,625,0,Monthly rents ,202000,Financial Services Rents
South Lakeland District Council,http://opendatacommunities.org/id/district-council/south-lakeland,30/06/2017,Business Support Community Services,Housing Services,http://opendatacommunities.org/def/concept/finance/sercop/objective/108,Landlord,,12/06/2017,68762,520,0,Montly rent,202000,Financial Services Rents
South Lakeland District Council,http://opendatacommunities.org/id/district-council/south-lakeland,30/06/2017,Business Support Community Services,Internal Trading Accounts,,M G D LTD,,05/06/2017,68502,35,0,MOTs 01/04/17 - 31/03/18,381400,Vehicle Mgt Maintenance
South Lakeland District Council,http://opendatacommunities.org/id/district-council/south-lakeland,30/06/2017,Business Support Community Services,Internal Trading Accounts,,M G D LTD,,14/06/2017,68733,35,0,MOTs 01/04/17 - 31/03/18,381400,Vehicle Mgt Maintenance
South Lakeland District Council,http://opendatacommunities.org/id/district-council/south-lakeland,30/06/2017,Business Support Community Services,Internal Trading Accounts,,M G D LTD,,19/06/2017,68852,35,0,MOTs 01/04/17 - 31/03/18,381400,Vehicle Mgt Maintenance
South Lakeland District Council,http://opendatacommunities.org/id/district-council/south-lakeland,30/06/2017,Business Support Community Services,Internal Trading Accounts,,M G D LTD,,28/06/2017,69105,35,0,MOTs 01/04/17 - 31/03/18,381400,Vehicle Mgt Maintenance
South Lakeland District Council,http://opendatacommunities.org/id/district-council/south-lakeland,30/06/2017,Business Support Community Services,Internal Trading Accounts,,M G D LTD,,28/06/2017,69201,35,0,MOTs 01/04/17 - 31/03/18,381400,Vehicle Mgt Maintenance
South Lakeland District Council,http://opendatacommunities.org/id/district-council/south-lakeland,30/06/2017,Business Support Community Services,Internal Trading Accounts,,M G D LTD,,28/06/2017,69217,35,0,MOTs 01/04/17 - 31/03/18,381400,Vehicle Mgt Maintenance
South Lakeland District Council,http://opendatacommunities.org/id/district-council/south-lakeland,30/06/2017,Business Support Community Services,Internal Trading Accounts,,S J Bargh,532272,05/06/2017,68504,121,0,MOTs 2017/18,381400,Vehicle Mgt Maintenance
South Lakeland District Council,http://opendatacommunities.org/id/district-council/south-lakeland,30/06/2017,Business Support Community Services,Internal Trading Accounts,,S J Bargh,532272,05/06/2017,68571,64,0,MOTs 2017/18,381400,Vehicle Mgt Maintenance
South Lakeland District Council,http://opendatacommunities.org/id/district-council/south-lakeland,30/06/2017,Business Support Community Services,Internal Trading Accounts,,S J Bargh,532272,05/06/2017,68572,121,0,MOTs 2017/18,381400,Vehicle Mgt Maintenance
South Lakeland District Council,http://opendatacommunities.org/id/district-council/south-lakeland,30/06/2017,Business Support Community Services,Internal Trading Accounts,,S J Bargh,532272,05/06/2017,68573,143,0,MOTs 2017/18,381400,Vehicle Mgt Maintenance
South Lakeland District Council,http://opendatacommunities.org/id/district-council/south-lakeland,30/06/2017,Business Support Community Services,Internal Trading Accounts,,S J Bargh,532272,14/06/2017,68734,121,0,MOTs 2017/18,381400,Vehicle Mgt Maintenance
South Lakeland District Council,http://opendatacommunities.org/id/district-council/south-lakeland,30/06/2017,Business Support Community Services,Internal Trading Accounts,,S J Bargh,532272,19/06/2017,68791,121,0,MOTs 2017/18,381400,Vehicle Mgt Maintenance
South Lakeland District Council,http://opendatacommunities.org/id/district-council/south-lakeland,30/06/2017,Business Support Community Services,Internal Trading Accounts,,S J Bargh,532272,21/06/2017,68921,148,0,MOTs 2017/18,381400,Vehicle Mgt Maintenance
South Lakeland District Council,http://opendatacommunities.org/id/district-council/south-lakeland,30/06/2017,Business Support Community Services,Internal Trading Accounts,,S J Bargh,532272,26/06/2017,69013,208.5,0,MOTs 2017/18,381400,Vehicle Mgt Maintenance
South Lakeland District Council,http://opendatacommunities.org/id/district-council/south-lakeland,30/06/2017,ICT Group,Central Services,http://opendatacommunities.org/def/concept/finance/sercop/objective/102,VODAFONE LIMITED,1471587,21/06/2017,68888,1755,0,"New mobile phones, via CCC",271800,ICT Telecommunications Mobile
South Lakeland District Council,http://opendatacommunities.org/id/district-council/south-lakeland,30/06/2017,ICT Group,Central Services,http://opendatacommunities.org/def/concept/finance/sercop/objective/102,VODAFONE LIMITED,1471587,21/06/2017,68899,1755,0,"New mobile phones, via CCC",271800,ICT Telecommunications Mobile
South Lakeland District Council,http://opendatacommunities.org/id/district-council/south-lakeland,30/06/2017,ICT Group,Central Services,http://opendatacommunities.org/def/concept/finance/sercop/objective/102,VODAFONE LIMITED,1471587,21/06/2017,68901,1710,0,"New mobile phones, via CCC",271800,ICT Telecommunications Mobile
South Lakeland District Council,http://opendatacommunities.org/id/district-council/south-lakeland,30/06/2017,Business Support Community Services,Internal Trading Accounts,,Slicker Recycling Ltd,8652156,05/06/2017,68435,127,0,Oil collection,182015,Environment Waste Mgt Waste Disposal
South Lakeland District Council,http://opendatacommunities.org/id/district-council/south-lakeland,30/06/2017,Printing Section,Central Services,http://opendatacommunities.org/def/concept/finance/sercop/objective/102,ROSEFOX PAPER LIMITED,1655083,12/06/2017,68521,858.33,0,Paper One A4 100gsm,341000,Stationery Paper
South Lakeland District Council,http://opendatacommunities.org/id/district-council/south-lakeland,30/06/2017,Printing Section,Central Services,http://opendatacommunities.org/def/concept/finance/sercop/objective/102,ROSEFOX PAPER LIMITED,1655083,28/06/2017,68830,-169.56,0,Paper One A4 100gsm,341000,Stationery Paper
South Lakeland District Council,http://opendatacommunities.org/id/district-council/south-lakeland,30/06/2017,Social Enterprise Admin,Cultural Environmental Regulatory & Planning Services,http://opendatacommunities.org/def/concept/finance/sercop/objective/104,ALLSTAR BUSINESS SOLUTIONS LTD (NCR),2631112,30/06/2017,68714,73.07,0,Parks fuel  April 2017 - March 2018,381600,Vehicle Mgt Leasing
South Lakeland District Council,http://opendatacommunities.org/id/district-council/south-lakeland,30/06/2017,Social Enterprise Admin,Highways & Transport Services,http://opendatacommunities.org/def/concept/finance/sercop/objective/107,CONTINENTAL LANDSCAPES LTD,2108452,14/06/2017,68678,12.15,0,Parks routine maintenance,391310,Construction Open Spaces Construction
South Lakeland District Council,http://opendatacommunities.org/id/district-council/south-lakeland,30/06/2017,Social Enterprise Admin,Highways & Transport Services,http://opendatacommunities.org/def/concept/finance/sercop/objective/107,CONTINENTAL LANDSCAPES LTD,2108452,14/06/2017,68678,12.15,0,Parks routine maintenance,391310,Construction Open Spaces Construction
South Lakeland District Council,http://opendatacommunities.org/id/district-council/south-lakeland,30/06/2017,Social Enterprise Admin,Highways & Transport Services,http://opendatacommunities.org/def/concept/finance/sercop/objective/107,CONTINENTAL LANDSCAPES LTD,2108452,14/06/2017,68678,1.22,0,Parks routine maintenance,391310,Construction Open Spaces Construction
South Lakeland District Council,http://opendatacommunities.org/id/district-council/south-lakeland,30/06/2017,Social Enterprise Admin,Highways & Transport Services,http://opendatacommunities.org/def/concept/finance/sercop/objective/107,CONTINENTAL LANDSCAPES LTD,2108452,14/06/2017,68678,12.15,0,Parks routine maintenance,391310,Construction Open Spaces Construction
South Lakeland District Council,http://opendatacommunities.org/id/district-council/south-lakeland,30/06/2017,Social Enterprise Admin,Highways & Transport Services,http://opendatacommunities.org/def/concept/finance/sercop/objective/107,CONTINENTAL LANDSCAPES LTD,2108452,14/06/2017,68678,12.15,0,Parks routine maintenance,391310,Construction Open Spaces Construction
South Lakeland District Council,http://opendatacommunities.org/id/district-council/south-lakeland,30/06/2017,Social Enterprise Admin,Highways & Transport Services,http://opendatacommunities.org/def/concept/finance/sercop/objective/107,CONTINENTAL LANDSCAPES LTD,2108452,14/06/2017,68678,12.15,0,Parks routine maintenance,391310,Construction Open Spaces Construction
South Lakeland District Council,http://opendatacommunities.org/id/district-council/south-lakeland,30/06/2017,Social Enterprise Admin,Highways & Transport Services,http://opendatacommunities.org/def/concept/finance/sercop/objective/107,CONTINENTAL LANDSCAPES LTD,2108452,14/06/2017,68678,36.46,0,Parks routine maintenance,391310,Construction Open Spaces Construction
South Lakeland District Council,http://opendatacommunities.org/id/district-council/south-lakeland,30/06/2017,Social Enterprise Admin,Highways & Transport Services,http://opendatacommunities.org/def/concept/finance/sercop/objective/107,CONTINENTAL LANDSCAPES LTD,2108452,14/06/2017,68678,243.05,0,Parks routine maintenance,391310,Construction Open Spaces Construction
South Lakeland District Council,http://opendatacommunities.org/id/district-council/south-lakeland,30/06/2017,Social Enterprise Admin,Highways & Transport Services,http://opendatacommunities.org/def/concept/finance/sercop/objective/107,CONTINENTAL LANDSCAPES LTD,2108452,14/06/2017,68678,151.91,0,Parks routine maintenance,391310,Construction Open Spaces Construction
South Lakeland District Council,http://opendatacommunities.org/id/district-council/south-lakeland,30/06/2017,Social Enterprise Admin,Highways & Transport Services,http://opendatacommunities.org/def/concept/finance/sercop/objective/107,CONTINENTAL LANDSCAPES LTD,2108452,14/06/2017,68678,6.08,0,Parks routine maintenance,391310,Construction Open Spaces Construction
South Lakeland District Council,http://opendatacommunities.org/id/district-council/south-lakeland,30/06/2017,Social Enterprise Admin,Highways & Transport Services,http://opendatacommunities.org/def/concept/finance/sercop/objective/107,CONTINENTAL LANDSCAPES LTD,2108452,14/06/2017,68678,60.76,0,Parks routine maintenance,391310,Construction Open Spaces Construction
South Lakeland District Council,http://opendatacommunities.org/id/district-council/south-lakeland,30/06/2017,Social Enterprise Admin,Highways & Transport Services,http://opendatacommunities.org/def/concept/finance/sercop/objective/107,CONTINENTAL LANDSCAPES LTD,2108452,14/06/2017,68678,60.76,0,Parks routine maintenance,391310,Construction Open Spaces Construction
South Lakeland District Council,http://opendatacommunities.org/id/district-council/south-lakeland,30/06/2017,Social Enterprise Admin,Highways & Transport Services,http://opendatacommunities.org/def/concept/finance/sercop/objective/107,CONTINENTAL LANDSCAPES LTD,2108452,14/06/2017,68678,121.53,0,Parks routine maintenance,391310,Construction Open Spaces Construction
South Lakeland District Council,http://opendatacommunities.org/id/district-council/south-lakeland,30/06/2017,Social Enterprise Admin,Highways & Transport Services,http://opendatacommunities.org/def/concept/finance/sercop/objective/107,CONTINENTAL LANDSCAPES LTD,2108452,14/06/2017,68678,48.61,0,Parks routine maintenance,391310,Construction Open Spaces Construction
South Lakeland District Council,http://opendatacommunities.org/id/district-council/south-lakeland,30/06/2017,Social Enterprise Admin,Highways & Transport Services,http://opendatacommunities.org/def/concept/finance/sercop/objective/107,CONTINENTAL LANDSCAPES LTD,2108452,14/06/2017,68678,6.08,0,Parks routine maintenance,391310,Construction Open Spaces Construction
South Lakeland District Council,http://opendatacommunities.org/id/district-council/south-lakeland,30/06/2017,Social Enterprise Admin,Highways & Transport Services,http://opendatacommunities.org/def/concept/finance/sercop/objective/107,CONTINENTAL LANDSCAPES LTD,2108452,14/06/2017,68678,6.08,0,Parks routine maintenance,391310,Construction Open Spaces Construction
South Lakeland District Council,http://opendatacommunities.org/id/district-council/south-lakeland,30/06/2017,Social Enterprise Admin,Highways & Transport Services,http://opendatacommunities.org/def/concept/finance/sercop/objective/107,CONTINENTAL LANDSCAPES LTD,2108452,14/06/2017,68678,3.04,0,Parks routine maintenance,391310,Construction Open Spaces Construction
South Lakeland District Council,http://opendatacommunities.org/id/district-council/south-lakeland,30/06/2017,Social Enterprise Admin,Highways & Transport Services,http://opendatacommunities.org/def/concept/finance/sercop/objective/107,CONTINENTAL LANDSCAPES LTD,2108452,14/06/2017,68678,60.76,0,Parks routine maintenance,391310,Construction Open Spaces Construction
South Lakeland District Council,http://opendatacommunities.org/id/district-council/south-lakeland,30/06/2017,Social Enterprise Admin,Highways & Transport Services,http://opendatacommunities.org/def/concept/finance/sercop/objective/107,CONTINENTAL LANDSCAPES LTD,2108452,14/06/2017,68678,54.69,0,Parks routine maintenance,391310,Construction Open Spaces Construction
South Lakeland District Council,http://opendatacommunities.org/id/district-council/south-lakeland,30/06/2017,Social Enterprise Admin,Highways & Transport Services,http://opendatacommunities.org/def/concept/finance/sercop/objective/107,CONTINENTAL LANDSCAPES LTD,2108452,14/06/2017,68678,66.84,0,Parks routine maintenance,391310,Construction Open Spaces Construction
South Lakeland District Council,http://opendatacommunities.org/id/district-council/south-lakeland,30/06/2017,Social Enterprise Admin,Highways & Transport Services,http://opendatacommunities.org/def/concept/finance/sercop/objective/107,CONTINENTAL LANDSCAPES LTD,2108452,14/06/2017,68678,127.6,0,Parks routine maintenance,391310,Construction Open Spaces Construction
South Lakeland District Council,http://opendatacommunities.org/id/district-council/south-lakeland,30/06/2017,Social Enterprise Admin,Highways & Transport Services,http://opendatacommunities.org/def/concept/finance/sercop/objective/107,CONTINENTAL LANDSCAPES LTD,2108452,14/06/2017,68678,121.53,0,Parks routine maintenance,391310,Construction Open Spaces Construction
South Lakeland District Council,http://opendatacommunities.org/id/district-council/south-lakeland,30/06/2017,Social Enterprise Admin,Highways & Transport Services,http://opendatacommunities.org/def/concept/finance/sercop/objective/107,CONTINENTAL LANDSCAPES LTD,2108452,14/06/2017,68678,12.15,0,Parks routine maintenance,391310,Construction Open Spaces Construction
South Lakeland District Council,http://opendatacommunities.org/id/district-council/south-lakeland,30/06/2017,Social Enterprise Admin,Highways & Transport Services,http://opendatacommunities.org/def/concept/finance/sercop/objective/107,CONTINENTAL LANDSCAPES LTD,2108452,14/06/2017,68678,12.15,0,Parks routine maintenance,391310,Construction Open Spaces Construction
South Lakeland District Council,http://opendatacommunities.org/id/district-council/south-lakeland,30/06/2017,Social Enterprise Admin,Highways & Transport Services,http://opendatacommunities.org/def/concept/finance/sercop/objective/107,CONTINENTAL LANDSCAPES LTD,2108452,14/06/2017,68678,36.46,0,Parks routine maintenance,391310,Construction Open Spaces Construction
South Lakeland District Council,http://opendatacommunities.org/id/district-council/south-lakeland,30/06/2017,Social Enterprise Admin,Highways & Transport Services,http://opendatacommunities.org/def/concept/finance/sercop/objective/107,CONTINENTAL LANDSCAPES LTD,2108452,14/06/2017,68678,60.76,0,Parks routine maintenance,391310,Construction Open Spaces Construction
South Lakeland District Council,http://opendatacommunities.org/id/district-council/south-lakeland,30/06/2017,Social Enterprise Admin,Highways & Transport Services,http://opendatacommunities.org/def/concept/finance/sercop/objective/107,CONTINENTAL LANDSCAPES LTD,2108452,14/06/2017,68678,108.1,0,Parks routine maintenance,391310,Construction Open Spaces Construction
South Lakeland District Council,http://opendatacommunities.org/id/district-council/south-lakeland,30/06/2017,Social Enterprise Admin,Highways & Transport Services,http://opendatacommunities.org/def/concept/finance/sercop/objective/107,CONTINENTAL LANDSCAPES LTD,2108452,14/06/2017,68678,121.53,0,Parks routine maintenance,391310,Construction Open Spaces Construction
South Lakeland District Council,http://opendatacommunities.org/id/district-council/south-lakeland,30/06/2017,Social Enterprise Admin,Highways & Transport Services,http://opendatacommunities.org/def/concept/finance/sercop/objective/107,CONTINENTAL LANDSCAPES LTD,2108452,14/06/2017,68678,224.83,0,Parks routine maintenance,391310,Construction Open Spaces Construction
South Lakeland District Council,http://opendatacommunities.org/id/district-council/south-lakeland,30/06/2017,Social Enterprise Admin,Highways & Transport Services,http://opendatacommunities.org/def/concept/finance/sercop/objective/107,CONTINENTAL LANDSCAPES LTD,2108452,14/06/2017,68678,121.53,0,Parks routine maintenance,391310,Construction Open Spaces Construction
South Lakeland District Council,http://opendatacommunities.org/id/district-council/south-lakeland,30/06/2017,Social Enterprise Admin,Highways & Transport Services,http://opendatacommunities.org/def/concept/finance/sercop/objective/107,CONTINENTAL LANDSCAPES LTD,2108452,14/06/2017,68678,182.29,0,Parks routine maintenance,391310,Construction Open Spaces Construction
South Lakeland District Council,http://opendatacommunities.org/id/district-council/south-lakeland,30/06/2017,Social Enterprise Admin,Cultural Environmental Regulatory & Planning Services,http://opendatacommunities.org/def/concept/finance/sercop/objective/104,CONTINENTAL LANDSCAPES LTD,2108452,14/06/2017,68678,9722.17,0,Parks routine maintenance,391310,Construction Open Spaces Construction
South Lakeland District Council,http://opendatacommunities.org/id/district-council/south-lakeland,30/06/2017,Social Enterprise Admin,Cultural Environmental Regulatory & Planning Services,http://opendatacommunities.org/def/concept/finance/sercop/objective/104,CONTINENTAL LANDSCAPES LTD,2108452,14/06/2017,68678,24.31,0,Parks routine maintenance,391310,Construction Open Spaces Construction
South Lakeland District Council,http://opendatacommunities.org/id/district-council/south-lakeland,30/06/2017,Social Enterprise Admin,Cultural Environmental Regulatory & Planning Services,http://opendatacommunities.org/def/concept/finance/sercop/objective/104,CONTINENTAL LANDSCAPES LTD,2108452,14/06/2017,68678,46513.47,0,Parks routine maintenance,391310,Construction Open Spaces Construction
South Lakeland District Council,http://opendatacommunities.org/id/district-council/south-lakeland,30/06/2017,Social Enterprise Admin,Cultural Environmental Regulatory & Planning Services,http://opendatacommunities.org/def/concept/finance/sercop/objective/104,CONTINENTAL LANDSCAPES LTD,2108452,14/06/2017,68678,364.58,0,Parks routine maintenance,391310,Construction Open Spaces Construction
South Lakeland District Council,http://opendatacommunities.org/id/district-council/south-lakeland,30/06/2017,Social Enterprise Admin,Cultural Environmental Regulatory & Planning Services,http://opendatacommunities.org/def/concept/finance/sercop/objective/104,CONTINENTAL LANDSCAPES LTD,2108452,14/06/2017,68678,2309.02,0,Parks routine maintenance,391310,Construction Open Spaces Construction
South Lakeland District Council,http://opendatacommunities.org/id/district-council/south-lakeland,30/06/2017,Social Enterprise Admin,External Trading Accounts,,CONTINENTAL LANDSCAPES LTD,2108452,14/06/2017,68678,106.34,0,Parks routine maintenance,391310,Construction Open Spaces Construction
South Lakeland District Council,http://opendatacommunities.org/id/district-council/south-lakeland,30/06/2017,Business Support Community Services,Internal Trading Accounts,,EK MOTOR FACTORS LTD,838524,26/06/2017,69003,46.7,0,Part,381400,Vehicle Mgt Maintenance
South Lakeland District Council,http://opendatacommunities.org/id/district-council/south-lakeland,30/06/2017,Business Support Community Services,Internal Trading Accounts,,EK MOTOR FACTORS LTD,838524,26/06/2017,69003,89.9,0,Part,381400,Vehicle Mgt Maintenance
South Lakeland District Council,http://opendatacommunities.org/id/district-council/south-lakeland,30/06/2017,Business Support Community Services,Internal Trading Accounts,,EK MOTOR FACTORS LTD,838524,26/06/2017,69012,205.67,0,Part,381400,Vehicle Mgt Maintenance
South Lakeland District Council,http://opendatacommunities.org/id/district-council/south-lakeland,30/06/2017,Business Support Community Services,Internal Trading Accounts,,EK MOTOR FACTORS LTD,838524,26/06/2017,69032,5.95,0,Part,381400,Vehicle Mgt Maintenance
South Lakeland District Council,http://opendatacommunities.org/id/district-council/south-lakeland,30/06/2017,Business Support Community Services,Internal Trading Accounts,,EK MOTOR FACTORS LTD,838524,28/06/2017,69173,27,0,Part,381400,Vehicle Mgt Maintenance
South Lakeland District Council,http://opendatacommunities.org/id/district-council/south-lakeland,30/06/2017,Development Implementation,Cultural Environmental Regulatory & Planning Services,http://opendatacommunities.org/def/concept/finance/sercop/objective/104,THE QUAKER TAPESTRY KENDAL LTD,,21/06/2017,68872,550,0,Participation in the Kendal Courtesy,291400,Arts & Leisure Services Sport & Fitness
South Lakeland District Council,http://opendatacommunities.org/id/district-council/south-lakeland,30/06/2017,Business Support Community Services,Cultural Environmental Regulatory & Planning Services,http://opendatacommunities.org/def/concept/finance/sercop/objective/104,LAKELAND SUPPLIES,,12/06/2017,68748,59.81,0,Parts,101610,Building Hand Tools
South Lakeland District Council,http://opendatacommunities.org/id/district-council/south-lakeland,30/06/2017,Business Support Community Services,Cultural Environmental Regulatory & Planning Services,http://opendatacommunities.org/def/concept/finance/sercop/objective/104,LAKELAND SUPPLIES,,12/06/2017,68749,5.79,0,Parts,101610,Building Hand Tools
South Lakeland District Council,http://opendatacommunities.org/id/district-council/south-lakeland,30/06/2017,Social Enterprise Admin,SLDC as Agent,,PAY BY PHONE (PAYPOINT),,19/06/2017,68709,490.09,0,Pay-by-phone charges from 1 April 2017,351400,Street & Traffic Traffic Control
South Lakeland District Council,http://opendatacommunities.org/id/district-council/south-lakeland,30/06/2017,Environment and Housing,Housing Services,http://opendatacommunities.org/def/concept/finance/sercop/objective/108,GROWING CONCERNS LTD,,07/06/2017,68620,1092.22,0,Payment for Handy Person Scheme,391200,Construction Engineering
South Lakeland District Council,http://opendatacommunities.org/id/district-council/south-lakeland,30/06/2017,Environment and Housing,Housing Services,http://opendatacommunities.org/def/concept/finance/sercop/objective/108,GROWING CONCERNS LTD,,26/06/2017,68947,859.59,0,Payment for Handy Person Scheme,391200,Construction Engineering
South Lakeland District Council,http://opendatacommunities.org/id/district-council/south-lakeland,30/06/2017,Business Support Community Services,Cultural Environmental Regulatory & Planning Services,http://opendatacommunities.org/def/concept/finance/sercop/objective/104,CHRIS BOWKER LTD,1642561,12/06/2017,68690,585,0,Payment of Electrical Inspection,101100,Building Electrical
South Lakeland District Council,http://opendatacommunities.org/id/district-council/south-lakeland,30/06/2017,Business Support Community Services,Central Services,http://opendatacommunities.org/def/concept/finance/sercop/objective/102,STRAIGHT MANUFACTURING PLC,,14/06/2017,67221,5928,0,Per quotation 0000004741,182011,Environment Waste Management Consumables
South Lakeland District Council,http://opendatacommunities.org/id/district-council/south-lakeland,30/06/2017,Business Support Community Services,Internal Trading Accounts,,DENNIS EAGLE LTD,3794455,05/06/2017,68557,110.47,0,Pins,381300,Vehicle Mgt Industrial
South Lakeland District Council,http://opendatacommunities.org/id/district-council/south-lakeland,30/06/2017,Business Support Community Services,Internal Trading Accounts,,DENNIS EAGLE LTD,3794455,05/06/2017,68558,50.81,0,Pins,381300,Vehicle Mgt Industrial
South Lakeland District Council,http://opendatacommunities.org/id/district-council/south-lakeland,30/06/2017,Business Support Community Services,Internal Trading Accounts,,DENNIS EAGLE LTD,3794455,05/06/2017,68559,92.16,0,Pins,381300,Vehicle Mgt Industrial
South Lakeland District Council,http://opendatacommunities.org/id/district-council/south-lakeland,30/06/2017,Business Support Community Services,Internal Trading Accounts,,DENNIS EAGLE LTD,3794455,05/06/2017,68563,50.44,0,Pins,381300,Vehicle Mgt Industrial
South Lakeland District Council,http://opendatacommunities.org/id/district-council/south-lakeland,30/06/2017,ICT Group,Housing Services,http://opendatacommunities.org/def/concept/finance/sercop/objective/108,CCS MEDIA LTD,1693516,19/06/2017,68795,536,0,Plantronics Voyager Focus UC B825-M -,271400,ICT Office & Reprographics Equipment
South Lakeland District Council,http://opendatacommunities.org/id/district-council/south-lakeland,30/06/2017,Business Support Community Services,Internal Trading Accounts,,PIER 1 METALWORKS LTD,4291520,28/06/2017,69222,40,0,Plate,391200,Construction Engineering
South Lakeland District Council,http://opendatacommunities.org/id/district-council/south-lakeland,30/06/2017,Revenues and Benefits,Central Services,http://opendatacommunities.org/def/concept/finance/sercop/objective/102,ROYAL MAIL GROUP PLC,,19/06/2017,68837,69.78,0,Postal Charges a/c 0055114000  (2017/18),301200,Mail Services� Postage
South Lakeland District Council,http://opendatacommunities.org/id/district-council/south-lakeland,30/06/2017,Revenues and Benefits,SLDC as Agent,,ROYAL MAIL GROUP PLC,,07/06/2017,68625,2378.66,0,Postal Charges a/c 0198123013 (2017-18),301200,Mail Services� Postage
South Lakeland District Council,http://opendatacommunities.org/id/district-council/south-lakeland,30/06/2017,Revenues and Benefits,SLDC as Agent,,ROYAL MAIL GROUP PLC,,19/06/2017,68835,1397.6,0,Postal Charges a/c 0198123013 (2017-18),301200,Mail Services� Postage
South Lakeland District Council,http://opendatacommunities.org/id/district-council/south-lakeland,30/06/2017,Revenues and Benefits,SLDC as Agent,,ROYAL MAIL GROUP PLC,,21/06/2017,68907,2273,0,Postal Charges a/c 0198123013 (2017-18),301200,Mail Services� Postage
South Lakeland District Council,http://opendatacommunities.org/id/district-council/south-lakeland,30/06/2017,Electoral Services,Central Services,http://opendatacommunities.org/def/concept/finance/sercop/objective/102,ROYAL MAIL GROUP PLC,,28/06/2017,69203,6655.93,0,Postal Vote Returns Parliamentary,301200,Mail Services� Postage
South Lakeland District Council,http://opendatacommunities.org/id/district-council/south-lakeland,30/06/2017,Electoral Services,Central Services,http://opendatacommunities.org/def/concept/finance/sercop/objective/102,SCI PRINT LTD,,07/06/2017,68633,5876.6,0,Printing Parliamentary Ballot Papers,191600,Facilities Printing
South Lakeland District Council,http://opendatacommunities.org/id/district-council/south-lakeland,30/06/2017,Electoral Services,Central Services,http://opendatacommunities.org/def/concept/finance/sercop/objective/102,SCI PRINT LTD,,07/06/2017,68632,11289,0,Printing Postl Vote Packs for,191600,Facilities Printing
South Lakeland District Council,http://opendatacommunities.org/id/district-council/south-lakeland,30/06/2017,Electoral Services,Central Services,http://opendatacommunities.org/def/concept/finance/sercop/objective/102,SCI PRINT LTD,,07/06/2017,68632,9831.63,0,Printing Postl Vote Packs for,191600,Facilities Printing
South Lakeland District Council,http://opendatacommunities.org/id/district-council/south-lakeland,30/06/2017,Policy & Partnerships,Central Services,http://opendatacommunities.org/def/concept/finance/sercop/objective/102,CASTLERIGG CONSULTING,6747285,14/06/2017,68591,735,0,Process Mapping Work,159999,Consultancy Not Elsewhere Classified
South Lakeland District Council,http://opendatacommunities.org/id/district-council/south-lakeland,30/06/2017,Development Implementation,Central Services,http://opendatacommunities.org/def/concept/finance/sercop/objective/102,LAMBERT SMITH HAMPTON GROUP,2521225,05/06/2017,68476,60140.17,0,Property Services Contract - April -,999999,Unclassifiable
South Lakeland District Council,http://opendatacommunities.org/id/district-council/south-lakeland,30/06/2017,Business Support Community Services,Central Services,http://opendatacommunities.org/def/concept/finance/sercop/objective/102,COPELAND BOROUGH COUNCIL,,07/06/2017,68631,390,0,Prosecution File Training,908000,Public Bodies Council support services
South Lakeland District Council,http://opendatacommunities.org/id/district-council/south-lakeland,30/06/2017,Business Support Community Services,Cultural Environmental Regulatory & Planning Services,http://opendatacommunities.org/def/concept/finance/sercop/objective/104,CUMBRIA WASTE RECYCLING LTD,3162439,21/06/2017,68940,65,0,Provision of waste skips at 4 sites for,182012,Environment Waste Management Recycling
South Lakeland District Council,http://opendatacommunities.org/id/district-council/south-lakeland,30/06/2017,Business Support Community Services,Cultural Environmental Regulatory & Planning Services,http://opendatacommunities.org/def/concept/finance/sercop/objective/104,CUMBRIA WASTE RECYCLING LTD,3162439,21/06/2017,68941,65,0,Provision of waste skips at 4 sites for,182012,Environment Waste Management Recycling
South Lakeland District Council,http://opendatacommunities.org/id/district-council/south-lakeland,30/06/2017,Business Support Community Services,Cultural Environmental Regulatory & Planning Services,http://opendatacommunities.org/def/concept/finance/sercop/objective/104,CUMBRIA WASTE RECYCLING LTD,3162439,21/06/2017,68942,65,0,Provision of waste skips at 4 sites for,182012,Environment Waste Management Recycling
South Lakeland District Council,http://opendatacommunities.org/id/district-council/south-lakeland,30/06/2017,Business Support Community Services,Cultural Environmental Regulatory & Planning Services,http://opendatacommunities.org/def/concept/finance/sercop/objective/104,CUMBRIA WASTE RECYCLING LTD,3162439,21/06/2017,68943,65,0,Provision of waste skips at 4 sites for,182012,Environment Waste Management Recycling
South Lakeland District Council,http://opendatacommunities.org/id/district-council/south-lakeland,30/06/2017,Social Enterprise Admin,Highways & Transport Services,http://opendatacommunities.org/def/concept/finance/sercop/objective/107,THOMAS GRAHAM & SONS LTD,656879,05/06/2017,68519,23.1,0,Pruduct Code AE115 Jangro H-Towels Green,101400,Building General Materials
South Lakeland District Council,http://opendatacommunities.org/id/district-council/south-lakeland,30/06/2017,Business Support Community Services,Internal Trading Accounts,,DENNIS EAGLE LTD,3794455,28/06/2017,69174,989.82,0,PTO,381300,Vehicle Mgt Industrial
South Lakeland District Council,http://opendatacommunities.org/id/district-council/south-lakeland,30/06/2017,Social Enterprise Admin,Cultural Environmental Regulatory & Planning Services,http://opendatacommunities.org/def/concept/finance/sercop/objective/104,NEWSQUEST MEDIA GROUP LTD,3102566,28/06/2017,68832,120.96,0,PUBLIC NOTICES FOR PLANNING 1 APRIL - 31,191000,Facilities Advertising
South Lakeland District Council,http://opendatacommunities.org/id/district-council/south-lakeland,30/06/2017,Social Enterprise Admin,Cultural Environmental Regulatory & Planning Services,http://opendatacommunities.org/def/concept/finance/sercop/objective/104,FURNESS NEWSPAPERS LTD,1155841,12/06/2017,68494,72.52,0,PUBLIC NOTICES FOR PLANNING 1 APRIL 2015,191000,Facilities Advertising
South Lakeland District Council,http://opendatacommunities.org/id/district-council/south-lakeland,30/06/2017,Social Enterprise Admin,Cultural Environmental Regulatory & Planning Services,http://opendatacommunities.org/def/concept/finance/sercop/objective/104,FURNESS NEWSPAPERS LTD,1155841,12/06/2017,68638,62.16,0,PUBLIC NOTICES FOR PLANNING 1 APRIL 2015,191000,Facilities Advertising
South Lakeland District Council,http://opendatacommunities.org/id/district-council/south-lakeland,30/06/2017,Financial Services,Central Services,http://opendatacommunities.org/def/concept/finance/sercop/objective/102,Capita Secure Information Solutions Ltd,1593831,14/06/2017,68764,13431.48,0,Purchase Ordering software maintenance,271600,ICT Software Customised & Bespoke
South Lakeland District Council,http://opendatacommunities.org/id/district-council/south-lakeland,30/06/2017,Revenues and Benefits,Central Services,http://opendatacommunities.org/def/concept/finance/sercop/objective/102,MERITEC LTD,3224622,05/06/2017,68485,279,0,RAB Processing Contract and Agency Staff,391200,Construction Engineering
South Lakeland District Council,http://opendatacommunities.org/id/district-council/south-lakeland,30/06/2017,Revenues and Benefits,Central Services,http://opendatacommunities.org/def/concept/finance/sercop/objective/102,MERITEC LTD,3224622,21/06/2017,68883,139.5,0,RAB Processing Contract and Agency Staff,391200,Construction Engineering
South Lakeland District Council,http://opendatacommunities.org/id/district-council/south-lakeland,30/06/2017,Business Support Community Services,Internal Trading Accounts,,LAKELAND COMMERCIALS LTD,2719162,05/06/2017,68429,80,0,Re-charge aircon,361600,Public Transport Taxi Services Home to S
South Lakeland District Council,http://opendatacommunities.org/id/district-council/south-lakeland,30/06/2017,Financial Services,Central Services,http://opendatacommunities.org/def/concept/finance/sercop/objective/102,Halecroft Recruitment Limited,9118934,21/06/2017,68985,4617.75,0,Recruitment Fee,261300,HR Recruitment & Assessment
South Lakeland District Council,http://opendatacommunities.org/id/district-council/south-lakeland,30/06/2017,Business Support Community Services,Housing Services,http://opendatacommunities.org/def/concept/finance/sercop/objective/108,Keys Letting Centre (Ulverston) Ltd,9309129,19/06/2017,68868,1168.87,0,Ref: 19a Dor - Rent payment,250010,Housing Letting Agents
South Lakeland District Council,http://opendatacommunities.org/id/district-council/south-lakeland,30/06/2017,Business Support Community Services,Central Services,http://opendatacommunities.org/def/concept/finance/sercop/objective/102,UK Container Maintenance Ltd,3617405,21/06/2017,68925,1260,0,Refurbish containers at North Lonsdale,182000,Environment Waste Management
South Lakeland District Council,http://opendatacommunities.org/id/district-council/south-lakeland,30/06/2017,Business Support Community Services,Internal Trading Accounts,,B & J METALS (SKIP HIRE) LTD,4634318,19/06/2017,68705,650,0,"Removal of abandoned caravan & contents,",182011,Environment Waste Management Consumables
South Lakeland District Council,http://opendatacommunities.org/id/district-council/south-lakeland,30/06/2017,Leisure and Wellbeing,Cultural Environmental Regulatory & Planning Services,http://opendatacommunities.org/def/concept/finance/sercop/objective/104,CONTINENTAL LANDSCAPES LTD,2108452,28/06/2017,66855,2045,0,Renovate seats Greenside and Grasmere.,391310,Construction Open Spaces Construction
South Lakeland District Council,http://opendatacommunities.org/id/district-council/south-lakeland,30/06/2017,ICT Group,Central Services,http://opendatacommunities.org/def/concept/finance/sercop/objective/102,FERRET INFORMATION SYSTEMS LTD,2126033,26/06/2017,68915,190,0,"Renovator PC Renewal, Updating service",271600,ICT Software Customised & Bespoke
South Lakeland District Council,http://opendatacommunities.org/id/district-council/south-lakeland,30/06/2017,Business Support Community Services,Housing Services,http://opendatacommunities.org/def/concept/finance/sercop/objective/108,Hackney & Leigh Ltd,4643476,28/06/2017,69230,1375,0,Rent in advance,201700,Financial Services Grants
South Lakeland District Council,http://opendatacommunities.org/id/district-council/south-lakeland,30/06/2017,Business Support Community Services,Housing Services,http://opendatacommunities.org/def/concept/finance/sercop/objective/108,Mint Homes,8345036,19/06/2017,68867,445,0,Rent in advance,202000,Financial Services Rents
South Lakeland District Council,http://opendatacommunities.org/id/district-council/south-lakeland,30/06/2017,Business Support Community Services,Housing Services,http://opendatacommunities.org/def/concept/finance/sercop/objective/108,Sharples Estate Agents Ltd,7527008,28/06/2017,69229,450,0,Rent in advance,250010,Housing Letting Agents
South Lakeland District Council,http://opendatacommunities.org/id/district-council/south-lakeland,30/06/2017,Social Enterprise Admin,Cultural Environmental Regulatory & Planning Services,http://opendatacommunities.org/def/concept/finance/sercop/objective/104,THE NATIONAL TRUST,,12/06/2017,68713,362.5,0,"Rent of Land at Lake Wardens Office,",202100,Financial Services Subscriptions
South Lakeland District Council,http://opendatacommunities.org/id/district-council/south-lakeland,30/06/2017,Business Support Community Services,Internal Trading Accounts,,Blackpool Trim Ltd,8665678,14/06/2017,68735,55,0,Repair seat base,381400,Vehicle Mgt Maintenance
South Lakeland District Council,http://opendatacommunities.org/id/district-council/south-lakeland,30/06/2017,Business Support Community Services,Internal Trading Accounts,,FURNESS FLUID POWER LTD,5675728,28/06/2017,69216,90.12,0,Repair SL011,260000,HR
South Lakeland District Council,http://opendatacommunities.org/id/district-council/south-lakeland,30/06/2017,Business Support Community Services,Internal Trading Accounts,,CUMBRIA TRUCK CENTRE LTD,4298488,05/06/2017,68531,296.91,0,Repair SL019,381300,Vehicle Mgt Industrial
South Lakeland District Council,http://opendatacommunities.org/id/district-council/south-lakeland,30/06/2017,Business Support Community Services,Internal Trading Accounts,,CUMBRIA TRUCK CENTRE LTD,4298488,28/06/2017,69158,2143.87,0,Repair SL019,381300,Vehicle Mgt Industrial
South Lakeland District Council,http://opendatacommunities.org/id/district-council/south-lakeland,30/06/2017,Business Support Community Services,Cultural Environmental Regulatory & Planning Services,http://opendatacommunities.org/def/concept/finance/sercop/objective/104,UK SYSTEMS INC LTD,2889369,26/06/2017,68856,62,0,Repairs to drains CCTV Equipment,271200,ICT Hardware
South Lakeland District Council,http://opendatacommunities.org/id/district-council/south-lakeland,30/06/2017,Business Support Community Services,Internal Trading Accounts,,FUMEX LTD,5224923,07/06/2017,68589,557,0,Replace hose,101700,Building Heating & Air Conditioning
South Lakeland District Council,http://opendatacommunities.org/id/district-council/south-lakeland,30/06/2017,Electoral Services,Central Services,http://opendatacommunities.org/def/concept/finance/sercop/objective/102,ROYAL MAIL GROUP PLC,,07/06/2017,68629,109.89,0,Response Plus Postage,301200,Mail Services� Postage
South Lakeland District Council,http://opendatacommunities.org/id/district-council/south-lakeland,30/06/2017,Revenues and Benefits,SLDC as Agent,,ROYAL MAIL GROUP PLC,,07/06/2017,68624,95,0,Response Services Licence  0917139001,301200,Mail Services� Postage
South Lakeland District Council,http://opendatacommunities.org/id/district-council/south-lakeland,30/06/2017,Electoral Services,Central Services,http://opendatacommunities.org/def/concept/finance/sercop/objective/102,ROYAL MAIL GROUP PLC,,21/06/2017,68908,977.48,0,Return Postage CCC Election,301200,Mail Services� Postage
South Lakeland District Council,http://opendatacommunities.org/id/district-council/south-lakeland,30/06/2017,Business Support Community Services,Internal Trading Accounts,,Romaquip UK,,14/06/2017,68704,224.7,0,Rollers,381000,Vehicle Mgt Commercial
South Lakeland District Council,http://opendatacommunities.org/id/district-council/south-lakeland,30/06/2017,Business Support Community Services,Internal Trading Accounts,,Ulverston Coronation Hall,,12/06/2017,68674,98.33,0,Room booking for 20/5/17,291300,Arts & Leisure Services Performing Arts
South Lakeland District Council,http://opendatacommunities.org/id/district-council/south-lakeland,30/06/2017,Policy & Partnerships,Central Services,http://opendatacommunities.org/def/concept/finance/sercop/objective/102,Crooklands Hotel Limited,4534731,28/06/2017,69189,95.63,0,Room Hire and cost of refreshements for,261500,HR Training & Conferences
South Lakeland District Council,http://opendatacommunities.org/id/district-council/south-lakeland,30/06/2017,Leisure and Wellbeing,Cultural Environmental Regulatory & Planning Services,http://opendatacommunities.org/def/concept/finance/sercop/objective/104,Stonecraft Design Cumbria Ltd,7159682,28/06/2017,69228,480,0,Rothay Park entrance plaque,120000,Cemetery & Crematorium
South Lakeland District Council,http://opendatacommunities.org/id/district-council/south-lakeland,30/06/2017,Human Resources,Central Services,http://opendatacommunities.org/def/concept/finance/sercop/objective/102,YC Enterprises,8447622,05/06/2017,68585,175,0,safeguarding 10/04/2017 for the town,261500,HR Training & Conferences
South Lakeland District Council,http://opendatacommunities.org/id/district-council/south-lakeland,30/06/2017,Electoral Services,Central Services,http://opendatacommunities.org/def/concept/finance/sercop/objective/102,THOMSON REUTERS (PROFESSIONAL) UK LTD,1679046,05/06/2017,68489,204,0,Schofields Election Law Issue 34,202100,Financial Services Subscriptions
South Lakeland District Council,http://opendatacommunities.org/id/district-council/south-lakeland,30/06/2017,Business Support Community Services,Housing Services,http://opendatacommunities.org/def/concept/finance/sercop/objective/108,Vigilant Security Services UK Ltd,5914271,14/06/2017,68644,2484,0,Secruity guard at TVF Hostel,192213,Facilities Security Manned Guarding
South Lakeland District Council,http://opendatacommunities.org/id/district-council/south-lakeland,30/06/2017,Electoral Services,Central Services,http://opendatacommunities.org/def/concept/finance/sercop/objective/102,FGH SECURITY,,26/06/2017,68889,630,0,Security for Parliamentary Count,192200,Facilities Security
South Lakeland District Council,http://opendatacommunities.org/id/district-council/south-lakeland,30/06/2017,Leisure and Wellbeing,Cultural Environmental Regulatory & Planning Services,http://opendatacommunities.org/def/concept/finance/sercop/objective/104,SOUTH LAKES TREE SURGEONS & LANDSCAPES,5342745,21/06/2017,68882,240,0,"Sedgwick Court, Grange over Sands ",241210,Horticultural Tree Trimming
South Lakeland District Council,http://opendatacommunities.org/id/district-council/south-lakeland,30/06/2017,Business Support Community Services,Internal Trading Accounts,,Preston Trade Parts Specialists,,19/06/2017,68698,0.73,0,Sensor,381400,Vehicle Mgt Maintenance
South Lakeland District Council,http://opendatacommunities.org/id/district-council/south-lakeland,30/06/2017,Business Support Community Services,Internal Trading Accounts,,Preston Trade Parts Specialists,,19/06/2017,68699,7.42,0,Sensor,381400,Vehicle Mgt Maintenance
South Lakeland District Council,http://opendatacommunities.org/id/district-council/south-lakeland,30/06/2017,Business Support Community Services,Internal Trading Accounts,,Preston Trade Parts Specialists,,19/06/2017,68700,22.48,0,Sensor,381400,Vehicle Mgt Maintenance
South Lakeland District Council,http://opendatacommunities.org/id/district-council/south-lakeland,30/06/2017,Business Support Community Services,Internal Trading Accounts,,Preston Trade Parts Specialists,,19/06/2017,68731,25.42,0,Sensor,381400,Vehicle Mgt Maintenance
South Lakeland District Council,http://opendatacommunities.org/id/district-council/south-lakeland,30/06/2017,Business Support Community Services,Internal Trading Accounts,,Preston Trade Parts Specialists,,12/06/2017,68744,33.19,0,Sensor,381400,Vehicle Mgt Maintenance
South Lakeland District Council,http://opendatacommunities.org/id/district-council/south-lakeland,30/06/2017,Business Support Community Services,Internal Trading Accounts,,Preston Trade Parts Specialists,,12/06/2017,68747,41.67,0,Sensor,381400,Vehicle Mgt Maintenance
South Lakeland District Council,http://opendatacommunities.org/id/district-council/south-lakeland,30/06/2017,Business Support Community Services,Internal Trading Accounts,,TECHNIJET LTD,2776601,05/06/2017,68577,20.61,0,Service & repair pressure washers,139999,Cleaning & Janitorial Not Elsewhere Clas
South Lakeland District Council,http://opendatacommunities.org/id/district-council/south-lakeland,30/06/2017,Business Support Community Services,Internal Trading Accounts,,Tecalemit Garage Equipment Co Ltd,,28/06/2017,69106,127.8,0,Service lifts,101600,Building Hand Tools
South Lakeland District Council,http://opendatacommunities.org/id/district-council/south-lakeland,30/06/2017,ICT Group,Central Services,http://opendatacommunities.org/def/concept/finance/sercop/objective/102,GGP Systems Limited,2685491,21/06/2017,67697,12000,0,Setup and training costs for new,270000,Information Communications Technology
South Lakeland District Council,http://opendatacommunities.org/id/district-council/south-lakeland,30/06/2017,ICT Group,Central Services,http://opendatacommunities.org/def/concept/finance/sercop/objective/102,GGP Systems Limited,2685491,21/06/2017,68535,1650,0,Setup and training costs for new,270000,Information Communications Technology
South Lakeland District Council,http://opendatacommunities.org/id/district-council/south-lakeland,30/06/2017,Business Support Community Services,Internal Trading Accounts,,SOLWAY DAF,1393710,05/06/2017,68549,-227.89,0,Shackle,381000,Vehicle Mgt Commercial
South Lakeland District Council,http://opendatacommunities.org/id/district-council/south-lakeland,30/06/2017,Business Support Community Services,Internal Trading Accounts,,SOLWAY DAF,1393710,05/06/2017,68550,254.4,0,Shackle,381000,Vehicle Mgt Commercial
South Lakeland District Council,http://opendatacommunities.org/id/district-council/south-lakeland,30/06/2017,Business Support Community Services,Internal Trading Accounts,,SOLWAY DAF,1393710,05/06/2017,68551,23.29,0,Shackle,381000,Vehicle Mgt Commercial
South Lakeland District Council,http://opendatacommunities.org/id/district-council/south-lakeland,30/06/2017,Business Support Community Services,Internal Trading Accounts,,SOLWAY DAF,1393710,05/06/2017,68552,39.3,0,Shackle,381000,Vehicle Mgt Commercial
South Lakeland District Council,http://opendatacommunities.org/id/district-council/south-lakeland,30/06/2017,Business Support Community Services,Internal Trading Accounts,,SOLWAY DAF,1393710,05/06/2017,68553,15.34,0,Shackle,381000,Vehicle Mgt Commercial
South Lakeland District Council,http://opendatacommunities.org/id/district-council/south-lakeland,30/06/2017,Business Support Community Services,Internal Trading Accounts,,SOLWAY DAF,1393710,05/06/2017,68554,109.49,0,Shackle,381000,Vehicle Mgt Commercial
South Lakeland District Council,http://opendatacommunities.org/id/district-council/south-lakeland,30/06/2017,Business Support Community Services,Internal Trading Accounts,,SOLWAY DAF,1393710,05/06/2017,68555,16.02,0,Shackle,381000,Vehicle Mgt Commercial
South Lakeland District Council,http://opendatacommunities.org/id/district-council/south-lakeland,30/06/2017,Business Support Community Services,Internal Trading Accounts,,SOLWAY DAF,1393710,05/06/2017,68569,618.03,0,Shackle,381000,Vehicle Mgt Commercial
South Lakeland District Council,http://opendatacommunities.org/id/district-council/south-lakeland,30/06/2017,Customer Services,Central Services,http://opendatacommunities.org/def/concept/finance/sercop/objective/102,SHRED-IT,4047194,21/06/2017,68948,150.29,0,shred it removal,279999,ICT Not Elsewhere Classified
South Lakeland District Council,http://opendatacommunities.org/id/district-council/south-lakeland,30/06/2017,ICT Group,Central Services,http://opendatacommunities.org/def/concept/finance/sercop/objective/102,SITEIMPROVE LTD,4932868,28/06/2017,69137,1758.67,0,Siteimprove Contract Number: 5239,271515,ICT Website Development
South Lakeland District Council,http://opendatacommunities.org/id/district-council/south-lakeland,30/06/2017,Democratic and Member Services,Central Services,http://opendatacommunities.org/def/concept/finance/sercop/objective/102,MAJESTIC PUBLICATIONS LTD,4353962,28/06/2017,69206,265,0,sixth page SLDC add in newsletter to,171113,Education Library Books
South Lakeland District Council,http://opendatacommunities.org/id/district-council/south-lakeland,30/06/2017,Business Support Community Services,Internal Trading Accounts,,CUMBRIA WASTE RECYCLING LTD,3162439,19/06/2017,68790,1393.2,0,Skip emptying at Ecclerigg & Ulverston,182012,Environment Waste Management Recycling
South Lakeland District Council,http://opendatacommunities.org/id/district-council/south-lakeland,30/06/2017,Business Support Community Services,Internal Trading Accounts,,CUMBRIA WASTE RECYCLING LTD,3162439,19/06/2017,68792,354,0,Skip emptying at Ecclerigg & Ulverston,182012,Environment Waste Management Recycling
South Lakeland District Council,http://opendatacommunities.org/id/district-council/south-lakeland,30/06/2017,Development Implementation,Planning and Development,,Bloom Procurement Services Ltd,,14/06/2017,68695,1242.5,0,SLDC - Kendal Market Place Public Realm,151900,Consultancy Management
South Lakeland District Council,http://opendatacommunities.org/id/district-council/south-lakeland,30/06/2017,Development Implementation,Central Services,http://opendatacommunities.org/def/concept/finance/sercop/objective/102,Masterstaff Limited,2777593,12/06/2017,68574,168,0,SLDC Admin - ,261300,HR Recruitment & Assessment
South Lakeland District Council,http://opendatacommunities.org/id/district-council/south-lakeland,30/06/2017,Development Implementation,Central Services,http://opendatacommunities.org/def/concept/finance/sercop/objective/102,Masterstaff Limited,2777593,26/06/2017,68892,84,0,SLDC Admin -  12hrs,261300,HR Recruitment & Assessment
South Lakeland District Council,http://opendatacommunities.org/id/district-council/south-lakeland,30/06/2017,Development Implementation,Central Services,http://opendatacommunities.org/def/concept/finance/sercop/objective/102,Masterstaff Limited,2777593,28/06/2017,69185,177,0,SLDC Admin -  12hrs,261300,HR Recruitment & Assessment
South Lakeland District Council,http://opendatacommunities.org/id/district-council/south-lakeland,30/06/2017,Development Implementation,Central Services,http://opendatacommunities.org/def/concept/finance/sercop/objective/102,Masterstaff Limited,2777593,26/06/2017,68710,162,0,SLDC Admin - - 12hrs,261300,HR Recruitment & Assessment
South Lakeland District Council,http://opendatacommunities.org/id/district-council/south-lakeland,30/06/2017,Development Implementation,Central Services,http://opendatacommunities.org/def/concept/finance/sercop/objective/102,THE TECHNOLOGY FORGE,6834254,05/06/2017,68477,6520.82,0,SLDC Annual Maintenance & Renewal,271600,ICT Software Customised & Bespoke
South Lakeland District Council,http://opendatacommunities.org/id/district-council/south-lakeland,30/06/2017,Development Implementation,Central Services,http://opendatacommunities.org/def/concept/finance/sercop/objective/102,THE TECHNOLOGY FORGE,6834254,05/06/2017,68477,2877.18,0,SLDC Annual Maintenance & Renewal,271600,ICT Software Customised & Bespoke
South Lakeland District Council,http://opendatacommunities.org/id/district-council/south-lakeland,30/06/2017,Business Support Community Services,Cultural Environmental Regulatory & Planning Services,http://opendatacommunities.org/def/concept/finance/sercop/objective/104,BREWERY ARTS CENTRE,,28/06/2017,69198,2000,0,SLDC partner contribution for work in,291000,Arts & Leisure Services Events
South Lakeland District Council,http://opendatacommunities.org/id/district-council/south-lakeland,30/06/2017,Social Enterprise Admin,Cultural Environmental Regulatory & Planning Services,http://opendatacommunities.org/def/concept/finance/sercop/objective/104,Morral Play Services,7994508,05/06/2017,68425,4065.83,0,SLDC Play Audit,331200,Sports & Playground- Maintenance- Servic
South Lakeland District Council,http://opendatacommunities.org/id/district-council/south-lakeland,30/06/2017,Human Resources,Central Services,http://opendatacommunities.org/def/concept/finance/sercop/objective/102,MIDLAND SOFTWARE LTD,1852206,05/06/2017,68546,-140.35,0,Software Maintenance iTrent Rental 01,271600,ICT Software Customised & Bespoke
South Lakeland District Council,http://opendatacommunities.org/id/district-council/south-lakeland,30/06/2017,Electoral Services,Central Services,http://opendatacommunities.org/def/concept/finance/sercop/objective/102,SOUNDSMITH LIMITED,5366630,21/06/2017,68910,2460,0,Sound Equipment Parliamentary Count,171111,Education Audio Visual
South Lakeland District Council,http://opendatacommunities.org/id/district-council/south-lakeland,30/06/2017,Development Implementation,Central Services,http://opendatacommunities.org/def/concept/finance/sercop/objective/102,CUMBRIA WASTE RECYCLING LTD,3162439,19/06/2017,68778,278.82,0,South Lakeland House bin & skip emptying,182012,Environment Waste Management Recycling
South Lakeland District Council,http://opendatacommunities.org/id/district-council/south-lakeland,30/06/2017,Social Enterprise Admin,Environment Regulatory,,GEORGE BARKER & SONS (TIMBER MERCH) LTD,,19/06/2017,68827,4880,0,Specials bench 1800mm internal   to be,102500,Building Timber
South Lakeland District Council,http://opendatacommunities.org/id/district-council/south-lakeland,30/06/2017,Business Support Community Services,Internal Trading Accounts,,CUMBRIA TRUCK CENTRE LTD,4298488,19/06/2017,68702,701.95,0,Spring,381300,Vehicle Mgt Industrial
South Lakeland District Council,http://opendatacommunities.org/id/district-council/south-lakeland,30/06/2017,Business Support Community Services,Internal Trading Accounts,,EK MOTOR FACTORS LTD,838524,28/06/2017,69148,113.69,0,Spring,381400,Vehicle Mgt Maintenance
South Lakeland District Council,http://opendatacommunities.org/id/district-council/south-lakeland,30/06/2017,Business Support Community Services,Internal Trading Accounts,,EK MOTOR FACTORS LTD,838524,28/06/2017,69149,25.1,0,Spring,381400,Vehicle Mgt Maintenance
South Lakeland District Council,http://opendatacommunities.org/id/district-council/south-lakeland,30/06/2017,Business Support Community Services,Internal Trading Accounts,,EK MOTOR FACTORS LTD,838524,28/06/2017,69150,43.85,0,Spring,381400,Vehicle Mgt Maintenance
South Lakeland District Council,http://opendatacommunities.org/id/district-council/south-lakeland,30/06/2017,Business Support Community Services,Internal Trading Accounts,,EK MOTOR FACTORS LTD,838524,28/06/2017,69151,112.18,0,Spring,381400,Vehicle Mgt Maintenance
South Lakeland District Council,http://opendatacommunities.org/id/district-council/south-lakeland,30/06/2017,Business Support Community Services,Internal Trading Accounts,,EK MOTOR FACTORS LTD,838524,28/06/2017,69152,-24.3,0,Spring,381400,Vehicle Mgt Maintenance
South Lakeland District Council,http://opendatacommunities.org/id/district-council/south-lakeland,30/06/2017,Business Support Community Services,Internal Trading Accounts,,EK MOTOR FACTORS LTD,838524,28/06/2017,69153,74.93,0,Spring,381400,Vehicle Mgt Maintenance
South Lakeland District Council,http://opendatacommunities.org/id/district-council/south-lakeland,30/06/2017,Business Support Community Services,Internal Trading Accounts,,EK MOTOR FACTORS LTD,838524,28/06/2017,69154,-59.5,0,Spring,381400,Vehicle Mgt Maintenance
South Lakeland District Council,http://opendatacommunities.org/id/district-council/south-lakeland,30/06/2017,Business Support Community Services,Internal Trading Accounts,,HYDRAIR TRUCK & TRAILER PARTS LTD,,26/06/2017,68970,142.2,0,Spring,381500,Vehicle Mgt Parts
South Lakeland District Council,http://opendatacommunities.org/id/district-council/south-lakeland,30/06/2017,Business Support Community Services,Internal Trading Accounts,,FAUN ZOELLER (UK) LTD,751804,28/06/2017,69218,88.3,0,Springs,381400,Vehicle Mgt Maintenance
South Lakeland District Council,http://opendatacommunities.org/id/district-council/south-lakeland,30/06/2017,Business Support Community Services,Internal Trading Accounts,,VOLVO GROUP UK LTD,2190944,28/06/2017,69214,335,0,Starter,381000,Vehicle Mgt Commercial
South Lakeland District Council,http://opendatacommunities.org/id/district-council/south-lakeland,30/06/2017,Business Support Community Services,Internal Trading Accounts,,STAGECOACH NORTHWEST,,05/06/2017,68564,75,0,Steam cleaning 01/04/17 - 31/03/18,361300,Public Transport Passenger Transport
South Lakeland District Council,http://opendatacommunities.org/id/district-council/south-lakeland,30/06/2017,Business Support Community Services,Internal Trading Accounts,,STAGECOACH NORTHWEST,,05/06/2017,68565,225,0,Steam cleaning 01/04/17 - 31/03/18,361300,Public Transport Passenger Transport
South Lakeland District Council,http://opendatacommunities.org/id/district-council/south-lakeland,30/06/2017,Environment and Housing,Housing,http://opendatacommunities.org/def/concept/finance/sercop/objective/108,Landlord,,28/06/2017,69251,28862.4,0,"Stonecroft, Ambleside",100000,Building Construction materials
South Lakeland District Council,http://opendatacommunities.org/id/district-council/south-lakeland,30/06/2017,Business Support Community Services,Internal Trading Accounts,,HAKO MACHINES LIMITED,1414225,26/06/2017,68983,1,0,Strake,131000,Cleaning & Janitorial Cleaning Materials
South Lakeland District Council,http://opendatacommunities.org/id/district-council/south-lakeland,30/06/2017,Business Support Community Services,Internal Trading Accounts,,HAKO MACHINES LIMITED,1414225,26/06/2017,68983,157.76,0,Strake,131000,Cleaning & Janitorial Cleaning Materials
South Lakeland District Council,http://opendatacommunities.org/id/district-council/south-lakeland,30/06/2017,Business Support Community Services,Cultural Environmental Regulatory & Planning Services,http://opendatacommunities.org/def/concept/finance/sercop/objective/104,GB Sign Solutions Ltd,9609330,07/06/2017,68605,133.5,0,Street Nameplates 2016/17,102400,Building Signage
South Lakeland District Council,http://opendatacommunities.org/id/district-council/south-lakeland,30/06/2017,Business Support Community Services,Cultural Environmental Regulatory & Planning Services,http://opendatacommunities.org/def/concept/finance/sercop/objective/104,GB Sign Solutions Ltd,9609330,26/06/2017,68984,65,0,Street Nameplates 2016/17,102400,Building Signage
South Lakeland District Council,http://opendatacommunities.org/id/district-council/south-lakeland,30/06/2017,Development Implementation,External Trading Accounts,,ENVIRONMENT AGENCY,,19/06/2017,68847,1026,0,Summerlands Septic Tank 17/18 Treat,202100,Financial Services Subscriptions
South Lakeland District Council,http://opendatacommunities.org/id/district-council/south-lakeland,30/06/2017,Development Management,Cultural Environmental Regulatory & Planning Services,http://opendatacommunities.org/def/concept/finance/sercop/objective/104,CRUDEN PROPERTY SERVICES LTD,3851237,26/06/2017,69110,362.25,0,Supply of harris fencing round dangerous,391111,Construction Buildings Repair & Mtce
South Lakeland District Council,http://opendatacommunities.org/id/district-council/south-lakeland,30/06/2017,Business Support Community Services,Internal Trading Accounts,,HAKO MACHINES LIMITED,1414225,26/06/2017,69015,11559.08,0,Sweeper hire 01/04/17 - 31/03/18,131000,Cleaning & Janitorial Cleaning Materials
South Lakeland District Council,http://opendatacommunities.org/id/district-council/south-lakeland,30/06/2017,Business Support Community Services,Internal Trading Accounts,,HAKO MACHINES LIMITED,1414225,26/06/2017,69016,4626.7,0,Sweeper hire 01/04/17 - 31/03/18,131000,Cleaning & Janitorial Cleaning Materials
South Lakeland District Council,http://opendatacommunities.org/id/district-council/south-lakeland,30/06/2017,Business Support Community Services,Internal Trading Accounts,,HAKO MACHINES LIMITED,1414225,26/06/2017,69017,5779.54,0,Sweeper hire 01/04/17 - 31/03/18,131000,Cleaning & Janitorial Cleaning Materials
South Lakeland District Council,http://opendatacommunities.org/id/district-council/south-lakeland,30/06/2017,Business Support Community Services,Internal Trading Accounts,,HAKO MACHINES LIMITED,1414225,26/06/2017,69020,5779.54,0,Sweeper hire 01/04/17 - 31/03/18,131000,Cleaning & Janitorial Cleaning Materials
South Lakeland District Council,http://opendatacommunities.org/id/district-council/south-lakeland,30/06/2017,Kendal Town Hall,Cultural Environmental Regulatory & Planning Services,http://opendatacommunities.org/def/concept/finance/sercop/objective/104,Blue Star Taxis (Kendal) Ltd,6464607,26/06/2017,68816,15,0,Taxi from Kendal Town Hall to Hallgarth,361600,Public Transport Taxi Services Home to S
South Lakeland District Council,http://opendatacommunities.org/id/district-council/south-lakeland,30/06/2017,ICT Group,Central Services,http://opendatacommunities.org/def/concept/finance/sercop/objective/102,Envitia Ltd,2348404,12/06/2017,66443,6093,0,TI-MRCS-M3.01 Annual Licence Fee for,271440,ICT Software
South Lakeland District Council,http://opendatacommunities.org/id/district-council/south-lakeland,30/06/2017,Business Support Community Services,Internal Trading Accounts,,CUMBRIA COUNTY COUNCIL,,05/06/2017,68506,36111.71,0,"Tipping & disposal charges, recyclables",908000,Public Bodies Council support services
South Lakeland District Council,http://opendatacommunities.org/id/district-council/south-lakeland,30/06/2017,Kendal Town Hall,Highways & Transport Services,http://opendatacommunities.org/def/concept/finance/sercop/objective/107,ADECCO UK LIMITED,593232,19/06/2017,68729,221.76,0,To provide parking marshals for,261400,HR Temporary & Agency Staff
South Lakeland District Council,http://opendatacommunities.org/id/district-council/south-lakeland,30/06/2017,Kendal Town Hall,Cultural Environmental Regulatory & Planning Services,http://opendatacommunities.org/def/concept/finance/sercop/objective/104,THE LAUNDRY SHOP LTD,5421366,12/06/2017,68683,98.17,0,"To washing, drying and ironing cloths",131311,Cleaning & Janitorial Laundry Service
South Lakeland District Council,http://opendatacommunities.org/id/district-council/south-lakeland,30/06/2017,Business Support Community Services,Internal Trading Accounts,,AINSWORTH'S GARAGE,,26/06/2017,69035,19.5,0,Tracking,381400,Vehicle Mgt Maintenance
South Lakeland District Council,http://opendatacommunities.org/id/district-council/south-lakeland,30/06/2017,Revenues and Benefits,Central Services,http://opendatacommunities.org/def/concept/finance/sercop/objective/102,RIVERBANK HOSPITALITY CATERING,,12/06/2017,68684,62.4,0,Traditional Taste Menu - 12 people -,111000,Catering Banquet & Catering
South Lakeland District Council,http://opendatacommunities.org/id/district-council/south-lakeland,30/06/2017,Business Support Community Services,Internal Trading Accounts,,LANCASTER TRAINING SERVICES LTD,1447612,19/06/2017,68851,323.96,0,Training 2017/18 ,261500,HR Training & Conferences
South Lakeland District Council,http://opendatacommunities.org/id/district-council/south-lakeland,30/06/2017,Human Resources,Central Services,http://opendatacommunities.org/def/concept/finance/sercop/objective/102,GATENBY SANDERSON,,05/06/2017,68497,2550,0,Training costs,261300,HR Recruitment & Assessment
South Lakeland District Council,http://opendatacommunities.org/id/district-council/south-lakeland,30/06/2017,Social Enterprise Admin,Highways & Transport Services,http://opendatacommunities.org/def/concept/finance/sercop/objective/107,GATES TRAVEL SERVICE,,19/06/2017,68855,547.5,0,Travel & Tube for 5 people on 11 July,261600,HR Travel & Subsistence
South Lakeland District Council,http://opendatacommunities.org/id/district-council/south-lakeland,30/06/2017,Social Enterprise Admin,Cultural Environmental Regulatory & Planning Services,http://opendatacommunities.org/def/concept/finance/sercop/objective/104,Cleartrack (EvL) Ltd,3881690,14/06/2017,59749,740,0,"Tree work at  Greenside Lime Kiln,",199999,Facilities Not Elsewhere Classified
South Lakeland District Council,http://opendatacommunities.org/id/district-council/south-lakeland,30/06/2017,Business Support Community Services,Internal Trading Accounts,,JOHNSTON SWEEPERS LTD,199841,19/06/2017,68793,134.88,0,Tube,181600,Environment Street Cleansing
South Lakeland District Council,http://opendatacommunities.org/id/district-council/south-lakeland,30/06/2017,Business Support Community Services,Internal Trading Accounts,,JOHNSTON SWEEPERS LTD,199841,26/06/2017,68982,10.77,0,Tube,181600,Environment Street Cleansing
